Organisation Name,Organisation Code,Unique Ref No,Effective Date,Directorate  where expenditure incurred,Supplier Name,Payment Date,Net Amount,Purpose of Spend,Procurement Classification (Higher Level),Procurement Classification (Lower Level),Capital/Revenue
Walsall Council,http://opendatacommunities.org/id/metropolitan-district-council/walsall,WC85-1,31/10/2017,Economy & Environment,11KBW,13/10/2017,"2,040.00",73014-LEGAL FEES-PRIV CONTRACTOR FEES,CEMETERIES CENTRAL ADMINISTRATION,Third Party Payments,Revenue
Walsall Council,http://opendatacommunities.org/id/metropolitan-district-council/walsall,WC85-2,31/10/2017,Childrens,29 BEDFORD ROW CHAMBERS,20/10/2017,"4,500.00",73014-LEGAL FEES-PRIV CONTRACTOR FEES,GENERAL MANAGEMENT SUPPORT (INC LEGAL),Third Party Payments,Revenue
Walsall Council,http://opendatacommunities.org/id/metropolitan-district-council/walsall,WC85-3,31/10/2017,Change and Governance,39 ESSEX STREET LLP PFA,16/10/2017,"3,000.00",63116-EXTERNAL BARRISTERS-SERVICES-FEES,CORPORATE EXPENSES,Supplies & Services,Revenue
Walsall Council,http://opendatacommunities.org/id/metropolitan-district-council/walsall,WC85-4,31/10/2017,Change and Governance,4 SIGHT EYECARE CENTRE 002,12/10/2017,750,63000-PROFESSIONAL FEES AND SERVICES,HR DIRECT SERVICES,Supplies & Services,Revenue
Walsall Council,http://opendatacommunities.org/id/metropolitan-district-council/walsall,WC85-5,31/10/2017,Childrens,5 CARE SERVICES LTD,11/10/2017,"1,323.00",63000-PROFESSIONAL FEES AND SERVICES,DIRECTLY COMMISSIONED NURSING SERVICES,Supplies & Services,Revenue
Walsall Council,http://opendatacommunities.org/id/metropolitan-district-council/walsall,WC85-6,31/10/2017,Childrens,5 CARE SERVICES LTD,11/10/2017,"1,365.00",63000-PROFESSIONAL FEES AND SERVICES,DIRECTLY COMMISSIONED NURSING SERVICES,Supplies & Services,Revenue
Walsall Council,http://opendatacommunities.org/id/metropolitan-district-council/walsall,WC85-7,31/10/2017,Childrens,5 CARE SERVICES LTD,11/10/2017,"1,456.00",63000-PROFESSIONAL FEES AND SERVICES,DIRECTLY COMMISSIONED NURSING SERVICES,Supplies & Services,Revenue
Walsall Council,http://opendatacommunities.org/id/metropolitan-district-council/walsall,WC85-8,31/10/2017,Adult Social Care,5 CARE SERVICES LTD,11/10/2017,"14,795.71",73372-DOMICILIARY CARE,OP PACKAGE/PLACEMENT COSTS,Third Party Payments,Revenue
Walsall Council,http://opendatacommunities.org/id/metropolitan-district-council/walsall,WC85-9,31/10/2017,Adult Social Care,5 CARE SERVICES LTD,11/10/2017,"47,028.80",73372-DOMICILIARY CARE,OP PACKAGE/PLACEMENT COSTS,Third Party Payments,Revenue
Walsall Council,http://opendatacommunities.org/id/metropolitan-district-council/walsall,WC85-10,31/10/2017,Change and Governance,A & P HOME MAINTENANCE LTD,09/10/2017,"2,860.00",60001-REPAIRS/CLEANING-EQUIPMENT,TENANCY SERVICE,Supplies & Services,Revenue
Walsall Council,http://opendatacommunities.org/id/metropolitan-district-council/walsall,WC85-11,31/10/2017,Change and Governance,A D T FIRE AND SECURITY PLC,04/10/2017,342.68,73002-SECURITY-PRIV CONTRACTOR FEES,CENTRALISED MAINTENANCE,Third Party Payments,Revenue
Walsall Council,http://opendatacommunities.org/id/metropolitan-district-council/walsall,WC85-12,31/10/2017,Change and Governance,A D T FIRE AND SECURITY PLC,18/10/2017,376.99,73002-SECURITY-PRIV CONTRACTOR FEES,CENTRALISED MAINTENANCE,Third Party Payments,Revenue
Walsall Council,http://opendatacommunities.org/id/metropolitan-district-council/walsall,WC85-13,31/10/2017,Childrens,A D T FIRE AND SECURITY PLC,23/10/2017,613.02,60008-MAINTENANCE-FURNITURE & EQUIPMENT,STROUD FAMILY CENTRE,Supplies & Services,Revenue
Walsall Council,http://opendatacommunities.org/id/metropolitan-district-council/walsall,WC85-14,31/10/2017,Economy & Environment,A D T FIRE AND SECURITY PLC,20/10/2017,626,"40000-REPAIRS,ALTERATIONS & MAINTENANCE-PREM",ARBORETUM HLF,Premises,Revenue
Walsall Council,http://opendatacommunities.org/id/metropolitan-district-council/walsall,WC85-15,31/10/2017,Change and Governance,A D T FIRE AND SECURITY PLC,02/10/2017,774.9,73002-SECURITY-PRIV CONTRACTOR FEES,CENTRALISED MAINTENANCE,Third Party Payments,Revenue
Walsall Council,http://opendatacommunities.org/id/metropolitan-district-council/walsall,WC85-16,31/10/2017,Change and Governance,A D T FIRE AND SECURITY PLC,03/10/2017,863.93,73002-SECURITY-PRIV CONTRACTOR FEES,CENTRALISED MAINTENANCE,Third Party Payments,Revenue
Walsall Council,http://opendatacommunities.org/id/metropolitan-district-council/walsall,WC85-17,31/10/2017,Change and Governance,A D T FIRE AND SECURITY PLC,03/10/2017,871.25,73002-SECURITY-PRIV CONTRACTOR FEES,CENTRALISED MAINTENANCE,Third Party Payments,Revenue
Walsall Council,http://opendatacommunities.org/id/metropolitan-district-council/walsall,WC85-18,31/10/2017,Change and Governance,A D T FIRE AND SECURITY PLC,19/10/2017,"1,088.74",73002-SECURITY-PRIV CONTRACTOR FEES,CENTRALISED MAINTENANCE,Third Party Payments,Revenue
Walsall Council,http://opendatacommunities.org/id/metropolitan-district-council/walsall,WC85-19,31/10/2017,Childrens,A D T FIRE AND SECURITY PLC,12/10/2017,"1,860.00",01006-SITE WORKS MAIN CONTRACTORS,JANE LANE SCHOOL DEV FORMULA CAPITAL,Capital,Capital
Walsall Council,http://opendatacommunities.org/id/metropolitan-district-council/walsall,WC85-20,31/10/2017,Childrens,A D T FIRE AND SECURITY PLC,12/10/2017,"6,260.00",01006-SITE WORKS MAIN CONTRACTORS,JANE LANE SCHOOL DEV FORMULA CAPITAL,Capital,Capital
Walsall Council,http://opendatacommunities.org/id/metropolitan-district-council/walsall,WC85-21,31/10/2017,Childrens,A D T FIRE AND SECURITY PLC,12/10/2017,"6,290.00",01017-PURCHASE OF VEHICLES & PLANT,JANE LANE SCHOOL DEV FORMULA CAPITAL,Capital,Capital
Walsall Council,http://opendatacommunities.org/id/metropolitan-district-council/walsall,WC85-22,31/10/2017,Childrens,A D T FIRE AND SECURITY PLC,12/10/2017,"13,000.00",01017-PURCHASE OF VEHICLES & PLANT,JANE LANE SCHOOL DEV FORMULA CAPITAL,Capital,Capital
Walsall Council,http://opendatacommunities.org/id/metropolitan-district-council/walsall,WC85-23,31/10/2017,Childrens,A D T FIRE AND SECURITY PLC,12/10/2017,"17,000.00",01006-SITE WORKS MAIN CONTRACTORS,JANE LANE SCHOOL DEV FORMULA CAPITAL,Capital,Capital
Walsall Council,http://opendatacommunities.org/id/metropolitan-district-council/walsall,WC85-24,31/10/2017,Economy & Environment,A F BLAKEMORE & SON LTD,23/10/2017,228.09,61018-DRINKS-PROVISIONS,WALSALL GALA CENTRE,Supplies & Services,Revenue
Walsall Council,http://opendatacommunities.org/id/metropolitan-district-council/walsall,WC85-25,31/10/2017,Economy & Environment,A F BLAKEMORE & SON LTD,16/10/2017,248.33,61018-DRINKS-PROVISIONS,OAK PARK,Supplies & Services,Revenue
Walsall Council,http://opendatacommunities.org/id/metropolitan-district-council/walsall,WC85-26,31/10/2017,Change and Governance,A F BLAKEMORE & SON LTD,27/10/2017,261.6,61016-FOOD AND BEVERAGES-PROVISIONS,WALSALL TOWN HALL,Supplies & Services,Revenue
Walsall Council,http://opendatacommunities.org/id/metropolitan-district-council/walsall,WC85-27,31/10/2017,Economy & Environment,A F BLAKEMORE & SON LTD,06/10/2017,280.24,61009-BEVERAGES-PROVISIONS,FOREST ARTS CENTRE,Supplies & Services,Revenue
Walsall Council,http://opendatacommunities.org/id/metropolitan-district-council/walsall,WC85-28,31/10/2017,Economy & Environment,A F BLAKEMORE & SON LTD,23/10/2017,303.58,61018-DRINKS-PROVISIONS,OAK PARK,Supplies & Services,Revenue
Walsall Council,http://opendatacommunities.org/id/metropolitan-district-council/walsall,WC85-29,31/10/2017,Economy & Environment,A F BLAKEMORE & SON LTD,04/10/2017,303.71,61018-DRINKS-PROVISIONS,OAK PARK,Supplies & Services,Revenue
Walsall Council,http://opendatacommunities.org/id/metropolitan-district-council/walsall,WC85-30,31/10/2017,Adult Social Care,A F BLAKEMORE & SON LTD,02/10/2017,307.4,61016-FOOD AND BEVERAGES-PROVISIONS,GOSCOTE,Supplies & Services,Revenue
Walsall Council,http://opendatacommunities.org/id/metropolitan-district-council/walsall,WC85-31,31/10/2017,Economy & Environment,A F BLAKEMORE & SON LTD,09/10/2017,316.12,61009-BEVERAGES-PROVISIONS,FOREST ARTS CENTRE,Supplies & Services,Revenue
Walsall Council,http://opendatacommunities.org/id/metropolitan-district-council/walsall,WC85-32,31/10/2017,Economy & Environment,A F BLAKEMORE & SON LTD,12/10/2017,328.61,61018-DRINKS-PROVISIONS,OAK PARK,Supplies & Services,Revenue
Walsall Council,http://opendatacommunities.org/id/metropolitan-district-council/walsall,WC85-33,31/10/2017,Economy & Environment,A F BLAKEMORE & SON LTD,12/10/2017,344.73,61008-CONFECTIONERY/SNACKS-PROVISIONS,OAK PARK,Supplies & Services,Revenue
Walsall Council,http://opendatacommunities.org/id/metropolitan-district-council/walsall,WC85-34,31/10/2017,Economy & Environment,A F BLAKEMORE & SON LTD,24/10/2017,358.5,61009-BEVERAGES-PROVISIONS,FOREST ARTS CENTRE,Supplies & Services,Revenue
Walsall Council,http://opendatacommunities.org/id/metropolitan-district-council/walsall,WC85-35,31/10/2017,Economy & Environment,A F BLAKEMORE & SON LTD,16/10/2017,386.3,61018-DRINKS-PROVISIONS,OAK PARK,Supplies & Services,Revenue
Walsall Council,http://opendatacommunities.org/id/metropolitan-district-council/walsall,WC85-36,31/10/2017,Economy & Environment,A F BLAKEMORE & SON LTD,11/10/2017,390.83,61018-DRINKS-PROVISIONS,OAK PARK,Supplies & Services,Revenue
Walsall Council,http://opendatacommunities.org/id/metropolitan-district-council/walsall,WC85-37,31/10/2017,Economy & Environment,A F BLAKEMORE & SON LTD,23/10/2017,404.42,61001-FROZEN FOODS-PROVISIONS,BLOXWICH LEISURE CENTRE,Supplies & Services,Revenue
Walsall Council,http://opendatacommunities.org/id/metropolitan-district-council/walsall,WC85-38,31/10/2017,Economy & Environment,A F BLAKEMORE & SON LTD,19/10/2017,407.1,61018-DRINKS-PROVISIONS,DARLASTON LEISURE CENTRE,Supplies & Services,Revenue
Walsall Council,http://opendatacommunities.org/id/metropolitan-district-council/walsall,WC85-39,31/10/2017,Economy & Environment,A F BLAKEMORE & SON LTD,19/10/2017,415.39,61008-CONFECTIONERY/SNACKS-PROVISIONS,DARLASTON LEISURE CENTRE,Supplies & Services,Revenue
Walsall Council,http://opendatacommunities.org/id/metropolitan-district-council/walsall,WC85-40,31/10/2017,Adult Social Care,A F BLAKEMORE & SON LTD,19/10/2017,469.64,61016-FOOD AND BEVERAGES-PROVISIONS,GOSCOTE,Supplies & Services,Revenue
Walsall Council,http://opendatacommunities.org/id/metropolitan-district-council/walsall,WC85-41,31/10/2017,Adult Social Care,A F BLAKEMORE & SON LTD,20/10/2017,491.91,61016-FOOD AND BEVERAGES-PROVISIONS,REABLEMENT TEAM - HOLLY BANK,Supplies & Services,Revenue
Walsall Council,http://opendatacommunities.org/id/metropolitan-district-council/walsall,WC85-42,31/10/2017,Change and Governance,A F BLAKEMORE & SON LTD,27/10/2017,500.15,61016-FOOD AND BEVERAGES-PROVISIONS,WALSALL TOWN HALL,Supplies & Services,Revenue
Walsall Council,http://opendatacommunities.org/id/metropolitan-district-council/walsall,WC85-43,31/10/2017,Adult Social Care,A F BLAKEMORE & SON LTD,11/10/2017,546.69,61016-FOOD AND BEVERAGES-PROVISIONS,GOSCOTE,Supplies & Services,Revenue
Walsall Council,http://opendatacommunities.org/id/metropolitan-district-council/walsall,WC85-44,31/10/2017,Economy & Environment,A F BLAKEMORE & SON LTD,27/10/2017,580.32,61008-CONFECTIONERY/SNACKS-PROVISIONS,OAK PARK,Supplies & Services,Revenue
Walsall Council,http://opendatacommunities.org/id/metropolitan-district-council/walsall,WC85-45,31/10/2017,Adult Social Care,A F BLAKEMORE & SON LTD,09/10/2017,626.94,61016-FOOD AND BEVERAGES-PROVISIONS,REABLEMENT TEAM - HOLLY BANK,Supplies & Services,Revenue
Walsall Council,http://opendatacommunities.org/id/metropolitan-district-council/walsall,WC85-46,31/10/2017,Economy & Environment,A F BLAKEMORE & SON LTD,23/10/2017,636.11,61001-FROZEN FOODS-PROVISIONS,BLOXWICH LEISURE CENTRE,Supplies & Services,Revenue
Walsall Council,http://opendatacommunities.org/id/metropolitan-district-council/walsall,WC85-47,31/10/2017,Adult Social Care,A F BLAKEMORE & SON LTD,20/10/2017,665.36,61016-FOOD AND BEVERAGES-PROVISIONS,REABLEMENT TEAM - HOLLY BANK,Supplies & Services,Revenue
Walsall Council,http://opendatacommunities.org/id/metropolitan-district-council/walsall,WC85-48,31/10/2017,Economy & Environment,A F BLAKEMORE & SON LTD,05/10/2017,749.43,61001-FROZEN FOODS-PROVISIONS,BLOXWICH LEISURE CENTRE,Supplies & Services,Revenue
Walsall Council,http://opendatacommunities.org/id/metropolitan-district-council/walsall,WC85-49,31/10/2017,Economy & Environment,A F BLAKEMORE & SON LTD,04/10/2017,785.51,61008-CONFECTIONERY/SNACKS-PROVISIONS,OAK PARK,Supplies & Services,Revenue
Walsall Council,http://opendatacommunities.org/id/metropolitan-district-council/walsall,WC85-50,31/10/2017,Change and Governance,A F BLAKEMORE & SON LTD,06/10/2017,"1,244.55",61016-FOOD AND BEVERAGES-PROVISIONS,WALSALL TOWN HALL,Supplies & Services,Revenue
Walsall Council,http://opendatacommunities.org/id/metropolitan-district-council/walsall,WC85-51,31/10/2017,Economy & Environment,A F BLAKEMORE & SON LTD,06/10/2017,"1,900.90",61001-FROZEN FOODS-PROVISIONS,BLOXWICH LEISURE CENTRE,Supplies & Services,Revenue
Walsall Council,http://opendatacommunities.org/id/metropolitan-district-council/walsall,WC85-52,31/10/2017,Change and Governance,A F BLAKEMORE & SON LTD,27/10/2017,"2,627.65",61016-FOOD AND BEVERAGES-PROVISIONS,WALSALL TOWN HALL,Supplies & Services,Revenue
Walsall Council,http://opendatacommunities.org/id/metropolitan-district-council/walsall,WC85-53,31/10/2017,Childrens,REDACTED,06/10/2017,378,76422-DIRECT PAYMENTS TO SOCIAL SERVICES CLIENTS,FAMILY SUPPORT - DIRECT PAYMENTS,Transfer Payments,Revenue
Walsall Council,http://opendatacommunities.org/id/metropolitan-district-council/walsall,WC85-54,31/10/2017,Childrens,ABACUS FOSTERING LTD,09/10/2017,"4,040.00",74037-INDEPENDENT FOSTER CARE-OTH AGENCY PROVISION,EXTERNAL FOSTER CARE PROVISION,Third Party Payments,Revenue
Walsall Council,http://opendatacommunities.org/id/metropolitan-district-council/walsall,WC85-55,31/10/2017,Economy & Environment,ABBEY BLINDS 001,04/10/2017,309.75,60000-FURNITURE & EQUIPMENT,FOREST ARTS CENTRE,Supplies & Services,Revenue
Walsall Council,http://opendatacommunities.org/id/metropolitan-district-council/walsall,WC85-56,31/10/2017,Adult Social Care,ABBEY COURT NURSING & RESIDEN,10/10/2017,"1,878.91",73373-RESIDENTIAL & NURSING CARE PLACEMENTS,OP PACKAGE/PLACEMENT COSTS,Third Party Payments,Revenue
Walsall Council,http://opendatacommunities.org/id/metropolitan-district-council/walsall,WC85-57,31/10/2017,Adult Social Care,ABBEY COURT NURSING & RESIDEN,10/10/2017,"2,144.62",73373-RESIDENTIAL & NURSING CARE PLACEMENTS,OP PACKAGE/PLACEMENT COSTS,Third Party Payments,Revenue
Walsall Council,http://opendatacommunities.org/id/metropolitan-district-council/walsall,WC85-58,31/10/2017,Childrens,ABC DAY NURSERY (WILLENHALL) LIMITED,03/10/2017,300,63120-CRECHE FACILITIES-SERVICES-FEES,SAFEGUARDING & FAMILY SUPPORT,Supplies & Services,Revenue
Walsall Council,http://opendatacommunities.org/id/metropolitan-district-council/walsall,WC85-59,31/10/2017,Childrens,ABC DAY NURSERY (WILLENHALL) LIMITED,06/10/2017,300,63120-CRECHE FACILITIES-SERVICES-FEES,SAFEGUARDING & FAMILY SUPPORT,Supplies & Services,Revenue
Walsall Council,http://opendatacommunities.org/id/metropolitan-district-council/walsall,WC85-60,31/10/2017,Childrens,ABC DAY NURSERY (WILLENHALL) LIMITED,06/10/2017,300,63120-CRECHE FACILITIES-SERVICES-FEES,SAFEGUARDING & FAMILY SUPPORT,Supplies & Services,Revenue
Walsall Council,http://opendatacommunities.org/id/metropolitan-district-council/walsall,WC85-61,31/10/2017,Childrens,ABC DAY NURSERY (WILLENHALL) LIMITED,03/10/2017,350,63120-CRECHE FACILITIES-SERVICES-FEES,SAFEGUARDING & FAMILY SUPPORT,Supplies & Services,Revenue
Walsall Council,http://opendatacommunities.org/id/metropolitan-district-council/walsall,WC85-62,31/10/2017,Childrens,ABC FOSTERING,23/10/2017,"1,108.57",74037-INDEPENDENT FOSTER CARE-OTH AGENCY PROVISION,EXTERNAL FOSTER CARE PROVISION,Third Party Payments,Revenue
Walsall Council,http://opendatacommunities.org/id/metropolitan-district-council/walsall,WC85-63,31/10/2017,Childrens,ABC FOSTERING,09/10/2017,"2,635.20",74037-INDEPENDENT FOSTER CARE-OTH AGENCY PROVISION,EXTERNAL FOSTER CARE PROVISION,Third Party Payments,Revenue
Walsall Council,http://opendatacommunities.org/id/metropolitan-district-council/walsall,WC85-64,31/10/2017,Childrens,ABC FOSTERING,09/10/2017,"2,859.48",74037-INDEPENDENT FOSTER CARE-OTH AGENCY PROVISION,EXTERNAL FOSTER CARE PROVISION,Third Party Payments,Revenue
Walsall Council,http://opendatacommunities.org/id/metropolitan-district-council/walsall,WC85-65,31/10/2017,Childrens,ABC FOSTERING,09/10/2017,"2,880.00",74037-INDEPENDENT FOSTER CARE-OTH AGENCY PROVISION,EXTERNAL FOSTER CARE PROVISION,Third Party Payments,Revenue
Walsall Council,http://opendatacommunities.org/id/metropolitan-district-council/walsall,WC85-66,31/10/2017,Childrens,ABC FOSTERING,09/10/2017,"3,042.00",74037-INDEPENDENT FOSTER CARE-OTH AGENCY PROVISION,EXTERNAL FOSTER CARE PROVISION,Third Party Payments,Revenue
Walsall Council,http://opendatacommunities.org/id/metropolitan-district-council/walsall,WC85-67,31/10/2017,Childrens,ABC FOSTERING,09/10/2017,"3,182.40",74037-INDEPENDENT FOSTER CARE-OTH AGENCY PROVISION,EXTERNAL FOSTER CARE PROVISION,Third Party Payments,Revenue
Walsall Council,http://opendatacommunities.org/id/metropolitan-district-council/walsall,WC85-68,31/10/2017,Adult Social Care,REDACTED,06/10/2017,"1,557.68",76422-DIRECT PAYMENTS TO SOCIAL SERVICES CLIENTS,LD PACKAGE/PLACEMENT COSTS,Transfer Payments,Revenue
Walsall Council,http://opendatacommunities.org/id/metropolitan-district-council/walsall,WC85-69,31/10/2017,Economy & Environment,ABEL ALARM CO LTD,02/10/2017,941.45,40015-ALARM CALL OUTS-OP MTCE,CEMETERIES CENTRAL ADMINISTRATION,Premises,Revenue
Walsall Council,http://opendatacommunities.org/id/metropolitan-district-council/walsall,WC85-70,31/10/2017,Economy & Environment,ABEL ALARM CO LTD,02/10/2017,"1,006.05",40015-ALARM CALL OUTS-OP MTCE,STREETLY CREMATORIUM,Premises,Revenue
Walsall Council,http://opendatacommunities.org/id/metropolitan-district-council/walsall,WC85-71,31/10/2017,Adult Social Care,REDACTED,06/10/2017,"2,357.99",76422-DIRECT PAYMENTS TO SOCIAL SERVICES CLIENTS,LD PACKAGE/PLACEMENT COSTS,Transfer Payments,Revenue
Walsall Council,http://opendatacommunities.org/id/metropolitan-district-council/walsall,WC85-72,31/10/2017,Childrens,ABLEWELL CARS,06/10/2017,954,52000-WITH DRIVER-HIRE OF VEHICLES,SCHOOL TRANSPORT,Transport,Revenue
Walsall Council,http://opendatacommunities.org/id/metropolitan-district-council/walsall,WC85-73,31/10/2017,Childrens,AC SOCIAL CARE CONSULTANCY LTD,09/10/2017,"1,540.00",63102-CONSULTANTS FEES - CORPORATE,SAFEGUARDING BOARD,Supplies & Services,Revenue
Walsall Council,http://opendatacommunities.org/id/metropolitan-district-council/walsall,WC85-74,31/10/2017,Adult Social Care,ACCORD HOUSING ASSOCIATION LTD#135,27/10/2017,281.96,73374-SUPPORTED & OTHER ACCOMMODATION,MH COMMISSIONING,Third Party Payments,Revenue
Walsall Council,http://opendatacommunities.org/id/metropolitan-district-council/walsall,WC85-75,31/10/2017,Adult Social Care,ACCORD HOUSING ASSOCIATION LTD#135,04/10/2017,348.74,73374-SUPPORTED & OTHER ACCOMMODATION,MH COMMISSIONING,Third Party Payments,Revenue
Walsall Council,http://opendatacommunities.org/id/metropolitan-district-council/walsall,WC85-76,31/10/2017,Childrens,ACCORD HOUSING ASSOCIATION LTD#135,26/10/2017,462.28,43000-RENTS,SAFEGUARDING & FAMILY SUPPORT,Premises,Revenue
Walsall Council,http://opendatacommunities.org/id/metropolitan-district-council/walsall,WC85-77,31/10/2017,Adult Social Care,ACCORD HOUSING ASSOCIATION LTD#135,04/10/2017,474.88,73372-DOMICILIARY CARE,MH COMMISSIONING,Third Party Payments,Revenue
Walsall Council,http://opendatacommunities.org/id/metropolitan-district-council/walsall,WC85-78,31/10/2017,Adult Social Care,ACCORD HOUSING ASSOCIATION LTD#135,27/10/2017,474.88,73374-SUPPORTED & OTHER ACCOMMODATION,MH COMMISSIONING,Third Party Payments,Revenue
Walsall Council,http://opendatacommunities.org/id/metropolitan-district-council/walsall,WC85-79,31/10/2017,Adult Social Care,ACCORD HOUSING ASSOCIATION LTD#135,24/10/2017,516.74,73373-RESIDENTIAL & NURSING CARE PLACEMENTS,LD PACKAGE/PLACEMENT COSTS,Third Party Payments,Revenue
Walsall Council,http://opendatacommunities.org/id/metropolitan-district-council/walsall,WC85-80,31/10/2017,Adult Social Care,ACCORD HOUSING ASSOCIATION LTD#135,24/10/2017,516.74,73373-RESIDENTIAL & NURSING CARE PLACEMENTS,LD PACKAGE/PLACEMENT COSTS,Third Party Payments,Revenue
Walsall Council,http://opendatacommunities.org/id/metropolitan-district-council/walsall,WC85-81,31/10/2017,Adult Social Care,ACCORD HOUSING ASSOCIATION LTD#135,24/10/2017,516.74,73373-RESIDENTIAL & NURSING CARE PLACEMENTS,LD PACKAGE/PLACEMENT COSTS,Third Party Payments,Revenue
Walsall Council,http://opendatacommunities.org/id/metropolitan-district-council/walsall,WC85-82,31/10/2017,Adult Social Care,ACCORD HOUSING ASSOCIATION LTD#135,24/10/2017,516.74,73373-RESIDENTIAL & NURSING CARE PLACEMENTS,LD PACKAGE/PLACEMENT COSTS,Third Party Payments,Revenue
Walsall Council,http://opendatacommunities.org/id/metropolitan-district-council/walsall,WC85-83,31/10/2017,Adult Social Care,ACCORD HOUSING ASSOCIATION LTD#135,27/10/2017,519.4,73374-SUPPORTED & OTHER ACCOMMODATION,OP PACKAGE/PLACEMENT COSTS,Third Party Payments,Revenue
Walsall Council,http://opendatacommunities.org/id/metropolitan-district-council/walsall,WC85-84,31/10/2017,Adult Social Care,ACCORD HOUSING ASSOCIATION LTD#135,27/10/2017,598.2,73374-SUPPORTED & OTHER ACCOMMODATION,MH COMMISSIONING,Third Party Payments,Revenue
Walsall Council,http://opendatacommunities.org/id/metropolitan-district-council/walsall,WC85-85,31/10/2017,Adult Social Care,ACCORD HOUSING ASSOCIATION LTD#135,27/10/2017,604.48,73374-SUPPORTED & OTHER ACCOMMODATION,MH COMMISSIONING,Third Party Payments,Revenue
Walsall Council,http://opendatacommunities.org/id/metropolitan-district-council/walsall,WC85-86,31/10/2017,Adult Social Care,ACCORD HOUSING ASSOCIATION LTD#135,04/10/2017,638.12,73374-SUPPORTED & OTHER ACCOMMODATION,OP PACKAGE/PLACEMENT COSTS,Third Party Payments,Revenue
Walsall Council,http://opendatacommunities.org/id/metropolitan-district-council/walsall,WC85-87,31/10/2017,Adult Social Care,ACCORD HOUSING ASSOCIATION LTD#135,27/10/2017,661.12,73374-SUPPORTED & OTHER ACCOMMODATION,MH COMMISSIONING,Third Party Payments,Revenue
Walsall Council,http://opendatacommunities.org/id/metropolitan-district-council/walsall,WC85-88,31/10/2017,Adult Social Care,ACCORD HOUSING ASSOCIATION LTD#135,24/10/2017,721.14,73373-RESIDENTIAL & NURSING CARE PLACEMENTS,LD PACKAGE/PLACEMENT COSTS,Third Party Payments,Revenue
Walsall Council,http://opendatacommunities.org/id/metropolitan-district-council/walsall,WC85-89,31/10/2017,Adult Social Care,ACCORD HOUSING ASSOCIATION LTD#135,24/10/2017,721.14,73373-RESIDENTIAL & NURSING CARE PLACEMENTS,LD PACKAGE/PLACEMENT COSTS,Third Party Payments,Revenue
Walsall Council,http://opendatacommunities.org/id/metropolitan-district-council/walsall,WC85-90,31/10/2017,Adult Social Care,ACCORD HOUSING ASSOCIATION LTD#135,24/10/2017,721.14,73373-RESIDENTIAL & NURSING CARE PLACEMENTS,LD PACKAGE/PLACEMENT COSTS,Third Party Payments,Revenue
Walsall Council,http://opendatacommunities.org/id/metropolitan-district-council/walsall,WC85-91,31/10/2017,Adult Social Care,ACCORD HOUSING ASSOCIATION LTD#135,04/10/2017,747.75,73374-SUPPORTED & OTHER ACCOMMODATION,MH COMMISSIONING,Third Party Payments,Revenue
Walsall Council,http://opendatacommunities.org/id/metropolitan-district-council/walsall,WC85-92,31/10/2017,Adult Social Care,ACCORD HOUSING ASSOCIATION LTD#135,03/10/2017,755.6,73374-SUPPORTED & OTHER ACCOMMODATION,MH COMMISSIONING,Third Party Payments,Revenue
Walsall Council,http://opendatacommunities.org/id/metropolitan-district-council/walsall,WC85-93,31/10/2017,Adult Social Care,ACCORD HOUSING ASSOCIATION LTD#135,27/10/2017,793.36,73374-SUPPORTED & OTHER ACCOMMODATION,MH COMMISSIONING,Third Party Payments,Revenue
Walsall Council,http://opendatacommunities.org/id/metropolitan-district-council/walsall,WC85-94,31/10/2017,Adult Social Care,ACCORD HOUSING ASSOCIATION LTD#135,27/10/2017,793.36,73374-SUPPORTED & OTHER ACCOMMODATION,MH COMMISSIONING,Third Party Payments,Revenue
Walsall Council,http://opendatacommunities.org/id/metropolitan-district-council/walsall,WC85-95,31/10/2017,Adult Social Care,ACCORD HOUSING ASSOCIATION LTD#135,24/10/2017,823.77,73373-RESIDENTIAL & NURSING CARE PLACEMENTS,LD PACKAGE/PLACEMENT COSTS,Third Party Payments,Revenue
Walsall Council,http://opendatacommunities.org/id/metropolitan-district-council/walsall,WC85-96,31/10/2017,Adult Social Care,ACCORD HOUSING ASSOCIATION LTD#135,24/10/2017,823.77,73373-RESIDENTIAL & NURSING CARE PLACEMENTS,LD PACKAGE/PLACEMENT COSTS,Third Party Payments,Revenue
Walsall Council,http://opendatacommunities.org/id/metropolitan-district-council/walsall,WC85-97,31/10/2017,Adult Social Care,ACCORD HOUSING ASSOCIATION LTD#135,24/10/2017,823.77,73373-RESIDENTIAL & NURSING CARE PLACEMENTS,LD PACKAGE/PLACEMENT COSTS,Third Party Payments,Revenue
Walsall Council,http://opendatacommunities.org/id/metropolitan-district-council/walsall,WC85-98,31/10/2017,Adult Social Care,ACCORD HOUSING ASSOCIATION LTD#135,03/10/2017,826.4,73374-SUPPORTED & OTHER ACCOMMODATION,MH COMMISSIONING,Third Party Payments,Revenue
Walsall Council,http://opendatacommunities.org/id/metropolitan-district-council/walsall,WC85-99,31/10/2017,Adult Social Care,ACCORD HOUSING ASSOCIATION LTD#135,27/10/2017,868.96,73374-SUPPORTED & OTHER ACCOMMODATION,MH COMMISSIONING,Third Party Payments,Revenue
Walsall Council,http://opendatacommunities.org/id/metropolitan-district-council/walsall,WC85-100,31/10/2017,Adult Social Care,ACCORD HOUSING ASSOCIATION LTD#135,02/10/2017,887.5,73374-SUPPORTED & OTHER ACCOMMODATION,LD PACKAGE/PLACEMENT COSTS,Third Party Payments,Revenue
Walsall Council,http://opendatacommunities.org/id/metropolitan-district-council/walsall,WC85-101,31/10/2017,Adult Social Care,ACCORD HOUSING ASSOCIATION LTD#135,09/10/2017,906.7,73374-SUPPORTED & OTHER ACCOMMODATION,MH COMMISSIONING,Third Party Payments,Revenue
Walsall Council,http://opendatacommunities.org/id/metropolitan-district-council/walsall,WC85-102,31/10/2017,Adult Social Care,ACCORD HOUSING ASSOCIATION LTD#135,03/10/2017,991.7,73374-SUPPORTED & OTHER ACCOMMODATION,MH COMMISSIONING,Third Party Payments,Revenue
Walsall Council,http://opendatacommunities.org/id/metropolitan-district-council/walsall,WC85-103,31/10/2017,Adult Social Care,ACCORD HOUSING ASSOCIATION LTD#135,04/10/2017,991.7,73374-SUPPORTED & OTHER ACCOMMODATION,MH COMMISSIONING,Third Party Payments,Revenue
Walsall Council,http://opendatacommunities.org/id/metropolitan-district-council/walsall,WC85-104,31/10/2017,Adult Social Care,ACCORD HOUSING ASSOCIATION LTD#135,03/10/2017,"1,086.20",73374-SUPPORTED & OTHER ACCOMMODATION,MH COMMISSIONING,Third Party Payments,Revenue
Walsall Council,http://opendatacommunities.org/id/metropolitan-district-council/walsall,WC85-105,31/10/2017,Adult Social Care,ACCORD HOUSING ASSOCIATION LTD#135,27/10/2017,"1,133.40",73374-SUPPORTED & OTHER ACCOMMODATION,MH COMMISSIONING,Third Party Payments,Revenue
Walsall Council,http://opendatacommunities.org/id/metropolitan-district-council/walsall,WC85-106,31/10/2017,Adult Social Care,ACCORD HOUSING ASSOCIATION LTD#135,24/10/2017,"1,149.69",73373-RESIDENTIAL & NURSING CARE PLACEMENTS,LD PACKAGE/PLACEMENT COSTS,Third Party Payments,Revenue
Walsall Council,http://opendatacommunities.org/id/metropolitan-district-council/walsall,WC85-107,31/10/2017,Adult Social Care,ACCORD HOUSING ASSOCIATION LTD#135,24/10/2017,"1,149.69",73373-RESIDENTIAL & NURSING CARE PLACEMENTS,LD PACKAGE/PLACEMENT COSTS,Third Party Payments,Revenue
Walsall Council,http://opendatacommunities.org/id/metropolitan-district-council/walsall,WC85-108,31/10/2017,Adult Social Care,ACCORD HOUSING ASSOCIATION LTD#135,24/10/2017,"1,149.69",73373-RESIDENTIAL & NURSING CARE PLACEMENTS,LD PACKAGE/PLACEMENT COSTS,Third Party Payments,Revenue
Walsall Council,http://opendatacommunities.org/id/metropolitan-district-council/walsall,WC85-109,31/10/2017,Adult Social Care,ACCORD HOUSING ASSOCIATION LTD#135,27/10/2017,"1,227.84",73374-SUPPORTED & OTHER ACCOMMODATION,MH COMMISSIONING,Third Party Payments,Revenue
Walsall Council,http://opendatacommunities.org/id/metropolitan-district-council/walsall,WC85-110,31/10/2017,Adult Social Care,ACCORD HOUSING ASSOCIATION LTD#135,27/10/2017,"1,322.28",73374-SUPPORTED & OTHER ACCOMMODATION,MH COMMISSIONING,Third Party Payments,Revenue
Walsall Council,http://opendatacommunities.org/id/metropolitan-district-council/walsall,WC85-111,31/10/2017,Adult Social Care,ACCORD HOUSING ASSOCIATION LTD#135,27/10/2017,"1,341.16",73374-SUPPORTED & OTHER ACCOMMODATION,MH COMMISSIONING,Third Party Payments,Revenue
Walsall Council,http://opendatacommunities.org/id/metropolitan-district-council/walsall,WC85-112,31/10/2017,Adult Social Care,ACCORD HOUSING ASSOCIATION LTD#135,03/10/2017,"1,416.75",73374-SUPPORTED & OTHER ACCOMMODATION,MH COMMISSIONING,Third Party Payments,Revenue
Walsall Council,http://opendatacommunities.org/id/metropolitan-district-council/walsall,WC85-113,31/10/2017,Adult Social Care,ACCORD HOUSING ASSOCIATION LTD#135,09/10/2017,"1,440.33",73374-SUPPORTED & OTHER ACCOMMODATION,MH COMMISSIONING,Third Party Payments,Revenue
Walsall Council,http://opendatacommunities.org/id/metropolitan-district-council/walsall,WC85-114,31/10/2017,Adult Social Care,ACCORD HOUSING ASSOCIATION LTD#135,03/10/2017,"1,534.80",73374-SUPPORTED & OTHER ACCOMMODATION,MH COMMISSIONING,Third Party Payments,Revenue
Walsall Council,http://opendatacommunities.org/id/metropolitan-district-council/walsall,WC85-115,31/10/2017,Adult Social Care,ACCORD HOUSING ASSOCIATION LTD#135,27/10/2017,"1,567.84",73374-SUPPORTED & OTHER ACCOMMODATION,MH COMMISSIONING,Third Party Payments,Revenue
Walsall Council,http://opendatacommunities.org/id/metropolitan-district-council/walsall,WC85-116,31/10/2017,Adult Social Care,ACCORD HOUSING ASSOCIATION LTD#135,09/10/2017,"1,633.95",73374-SUPPORTED & OTHER ACCOMMODATION,MH COMMISSIONING,Third Party Payments,Revenue
Walsall Council,http://opendatacommunities.org/id/metropolitan-district-council/walsall,WC85-117,31/10/2017,Adult Social Care,ACCORD HOUSING ASSOCIATION LTD#135,04/10/2017,"1,652.85",73374-SUPPORTED & OTHER ACCOMMODATION,MH COMMISSIONING,Third Party Payments,Revenue
Walsall Council,http://opendatacommunities.org/id/metropolitan-district-council/walsall,WC85-118,31/10/2017,Adult Social Care,ACCORD HOUSING ASSOCIATION LTD#135,03/10/2017,"1,676.45",73374-SUPPORTED & OTHER ACCOMMODATION,MH COMMISSIONING,Third Party Payments,Revenue
Walsall Council,http://opendatacommunities.org/id/metropolitan-district-council/walsall,WC85-119,31/10/2017,Adult Social Care,ACCORD HOUSING ASSOCIATION LTD#135,03/10/2017,"1,959.80",73374-SUPPORTED & OTHER ACCOMMODATION,MH COMMISSIONING,Third Party Payments,Revenue
Walsall Council,http://opendatacommunities.org/id/metropolitan-district-council/walsall,WC85-120,31/10/2017,Adult Social Care,ACCORD HOUSING ASSOCIATION LTD#135,18/10/2017,"5,083.00",70000-SOCIAL SERVICES-FEES TO VOLUNTARY BODIES,COMPLEX NEEDS CONTRACTS/SLA's,Third Party Payments,Revenue
Walsall Council,http://opendatacommunities.org/id/metropolitan-district-council/walsall,WC85-121,31/10/2017,Adult Social Care,ACCORD HOUSING ASSOCIATION LTD#135,27/10/2017,"6,119.75",70000-SOCIAL SERVICES-FEES TO VOLUNTARY BODIES,COMPLEX NEEDS CONTRACTS/SLA's,Third Party Payments,Revenue
Walsall Council,http://opendatacommunities.org/id/metropolitan-district-council/walsall,WC85-122,31/10/2017,Childrens,ACCORD HOUSING ASSOCIATION LTD#135,01/10/2017,"6,655.50",63102-CONSULTANTS FEES - CORPORATE,TOXIC TRIO,Supplies & Services,Revenue
Walsall Council,http://opendatacommunities.org/id/metropolitan-district-council/walsall,WC85-123,31/10/2017,Childrens,ACCORD HOUSING ASSOCIATION LTD#135,01/10/2017,"6,655.50",63102-CONSULTANTS FEES - CORPORATE,TOXIC TRIO,Supplies & Services,Revenue
Walsall Council,http://opendatacommunities.org/id/metropolitan-district-council/walsall,WC85-124,31/10/2017,Adult Social Care,ACCORD HOUSING ASSOCIATION LTD#135,11/10/2017,"10,522.39",73372-DOMICILIARY CARE,OP PACKAGE/PLACEMENT COSTS,Third Party Payments,Revenue
Walsall Council,http://opendatacommunities.org/id/metropolitan-district-council/walsall,WC85-125,31/10/2017,Adult Social Care,ACCORD HOUSING ASSOCIATION LTD#135,17/10/2017,"11,164.00",73365-BLOCK GROSS-SUPPORTING PEOPLE,OLDER PEOPLE SLA,Third Party Payments,Revenue
Walsall Council,http://opendatacommunities.org/id/metropolitan-district-council/walsall,WC85-126,31/10/2017,Adult Social Care,ACCORD HOUSING ASSOCIATION LTD#135,11/10/2017,"32,362.87",73372-DOMICILIARY CARE,OP PACKAGE/PLACEMENT COSTS,Third Party Payments,Revenue
Walsall Council,http://opendatacommunities.org/id/metropolitan-district-council/walsall,WC85-127,31/10/2017,Change and Governance,ACCORD HOUSING ASSOCIATION LTD#135,31/10/2017,"47,217.50",73365-BLOCK GROSS-SUPPORTING PEOPLE,HOMELESS PREVENTION GRANT,Third Party Payments,Revenue
Walsall Council,http://opendatacommunities.org/id/metropolitan-district-council/walsall,WC85-128,31/10/2017,Economy & Environment,ACCORD HOUSING ASSOCIATION LTD#135,01/10/2017,"193,256.73",66500-GRANTS TO OTHER ORGS,CITY DEAL WELFARE PILOT,Third Party Payments,Revenue
Walsall Council,http://opendatacommunities.org/id/metropolitan-district-council/walsall,WC85-129,31/10/2017,Adult Social Care,ACE CARE AGENCY,03/10/2017,467.87,73372-DOMICILIARY CARE,OP PACKAGE/PLACEMENT COSTS,Third Party Payments,Revenue
Walsall Council,http://opendatacommunities.org/id/metropolitan-district-council/walsall,WC85-130,31/10/2017,Adult Social Care,ACE CARE AGENCY,18/10/2017,485.64,73374-SUPPORTED & OTHER ACCOMMODATION,MH COMMISSIONING,Third Party Payments,Revenue
Walsall Council,http://opendatacommunities.org/id/metropolitan-district-council/walsall,WC85-131,31/10/2017,Adult Social Care,ACE CARE AGENCY,03/10/2017,607.05,73372-DOMICILIARY CARE,MH COMMISSIONING,Third Party Payments,Revenue
Walsall Council,http://opendatacommunities.org/id/metropolitan-district-council/walsall,WC85-132,31/10/2017,Adult Social Care,ACE CARE AGENCY,03/10/2017,819,73372-DOMICILIARY CARE,OP PACKAGE/PLACEMENT COSTS,Third Party Payments,Revenue
Walsall Council,http://opendatacommunities.org/id/metropolitan-district-council/walsall,WC85-133,31/10/2017,Childrens,ACE RADIO CARS,06/10/2017,"2,424.79",52000-WITH DRIVER-HIRE OF VEHICLES,SCHOOL TRANSPORT,Transport,Revenue
Walsall Council,http://opendatacommunities.org/id/metropolitan-district-council/walsall,WC85-134,31/10/2017,Adult Social Care,ACEPAY LTD (COTTAGE NUR HOME),24/10/2017,768.85,73373-RESIDENTIAL & NURSING CARE PLACEMENTS,OP PACKAGE/PLACEMENT COSTS,Third Party Payments,Revenue
Walsall Council,http://opendatacommunities.org/id/metropolitan-district-council/walsall,WC85-135,31/10/2017,Adult Social Care,ACEPAY LTD (COTTAGE NUR HOME),24/10/2017,787.34,73373-RESIDENTIAL & NURSING CARE PLACEMENTS,OP PACKAGE/PLACEMENT COSTS,Third Party Payments,Revenue
Walsall Council,http://opendatacommunities.org/id/metropolitan-district-council/walsall,WC85-136,31/10/2017,Adult Social Care,ACEPAY LTD (COTTAGE NUR HOME),10/10/2017,"1,285.71",73373-RESIDENTIAL & NURSING CARE PLACEMENTS,OP PACKAGE/PLACEMENT COSTS,Third Party Payments,Revenue
Walsall Council,http://opendatacommunities.org/id/metropolitan-district-council/walsall,WC85-137,31/10/2017,Adult Social Care,ACEPAY LTD (COTTAGE NUR HOME),10/10/2017,"1,285.71",73373-RESIDENTIAL & NURSING CARE PLACEMENTS,OP PACKAGE/PLACEMENT COSTS,Third Party Payments,Revenue
Walsall Council,http://opendatacommunities.org/id/metropolitan-district-council/walsall,WC85-138,31/10/2017,Adult Social Care,ACEPAY LTD (COTTAGE NUR HOME),24/10/2017,"1,285.71",73373-RESIDENTIAL & NURSING CARE PLACEMENTS,OP PACKAGE/PLACEMENT COSTS,Third Party Payments,Revenue
Walsall Council,http://opendatacommunities.org/id/metropolitan-district-council/walsall,WC85-139,31/10/2017,Adult Social Care,ACEPAY LTD (COTTAGE NUR HOME),24/10/2017,"1,466.68",73373-RESIDENTIAL & NURSING CARE PLACEMENTS,OP PACKAGE/PLACEMENT COSTS,Third Party Payments,Revenue
Walsall Council,http://opendatacommunities.org/id/metropolitan-district-council/walsall,WC85-140,31/10/2017,Adult Social Care,ACEPAY LTD (COTTAGE NUR HOME),24/10/2017,"1,525.87",73373-RESIDENTIAL & NURSING CARE PLACEMENTS,OP PACKAGE/PLACEMENT COSTS,Third Party Payments,Revenue
Walsall Council,http://opendatacommunities.org/id/metropolitan-district-council/walsall,WC85-141,31/10/2017,Adult Social Care,ACEPAY LTD (COTTAGE NUR HOME),24/10/2017,"1,702.50",73373-RESIDENTIAL & NURSING CARE PLACEMENTS,OP PACKAGE/PLACEMENT COSTS,Third Party Payments,Revenue
Walsall Council,http://opendatacommunities.org/id/metropolitan-district-council/walsall,WC85-142,31/10/2017,Adult Social Care,ACEPAY LTD (COTTAGE NUR HOME),24/10/2017,"1,833.42",73373-RESIDENTIAL & NURSING CARE PLACEMENTS,OP PACKAGE/PLACEMENT COSTS,Third Party Payments,Revenue
Walsall Council,http://opendatacommunities.org/id/metropolitan-district-council/walsall,WC85-143,31/10/2017,Adult Social Care,ACEPAY LTD (COTTAGE NUR HOME),10/10/2017,"2,142.86",73373-RESIDENTIAL & NURSING CARE PLACEMENTS,OP PACKAGE/PLACEMENT COSTS,Third Party Payments,Revenue
Walsall Council,http://opendatacommunities.org/id/metropolitan-district-council/walsall,WC85-144,31/10/2017,Adult Social Care,ACEPAY LTD (COTTAGE NUR HOME),10/10/2017,"2,142.86",73373-RESIDENTIAL & NURSING CARE PLACEMENTS,OP PACKAGE/PLACEMENT COSTS,Third Party Payments,Revenue
Walsall Council,http://opendatacommunities.org/id/metropolitan-district-council/walsall,WC85-145,31/10/2017,Adult Social Care,ACEPAY LTD (COTTAGE NUR HOME),24/10/2017,"2,142.86",73373-RESIDENTIAL & NURSING CARE PLACEMENTS,OP PACKAGE/PLACEMENT COSTS,Third Party Payments,Revenue
Walsall Council,http://opendatacommunities.org/id/metropolitan-district-council/walsall,WC85-146,31/10/2017,Adult Social Care,ACEPAY LTD (COTTAGE NUR HOME),24/10/2017,"2,214.28",73373-RESIDENTIAL & NURSING CARE PLACEMENTS,OP PACKAGE/PLACEMENT COSTS,Third Party Payments,Revenue
Walsall Council,http://opendatacommunities.org/id/metropolitan-district-council/walsall,WC85-147,31/10/2017,Adult Social Care,ACEPAY LTD (COTTAGE NUR HOME),24/10/2017,"2,214.28",73373-RESIDENTIAL & NURSING CARE PLACEMENTS,OP PACKAGE/PLACEMENT COSTS,Third Party Payments,Revenue
Walsall Council,http://opendatacommunities.org/id/metropolitan-district-council/walsall,WC85-148,31/10/2017,Adult Social Care,ACEPAY LTD (COTTAGE NUR HOME),24/10/2017,"2,214.28",73373-RESIDENTIAL & NURSING CARE PLACEMENTS,OP PACKAGE/PLACEMENT COSTS,Third Party Payments,Revenue
Walsall Council,http://opendatacommunities.org/id/metropolitan-district-council/walsall,WC85-149,31/10/2017,Adult Social Care,ACEPAY LTD (COTTAGE NUR HOME),24/10/2017,"2,214.28",73373-RESIDENTIAL & NURSING CARE PLACEMENTS,OP PACKAGE/PLACEMENT COSTS,Third Party Payments,Revenue
Walsall Council,http://opendatacommunities.org/id/metropolitan-district-council/walsall,WC85-150,31/10/2017,Childrens,ACORN ABA LIMITED,01/10/2017,842.5,66502-TOP UP FUNDING -GRANTS TO SCHOOLS,INDEPENDENT PROVIDERS - SPECIAL & AP,Third Party Payments,Revenue
Walsall Council,http://opendatacommunities.org/id/metropolitan-district-council/walsall,WC85-151,31/10/2017,Childrens,ACORN ABA LIMITED,16/10/2017,"1,177.76",66502-TOP UP FUNDING -GRANTS TO SCHOOLS,INDEPENDENT PROVIDERS - SPECIAL & AP,Third Party Payments,Revenue
Walsall Council,http://opendatacommunities.org/id/metropolitan-district-council/walsall,WC85-152,31/10/2017,Childrens,ACORN CARE & EDUCATION LTD (SALES),04/10/2017,"-4,153.84",66502-TOP UP FUNDING -GRANTS TO SCHOOLS,INDEPENDENT PROVIDERS - SPECIAL & AP,Third Party Payments,Revenue
Walsall Council,http://opendatacommunities.org/id/metropolitan-district-council/walsall,WC85-153,31/10/2017,Childrens,ACORN CARE & EDUCATION LTD (SALES),03/10/2017,"15,576.92",66502-TOP UP FUNDING -GRANTS TO SCHOOLS,INDEPENDENT PROVIDERS - SPECIAL & AP,Third Party Payments,Revenue
Walsall Council,http://opendatacommunities.org/id/metropolitan-district-council/walsall,WC85-154,31/10/2017,Childrens,ACORN CHILDREN'S HOME,09/10/2017,"15,200.00",74036-EXTERNAL RESIDENTIAL CARE-OTH AGENCY PROVISION,INDEPENDENT RESIDENTIAL HOMES,Third Party Payments,Revenue
Walsall Council,http://opendatacommunities.org/id/metropolitan-district-council/walsall,WC85-155,31/10/2017,Adult Social Care,ACORN REST HOME,04/10/2017,"1,656.00",73373-RESIDENTIAL & NURSING CARE PLACEMENTS,OP PACKAGE/PLACEMENT COSTS,Third Party Payments,Revenue
Walsall Council,http://opendatacommunities.org/id/metropolitan-district-council/walsall,WC85-156,31/10/2017,Adult Social Care,ACORN REST HOME,24/10/2017,"1,656.00",73373-RESIDENTIAL & NURSING CARE PLACEMENTS,OP PACKAGE/PLACEMENT COSTS,Third Party Payments,Revenue
Walsall Council,http://opendatacommunities.org/id/metropolitan-district-council/walsall,WC85-157,31/10/2017,Childrens,ACORNS CHILDRENS HOSPICE TRUST,04/10/2017,750,63000-PROFESSIONAL FEES AND SERVICES,DIRECTLY COMMISSIONED NURSING SERVICES,Supplies & Services,Revenue
Walsall Council,http://opendatacommunities.org/id/metropolitan-district-council/walsall,WC85-158,31/10/2017,Childrens,ACORNS CHILDRENS HOSPICE TRUST,12/10/2017,750,63000-PROFESSIONAL FEES AND SERVICES,DIRECTLY COMMISSIONED NURSING SERVICES,Supplies & Services,Revenue
Walsall Council,http://opendatacommunities.org/id/metropolitan-district-council/walsall,WC85-159,31/10/2017,Economy & Environment,ACTION MIDLANDS LTD,04/10/2017,150,63000-PROFESSIONAL FEES AND SERVICES,YEI (IMPACT) PROGRAMME,Supplies & Services,Revenue
Walsall Council,http://opendatacommunities.org/id/metropolitan-district-council/walsall,WC85-160,31/10/2017,Economy & Environment,ACTION MIDLANDS LTD,04/10/2017,150,63000-PROFESSIONAL FEES AND SERVICES,YEI ESF FUNDING,Supplies & Services,Revenue
Walsall Council,http://opendatacommunities.org/id/metropolitan-district-council/walsall,WC85-161,31/10/2017,Economy & Environment,ACTION MIDLANDS LTD,04/10/2017,150,63000-PROFESSIONAL FEES AND SERVICES,YEI (IMPACT) PROGRAMME,Supplies & Services,Revenue
Walsall Council,http://opendatacommunities.org/id/metropolitan-district-council/walsall,WC85-162,31/10/2017,Economy & Environment,ACTION MIDLANDS LTD,04/10/2017,150,63000-PROFESSIONAL FEES AND SERVICES,YEI ESF FUNDING,Supplies & Services,Revenue
Walsall Council,http://opendatacommunities.org/id/metropolitan-district-council/walsall,WC85-163,31/10/2017,Economy & Environment,ACTION MIDLANDS LTD,04/10/2017,150,63000-PROFESSIONAL FEES AND SERVICES,YEI (IMPACT) PROGRAMME,Supplies & Services,Revenue
Walsall Council,http://opendatacommunities.org/id/metropolitan-district-council/walsall,WC85-164,31/10/2017,Economy & Environment,ACTION MIDLANDS LTD,04/10/2017,150,63000-PROFESSIONAL FEES AND SERVICES,YEI ESF FUNDING,Supplies & Services,Revenue
Walsall Council,http://opendatacommunities.org/id/metropolitan-district-council/walsall,WC85-165,31/10/2017,Economy & Environment,ACTION MIDLANDS LTD,10/10/2017,150,63000-PROFESSIONAL FEES AND SERVICES,YEI (IMPACT) PROGRAMME,Supplies & Services,Revenue
Walsall Council,http://opendatacommunities.org/id/metropolitan-district-council/walsall,WC85-166,31/10/2017,Economy & Environment,ACTION MIDLANDS LTD,10/10/2017,150,63000-PROFESSIONAL FEES AND SERVICES,YEI ESF FUNDING,Supplies & Services,Revenue
Walsall Council,http://opendatacommunities.org/id/metropolitan-district-council/walsall,WC85-167,31/10/2017,Economy & Environment,ACTION MIDLANDS LTD,24/10/2017,150,63000-PROFESSIONAL FEES AND SERVICES,YEI (IMPACT) PROGRAMME,Supplies & Services,Revenue
Walsall Council,http://opendatacommunities.org/id/metropolitan-district-council/walsall,WC85-168,31/10/2017,Economy & Environment,ACTION MIDLANDS LTD,24/10/2017,150,63000-PROFESSIONAL FEES AND SERVICES,YEI ESF FUNDING,Supplies & Services,Revenue
Walsall Council,http://opendatacommunities.org/id/metropolitan-district-council/walsall,WC85-169,31/10/2017,Economy & Environment,ACTION MIDLANDS LTD,24/10/2017,150,63000-PROFESSIONAL FEES AND SERVICES,YEI (IMPACT) PROGRAMME,Supplies & Services,Revenue
Walsall Council,http://opendatacommunities.org/id/metropolitan-district-council/walsall,WC85-170,31/10/2017,Economy & Environment,ACTION MIDLANDS LTD,24/10/2017,150,63000-PROFESSIONAL FEES AND SERVICES,YEI ESF FUNDING,Supplies & Services,Revenue
Walsall Council,http://opendatacommunities.org/id/metropolitan-district-council/walsall,WC85-171,31/10/2017,Economy & Environment,ACTION MIDLANDS LTD,01/10/2017,300,63000-PROFESSIONAL FEES AND SERVICES,YEI (IMPACT) PROGRAMME,Supplies & Services,Revenue
Walsall Council,http://opendatacommunities.org/id/metropolitan-district-council/walsall,WC85-172,31/10/2017,Economy & Environment,ACTION MIDLANDS LTD,01/10/2017,300,63000-PROFESSIONAL FEES AND SERVICES,YEI ESF FUNDING,Supplies & Services,Revenue
Walsall Council,http://opendatacommunities.org/id/metropolitan-district-council/walsall,WC85-173,31/10/2017,Economy & Environment,ACTION MIDLANDS LTD,12/10/2017,300,63000-PROFESSIONAL FEES AND SERVICES,YEI (IMPACT) PROGRAMME,Supplies & Services,Revenue
Walsall Council,http://opendatacommunities.org/id/metropolitan-district-council/walsall,WC85-174,31/10/2017,Economy & Environment,ACTION MIDLANDS LTD,12/10/2017,300,63000-PROFESSIONAL FEES AND SERVICES,YEI ESF FUNDING,Supplies & Services,Revenue
Walsall Council,http://opendatacommunities.org/id/metropolitan-district-council/walsall,WC85-175,31/10/2017,Economy & Environment,ACTION MIDLANDS LTD,01/10/2017,450,63000-PROFESSIONAL FEES AND SERVICES,YEI (IMPACT) PROGRAMME,Supplies & Services,Revenue
Walsall Council,http://opendatacommunities.org/id/metropolitan-district-council/walsall,WC85-176,31/10/2017,Economy & Environment,ACTION MIDLANDS LTD,01/10/2017,450,63000-PROFESSIONAL FEES AND SERVICES,YEI ESF FUNDING,Supplies & Services,Revenue
Walsall Council,http://opendatacommunities.org/id/metropolitan-district-council/walsall,WC85-177,31/10/2017,Economy & Environment,ACTION MIDLANDS LTD,04/10/2017,450,63000-PROFESSIONAL FEES AND SERVICES,YEI (IMPACT) PROGRAMME,Supplies & Services,Revenue
Walsall Council,http://opendatacommunities.org/id/metropolitan-district-council/walsall,WC85-178,31/10/2017,Economy & Environment,ACTION MIDLANDS LTD,04/10/2017,450,63000-PROFESSIONAL FEES AND SERVICES,YEI ESF FUNDING,Supplies & Services,Revenue
Walsall Council,http://opendatacommunities.org/id/metropolitan-district-council/walsall,WC85-179,31/10/2017,Adult Social Care,ACTION ON HEARING LOSS,18/10/2017,767.58,60000-FURNITURE & EQUIPMENT,TELE-HEALTHCARE,Supplies & Services,Revenue
Walsall Council,http://opendatacommunities.org/id/metropolitan-district-council/walsall,WC85-180,31/10/2017,Adult Social Care,ACTION ON HEARING LOSS,04/10/2017,"1,008.00",73374-SUPPORTED & OTHER ACCOMMODATION,MH COMMISSIONING,Third Party Payments,Revenue
Walsall Council,http://opendatacommunities.org/id/metropolitan-district-council/walsall,WC85-181,31/10/2017,Adult Social Care,ACTION ON HEARING LOSS,04/10/2017,"1,080.00",73374-SUPPORTED & OTHER ACCOMMODATION,MH COMMISSIONING,Third Party Payments,Revenue
Walsall Council,http://opendatacommunities.org/id/metropolitan-district-council/walsall,WC85-182,31/10/2017,Adult Social Care,ACTION ON HEARING LOSS,20/10/2017,"1,429.02",60013-DISABLED-EQUIPMENT,SENSORY/DEAF SERVICES,Supplies & Services,Revenue
Walsall Council,http://opendatacommunities.org/id/metropolitan-district-council/walsall,WC85-183,31/10/2017,Childrens,ACTIVATING CREATIVE TALENT CIC,02/10/2017,"2,496.43",66500-GRANTS TO OTHER ORGS,TARGETED YOUTH WORK - COMMISSIONED,Third Party Payments,Revenue
Walsall Council,http://opendatacommunities.org/id/metropolitan-district-council/walsall,WC85-184,31/10/2017,Childrens,ACTIVATING CREATIVE TALENT CIC,06/10/2017,"2,496.43",66500-GRANTS TO OTHER ORGS,TARGETED YOUTH WORK - COMMISSIONED,Third Party Payments,Revenue
Walsall Council,http://opendatacommunities.org/id/metropolitan-district-council/walsall,WC85-185,31/10/2017,Adult Social Care,ACTON BANKS LTD,02/10/2017,670.41,34305-AGENCY STAFF-EMPLOYEES,GOSCOTE,Employees,Revenue
Walsall Council,http://opendatacommunities.org/id/metropolitan-district-council/walsall,WC85-186,31/10/2017,Adult Social Care,ACTON BANKS LTD,04/10/2017,825.12,34305-AGENCY STAFF-EMPLOYEES,GOSCOTE,Employees,Revenue
Walsall Council,http://opendatacommunities.org/id/metropolitan-district-council/walsall,WC85-187,31/10/2017,Adult Social Care,ACTON BANKS LTD,16/10/2017,825.12,34305-AGENCY STAFF-EMPLOYEES,GOSCOTE,Employees,Revenue
Walsall Council,http://opendatacommunities.org/id/metropolitan-district-council/walsall,WC85-188,31/10/2017,Adult Social Care,ACTON BANKS LTD,27/10/2017,825.12,34305-AGENCY STAFF-EMPLOYEES,GOSCOTE,Employees,Revenue
Walsall Council,http://opendatacommunities.org/id/metropolitan-district-council/walsall,WC85-189,31/10/2017,Adult Social Care,ACTON BANKS LTD,02/10/2017,848.04,34305-AGENCY STAFF-EMPLOYEES,GOSCOTE,Employees,Revenue
Walsall Council,http://opendatacommunities.org/id/metropolitan-district-council/walsall,WC85-190,31/10/2017,Adult Social Care,ACTON BANKS LTD,06/10/2017,848.04,34305-AGENCY STAFF-EMPLOYEES,GOSCOTE,Employees,Revenue
Walsall Council,http://opendatacommunities.org/id/metropolitan-district-council/walsall,WC85-191,31/10/2017,Adult Social Care,ACTON BANKS LTD,27/10/2017,"1,168.93",34305-AGENCY STAFF-EMPLOYEES,GOSCOTE,Employees,Revenue
Walsall Council,http://opendatacommunities.org/id/metropolitan-district-council/walsall,WC85-192,31/10/2017,Adult Social Care,ACTON BANKS LTD,04/10/2017,"1,998.29",73025-PROFESSIONAL SERVICES-PRIV CONTRACTOR & OTHER AGENCIES,REABLEMENT TEAM - HOLLY BANK,Third Party Payments,Revenue
Walsall Council,http://opendatacommunities.org/id/metropolitan-district-council/walsall,WC85-193,31/10/2017,Adult Social Care,ACTON BANKS LTD,11/10/2017,"2,142.36",73025-PROFESSIONAL SERVICES-PRIV CONTRACTOR & OTHER AGENCIES,REABLEMENT TEAM - HOLLY BANK,Third Party Payments,Revenue
Walsall Council,http://opendatacommunities.org/id/metropolitan-district-council/walsall,WC85-194,31/10/2017,Adult Social Care,ACTON BANKS LTD,19/10/2017,"2,413.11",73025-PROFESSIONAL SERVICES-PRIV CONTRACTOR & OTHER AGENCIES,REABLEMENT TEAM - HOLLY BANK,Third Party Payments,Revenue
Walsall Council,http://opendatacommunities.org/id/metropolitan-district-council/walsall,WC85-195,31/10/2017,Adult Social Care,ACTON BANKS LTD,10/10/2017,"2,794.98",73025-PROFESSIONAL SERVICES-PRIV CONTRACTOR & OTHER AGENCIES,REABLEMENT TEAM - HOLLY BANK,Third Party Payments,Revenue
Walsall Council,http://opendatacommunities.org/id/metropolitan-district-council/walsall,WC85-196,31/10/2017,Adult Social Care,ACTON BANKS LTD,19/10/2017,"2,930.56",73025-PROFESSIONAL SERVICES-PRIV CONTRACTOR & OTHER AGENCIES,REABLEMENT TEAM - HOLLY BANK,Third Party Payments,Revenue
Walsall Council,http://opendatacommunities.org/id/metropolitan-district-council/walsall,WC85-197,31/10/2017,Adult Social Care,ACTON BANKS LTD,03/10/2017,"4,151.25",73025-PROFESSIONAL SERVICES-PRIV CONTRACTOR & OTHER AGENCIES,REABLEMENT TEAM - HOLLY BANK,Third Party Payments,Revenue
Walsall Council,http://opendatacommunities.org/id/metropolitan-district-council/walsall,WC85-198,31/10/2017,Adult Social Care,REDACTED,06/10/2017,485.24,76422-DIRECT PAYMENTS TO SOCIAL SERVICES CLIENTS,OP PACKAGE/PLACEMENT COSTS,Transfer Payments,Revenue
Walsall Council,http://opendatacommunities.org/id/metropolitan-district-council/walsall,WC85-199,31/10/2017,Economy & Environment,REDACTED,19/10/2017,250,60500-GENERAL MATERIALS,NAG - ARTISTS RESIDENCIES,Supplies & Services,Revenue
Walsall Council,http://opendatacommunities.org/id/metropolitan-district-council/walsall,WC85-200,31/10/2017,Economy & Environment,REDACTED,19/10/2017,"1,200.00",63000-PROFESSIONAL FEES AND SERVICES,NAG - ARTISTS RESIDENCIES,Supplies & Services,Revenue
Walsall Council,http://opendatacommunities.org/id/metropolitan-district-council/walsall,WC85-201,31/10/2017,Adult Social Care,REDACTED,06/10/2017,448.6,76422-DIRECT PAYMENTS TO SOCIAL SERVICES CLIENTS,LD PACKAGE/PLACEMENT COSTS,Transfer Payments,Revenue
Walsall Council,http://opendatacommunities.org/id/metropolitan-district-council/walsall,WC85-202,31/10/2017,Adult Social Care,REDACTED,06/10/2017,964,76422-DIRECT PAYMENTS TO SOCIAL SERVICES CLIENTS,OP PACKAGE/PLACEMENT COSTS,Transfer Payments,Revenue
Walsall Council,http://opendatacommunities.org/id/metropolitan-district-council/walsall,WC85-203,31/10/2017,Childrens,REDACTED,24/10/2017,333.12,74510-RESIDENTS ORDERS,ADOPTION ALLOWANCES,Third Party Payments,Revenue
Walsall Council,http://opendatacommunities.org/id/metropolitan-district-council/walsall,WC85-204,31/10/2017,Childrens,REDACTED,24/10/2017,361.12,74510-RESIDENTS ORDERS,ADOPTION ALLOWANCES,Third Party Payments,Revenue
Walsall Council,http://opendatacommunities.org/id/metropolitan-district-council/walsall,WC85-205,31/10/2017,Economy & Environment,ADS ELECTRICAL & HIGHWAY SERVICES LTD,25/10/2017,"1,200.00",63000-PROFESSIONAL FEES AND SERVICES,FESTIVE DECORATIONS,Supplies & Services,Revenue
Walsall Council,http://opendatacommunities.org/id/metropolitan-district-council/walsall,WC85-206,31/10/2017,Adult Social Care,ADVANCE HEALTH CARE (UK) LTD,02/10/2017,273,73019-PSE'S-PRIV CONTRACTOR FEES,TRANSITIONAL CARE SUPPORT TEAM,Third Party Payments,Revenue
Walsall Council,http://opendatacommunities.org/id/metropolitan-district-council/walsall,WC85-207,31/10/2017,Adult Social Care,ADVANCE HEALTH CARE (UK) LTD,11/10/2017,273,73019-PSE'S-PRIV CONTRACTOR FEES,TRANSITIONAL CARE SUPPORT TEAM,Third Party Payments,Revenue
Walsall Council,http://opendatacommunities.org/id/metropolitan-district-council/walsall,WC85-208,31/10/2017,Adult Social Care,ADVANCE HEALTH CARE (UK) LTD,11/10/2017,273,73019-PSE'S-PRIV CONTRACTOR FEES,TRANSITIONAL CARE SUPPORT TEAM,Third Party Payments,Revenue
Walsall Council,http://opendatacommunities.org/id/metropolitan-district-council/walsall,WC85-209,31/10/2017,Adult Social Care,ADVANCE HEALTH CARE (UK) LTD,25/10/2017,288.75,73019-PSE'S-PRIV CONTRACTOR FEES,TRANSITIONAL CARE SUPPORT TEAM,Third Party Payments,Revenue
Walsall Council,http://opendatacommunities.org/id/metropolitan-district-council/walsall,WC85-210,31/10/2017,Adult Social Care,ADVANCE HEALTH CARE (UK) LTD,25/10/2017,288.75,73019-PSE'S-PRIV CONTRACTOR FEES,TRANSITIONAL CARE SUPPORT TEAM,Third Party Payments,Revenue
Walsall Council,http://opendatacommunities.org/id/metropolitan-district-council/walsall,WC85-211,31/10/2017,Adult Social Care,ADVANCE HEALTH CARE (UK) LTD,02/10/2017,438.39,73025-PROFESSIONAL SERVICES-PRIV CONTRACTOR & OTHER AGENCIES,COMMUNITY INTERMEDIATE CARE,Third Party Payments,Revenue
Walsall Council,http://opendatacommunities.org/id/metropolitan-district-council/walsall,WC85-212,31/10/2017,Adult Social Care,ADVANCE HEALTH CARE (UK) LTD,04/10/2017,486.66,73025-PROFESSIONAL SERVICES-PRIV CONTRACTOR & OTHER AGENCIES,COMMUNITY INTERMEDIATE CARE,Third Party Payments,Revenue
Walsall Council,http://opendatacommunities.org/id/metropolitan-district-council/walsall,WC85-213,31/10/2017,Adult Social Care,ADVANCE HEALTH CARE (UK) LTD,01/10/2017,615.7,73025-PROFESSIONAL SERVICES-PRIV CONTRACTOR & OTHER AGENCIES,ACM MANAGEMENT TEAM,Third Party Payments,Revenue
Walsall Council,http://opendatacommunities.org/id/metropolitan-district-council/walsall,WC85-214,31/10/2017,Adult Social Care,ADVANCE HEALTH CARE (UK) LTD,06/10/2017,"1,126.60",73025-PROFESSIONAL SERVICES-PRIV CONTRACTOR & OTHER AGENCIES,ACM MANAGEMENT TEAM,Third Party Payments,Revenue
Walsall Council,http://opendatacommunities.org/id/metropolitan-district-council/walsall,WC85-215,31/10/2017,Adult Social Care,ADVANCE HEALTH CARE (UK) LTD,01/10/2017,"5,790.20",73025-PROFESSIONAL SERVICES-PRIV CONTRACTOR & OTHER AGENCIES,COMMUNITY INTERMEDIATE CARE,Third Party Payments,Revenue
Walsall Council,http://opendatacommunities.org/id/metropolitan-district-council/walsall,WC85-216,31/10/2017,Adult Social Care,ADVANCE HEALTH CARE (UK) LTD,03/10/2017,"6,075.13",73025-PROFESSIONAL SERVICES-PRIV CONTRACTOR & OTHER AGENCIES,COMMUNITY INTERMEDIATE CARE,Third Party Payments,Revenue
Walsall Council,http://opendatacommunities.org/id/metropolitan-district-council/walsall,WC85-217,31/10/2017,Adult Social Care,ADVANCE HEALTH CARE (UK) LTD,04/10/2017,"6,127.53",73025-PROFESSIONAL SERVICES-PRIV CONTRACTOR & OTHER AGENCIES,COMMUNITY INTERMEDIATE CARE,Third Party Payments,Revenue
Walsall Council,http://opendatacommunities.org/id/metropolitan-district-council/walsall,WC85-218,31/10/2017,Adult Social Care,ADVANCE HEALTH CARE (UK) LTD,20/10/2017,"6,362.54",73025-PROFESSIONAL SERVICES-PRIV CONTRACTOR & OTHER AGENCIES,COMMUNITY INTERMEDIATE CARE,Third Party Payments,Revenue
Walsall Council,http://opendatacommunities.org/id/metropolitan-district-council/walsall,WC85-219,31/10/2017,Adult Social Care,ADVANCE HEALTH CARE (UK) LTD,11/10/2017,"7,160.04",73025-PROFESSIONAL SERVICES-PRIV CONTRACTOR & OTHER AGENCIES,COMMUNITY INTERMEDIATE CARE,Third Party Payments,Revenue
Walsall Council,http://opendatacommunities.org/id/metropolitan-district-council/walsall,WC85-220,31/10/2017,Adult Social Care,ADVANCE HEALTH CARE (UK) LTD,27/10/2017,"7,345.66",73025-PROFESSIONAL SERVICES-PRIV CONTRACTOR & OTHER AGENCIES,COMMUNITY INTERMEDIATE CARE,Third Party Payments,Revenue
Walsall Council,http://opendatacommunities.org/id/metropolitan-district-council/walsall,WC85-221,31/10/2017,Adult Social Care,ADVANCE HEALTH CARE (UK) LTD,11/10/2017,"26,308.64",73372-DOMICILIARY CARE,OP PACKAGE/PLACEMENT COSTS,Third Party Payments,Revenue
Walsall Council,http://opendatacommunities.org/id/metropolitan-district-council/walsall,WC85-222,31/10/2017,Adult Social Care,ADVANCE HEALTH CARE (UK) LTD,11/10/2017,"75,635.26",73372-DOMICILIARY CARE,OP PACKAGE/PLACEMENT COSTS,Third Party Payments,Revenue
Walsall Council,http://opendatacommunities.org/id/metropolitan-district-council/walsall,WC85-223,31/10/2017,Childrens,ADVANCED CONTRACTS (MIDLANDS) LTD,03/10/2017,"3,012.00",01006-SITE WORKS MAIN CONTRACTORS,LITTLE BLOXWICH CE DEV FORMULA CAPITAL,Capital,Capital
Walsall Council,http://opendatacommunities.org/id/metropolitan-district-council/walsall,WC85-224,31/10/2017,Childrens,ADVANCED CONTRACTS (MIDLANDS) LTD,18/10/2017,"20,866.00",01006-SITE WORKS MAIN CONTRACTORS,CFR 1137 BEACON PRIMARY EXTENSION,Capital,Capital
Walsall Council,http://opendatacommunities.org/id/metropolitan-district-council/walsall,WC85-225,31/10/2017,Change and Governance,ADVANCED DIGITAL IMAGING,18/10/2017,635.2,60500-GENERAL MATERIALS,PRINTING SERVICES,Supplies & Services,Revenue
Walsall Council,http://opendatacommunities.org/id/metropolitan-district-council/walsall,WC85-226,31/10/2017,Economy & Environment,AEBI SCHMIDT UK LIMITED,10/10/2017,323.64,60500-GENERAL MATERIALS,FLEET,Supplies & Services,Revenue
Walsall Council,http://opendatacommunities.org/id/metropolitan-district-council/walsall,WC85-227,31/10/2017,Economy & Environment,AEBI SCHMIDT UK LIMITED,10/10/2017,899.86,60500-GENERAL MATERIALS,FLEET,Supplies & Services,Revenue
Walsall Council,http://opendatacommunities.org/id/metropolitan-district-council/walsall,WC85-228,31/10/2017,Economy & Environment,AECOM LIMITED,19/10/2017,462.5,01009-SITE WORKS - OTHER CONTRACTORS,CFR 1198 HEATH ROAD DARLASTON (MIDLAND ROAD TO KENDRICKS ROAD),Capital,Capital
Walsall Council,http://opendatacommunities.org/id/metropolitan-district-council/walsall,WC85-229,31/10/2017,Economy & Environment,AECOM LIMITED,19/10/2017,462.5,01009-SITE WORKS - OTHER CONTRACTORS,CFR 1198 MEASURES TO ENCOURAGE CYCLING PELSALL TO BROWNHILLS,Capital,Capital
Walsall Council,http://opendatacommunities.org/id/metropolitan-district-council/walsall,WC85-230,31/10/2017,Economy & Environment,AECOM LIMITED,09/10/2017,"8,507.25",01001-OTHER CONSULTANTS FEES,CFR 876 DARLASTON DSDA,Capital,Capital
Walsall Council,http://opendatacommunities.org/id/metropolitan-district-council/walsall,WC85-231,31/10/2017,Childrens,AFTER ADOPTION,27/10/2017,"8,450.00",63000-PROFESSIONAL FEES AND SERVICES,ADOPTION TEAM,Supplies & Services,Revenue
Walsall Council,http://opendatacommunities.org/id/metropolitan-district-council/walsall,WC85-232,31/10/2017,Economy & Environment,AGE UK WALSALL,09/10/2017,"7,437.50",63253-PAYMENT TO CONTRACTOR,MENTAL HEALTH,Third Party Payments,Revenue
Walsall Council,http://opendatacommunities.org/id/metropolitan-district-council/walsall,WC85-233,31/10/2017,Adult Social Care,AGE UK WALSALL,01/10/2017,"8,942.50",76423-DIRECT PAYMENTS SUPPORT,DIRECT PAYMENT SUPPORT ORGANISATIONS,Transfer Payments,Revenue
Walsall Council,http://opendatacommunities.org/id/metropolitan-district-council/walsall,WC85-234,31/10/2017,Economy & Environment,AGE UK WALSALL,09/10/2017,"11,250.00",63000-PROFESSIONAL FEES AND SERVICES,FALLS PREVENTION,Supplies & Services,Revenue
Walsall Council,http://opendatacommunities.org/id/metropolitan-district-council/walsall,WC85-235,31/10/2017,Adult Social Care,AGINCARE UK LTD,06/10/2017,"1,447.68",73372-DOMICILIARY CARE,OP PACKAGE/PLACEMENT COSTS,Third Party Payments,Revenue
Walsall Council,http://opendatacommunities.org/id/metropolitan-district-council/walsall,WC85-236,31/10/2017,Adult Social Care,AGINCARE UK LTD,06/10/2017,"1,559.04",73372-DOMICILIARY CARE,OP PACKAGE/PLACEMENT COSTS,Third Party Payments,Revenue
Walsall Council,http://opendatacommunities.org/id/metropolitan-district-council/walsall,WC85-237,31/10/2017,Adult Social Care,AGINCARE UK LTD,06/10/2017,"1,559.04",73372-DOMICILIARY CARE,OP PACKAGE/PLACEMENT COSTS,Third Party Payments,Revenue
Walsall Council,http://opendatacommunities.org/id/metropolitan-district-council/walsall,WC85-238,31/10/2017,Adult Social Care,AGINCARE UK LTD,06/10/2017,"1,559.04",73372-DOMICILIARY CARE,OP PACKAGE/PLACEMENT COSTS,Third Party Payments,Revenue
Walsall Council,http://opendatacommunities.org/id/metropolitan-district-council/walsall,WC85-239,31/10/2017,Adult Social Care,AGINCARE UK LTD,06/10/2017,"1,559.04",73372-DOMICILIARY CARE,OP PACKAGE/PLACEMENT COSTS,Third Party Payments,Revenue
Walsall Council,http://opendatacommunities.org/id/metropolitan-district-council/walsall,WC85-240,31/10/2017,Adult Social Care,AGINCARE UK LTD,09/10/2017,"1,559.04",73372-DOMICILIARY CARE,OP PACKAGE/PLACEMENT COSTS,Third Party Payments,Revenue
Walsall Council,http://opendatacommunities.org/id/metropolitan-district-council/walsall,WC85-241,31/10/2017,Adult Social Care,AGINCARE UK LTD,27/10/2017,"1,559.04",73372-DOMICILIARY CARE,OP PACKAGE/PLACEMENT COSTS,Third Party Payments,Revenue
Walsall Council,http://opendatacommunities.org/id/metropolitan-district-council/walsall,WC85-242,31/10/2017,Adult Social Care,REDACTED,06/10/2017,"1,882.00",76422-DIRECT PAYMENTS TO SOCIAL SERVICES CLIENTS,LD PACKAGE/PLACEMENT COSTS,Transfer Payments,Revenue
Walsall Council,http://opendatacommunities.org/id/metropolitan-district-council/walsall,WC85-243,31/10/2017,Adult Social Care,REDACTED,06/10/2017,914.2,76422-DIRECT PAYMENTS TO SOCIAL SERVICES CLIENTS,OP PACKAGE/PLACEMENT COSTS,Transfer Payments,Revenue
Walsall Council,http://opendatacommunities.org/id/metropolitan-district-council/walsall,WC85-244,31/10/2017,Childrens,AJK TRAVEL,06/10/2017,"22,719.24",52000-WITH DRIVER-HIRE OF VEHICLES,SCHOOL TRANSPORT,Transport,Revenue
Walsall Council,http://opendatacommunities.org/id/metropolitan-district-council/walsall,WC85-245,31/10/2017,Adult Social Care,REDACTED,06/10/2017,728,76422-DIRECT PAYMENTS TO SOCIAL SERVICES CLIENTS,OP PACKAGE/PLACEMENT COSTS,Transfer Payments,Revenue
Walsall Council,http://opendatacommunities.org/id/metropolitan-district-council/walsall,WC85-246,31/10/2017,Economy & Environment,ALBATROSS CONSULTANCY LIMITED,09/10/2017,"2,125.00",73014-LEGAL FEES-PRIV CONTRACTOR FEES,CEMETERIES CENTRAL ADMINISTRATION,Third Party Payments,Revenue
Walsall Council,http://opendatacommunities.org/id/metropolitan-district-council/walsall,WC85-247,31/10/2017,Childrens,ALBRIGHTON CARE LTD,09/10/2017,"9,980.00",74036-EXTERNAL RESIDENTIAL CARE-OTH AGENCY PROVISION,INDEPENDENT RESIDENTIAL HOMES,Third Party Payments,Revenue
Walsall Council,http://opendatacommunities.org/id/metropolitan-district-council/walsall,WC85-248,31/10/2017,Childrens,ALBRIGHTON CARE LTD,09/10/2017,"11,295.00",74036-EXTERNAL RESIDENTIAL CARE-OTH AGENCY PROVISION,INDEPENDENT RESIDENTIAL HOMES,Third Party Payments,Revenue
Walsall Council,http://opendatacommunities.org/id/metropolitan-district-council/walsall,WC85-249,31/10/2017,Economy & Environment,ALDERCROSS LIMITED,04/10/2017,475,64001-COURSE/CONFERENCE EXPENSES,REGENERATION MANAGEMENT,Supplies & Services,Revenue
Walsall Council,http://opendatacommunities.org/id/metropolitan-district-council/walsall,WC85-250,31/10/2017,Adult Social Care,ALDERGROVE MANOR LTD,04/10/2017,"1,839.68",73373-RESIDENTIAL & NURSING CARE PLACEMENTS,MH COMMISSIONING,Third Party Payments,Revenue
Walsall Council,http://opendatacommunities.org/id/metropolitan-district-council/walsall,WC85-251,31/10/2017,Adult Social Care,ALDERGROVE MANOR LTD,04/10/2017,"2,020.20",73373-RESIDENTIAL & NURSING CARE PLACEMENTS,OP PACKAGE/PLACEMENT COSTS,Third Party Payments,Revenue
Walsall Council,http://opendatacommunities.org/id/metropolitan-district-council/walsall,WC85-252,31/10/2017,Childrens,ALDRIDGE & BARONS LIMITED,06/10/2017,430,52000-WITH DRIVER-HIRE OF VEHICLES,SCHOOL TRANSPORT,Transport,Revenue
Walsall Council,http://opendatacommunities.org/id/metropolitan-district-council/walsall,WC85-253,31/10/2017,Childrens,ALDRIDGE & BARONS LIMITED,30/10/2017,"2,688.70",52000-WITH DRIVER-HIRE OF VEHICLES,SCHOOL TRANSPORT,Transport,Revenue
Walsall Council,http://opendatacommunities.org/id/metropolitan-district-council/walsall,WC85-254,31/10/2017,Childrens,ALDRIDGE & BARONS LIMITED,30/10/2017,"19,347.80",52000-WITH DRIVER-HIRE OF VEHICLES,SCHOOL TRANSPORT,Transport,Revenue
Walsall Council,http://opendatacommunities.org/id/metropolitan-district-council/walsall,WC85-255,31/10/2017,Childrens,ALDRIDGE & BARONS LIMITED,30/10/2017,"19,734.25",52000-WITH DRIVER-HIRE OF VEHICLES,SCHOOL TRANSPORT,Transport,Revenue
Walsall Council,http://opendatacommunities.org/id/metropolitan-district-council/walsall,WC85-256,31/10/2017,Economy & Environment,ALDRIDGE SHED,20/10/2017,625,63253-PAYMENT TO CONTRACTOR,MENTAL HEALTH,Third Party Payments,Revenue
Walsall Council,http://opendatacommunities.org/id/metropolitan-district-council/walsall,WC85-257,31/10/2017,Adult Social Care,REDACTED,06/10/2017,"1,204.00",76422-DIRECT PAYMENTS TO SOCIAL SERVICES CLIENTS,PD PACKAGE/PLACEMENT COSTS,Transfer Payments,Revenue
Walsall Council,http://opendatacommunities.org/id/metropolitan-district-council/walsall,WC85-258,31/10/2017,Childrens,ALEXANDER JAMES ESTATE AGENTS,02/10/2017,"1,490.00",76010-ACCOMMODATION AND RELATED COSTS-ASSISTANCE TO S/S CLIENTS,SAFEGUARDING & FAMILY SUPPORT,Transfer Payments,Revenue
Walsall Council,http://opendatacommunities.org/id/metropolitan-district-council/walsall,WC85-259,31/10/2017,Adult Social Care,ALEXANDRA HOUSE CARE SERVICES LTD T/A STONEBRIDGE NURSING HOME,10/10/2017,"7,117.44",73373-RESIDENTIAL & NURSING CARE PLACEMENTS,LD PACKAGE/PLACEMENT COSTS,Third Party Payments,Revenue
Walsall Council,http://opendatacommunities.org/id/metropolitan-district-council/walsall,WC85-260,31/10/2017,Childrens,REDACTED,06/10/2017,582.66,76422-DIRECT PAYMENTS TO SOCIAL SERVICES CLIENTS,FAMILY SUPPORT - DIRECT PAYMENTS,Transfer Payments,Revenue
Walsall Council,http://opendatacommunities.org/id/metropolitan-district-council/walsall,WC85-261,31/10/2017,Childrens,REDACTED,06/10/2017,288,76422-DIRECT PAYMENTS TO SOCIAL SERVICES CLIENTS,FAMILY SUPPORT - DIRECT PAYMENTS,Transfer Payments,Revenue
Walsall Council,http://opendatacommunities.org/id/metropolitan-district-council/walsall,WC85-262,31/10/2017,Adult Social Care,REDACTED,06/10/2017,898,76422-DIRECT PAYMENTS TO SOCIAL SERVICES CLIENTS,PD PACKAGE/PLACEMENT COSTS,Transfer Payments,Revenue
Walsall Council,http://opendatacommunities.org/id/metropolitan-district-council/walsall,WC85-263,31/10/2017,Adult Social Care,REDACTED,06/10/2017,612,76422-DIRECT PAYMENTS TO SOCIAL SERVICES CLIENTS,OP PACKAGE/PLACEMENT COSTS,Transfer Payments,Revenue
Walsall Council,http://opendatacommunities.org/id/metropolitan-district-council/walsall,WC85-264,31/10/2017,Adult Social Care,REDACTED,09/10/2017,"1,251.64",73374-SUPPORTED & OTHER ACCOMMODATION,LD PACKAGE/PLACEMENT COSTS,Third Party Payments,Revenue
Walsall Council,http://opendatacommunities.org/id/metropolitan-district-council/walsall,WC85-265,31/10/2017,Adult Social Care,REDACTED,23/10/2017,"1,251.64",73374-SUPPORTED & OTHER ACCOMMODATION,LD PACKAGE/PLACEMENT COSTS,Third Party Payments,Revenue
Walsall Council,http://opendatacommunities.org/id/metropolitan-district-council/walsall,WC85-266,31/10/2017,Childrens,REDACTED,24/10/2017,-486.01,74509-SPECIAL GUARDIANSHIP ORDERS,ADOPTION ALLOWANCES,Transfer Payments,Revenue
Walsall Council,http://opendatacommunities.org/id/metropolitan-district-council/walsall,WC85-267,31/10/2017,Childrens,REDACTED,24/10/2017,656.88,74509-SPECIAL GUARDIANSHIP ORDERS,ADOPTION ALLOWANCES,Transfer Payments,Revenue
Walsall Council,http://opendatacommunities.org/id/metropolitan-district-council/walsall,WC85-268,31/10/2017,Capital Financing,ALLPAY LTD,05/10/2017,"7,361.58",82500-BANK CHARGES-CENTRAL EXPENSES,BANK CHARGES,Supplies & Services,Revenue
Walsall Council,http://opendatacommunities.org/id/metropolitan-district-council/walsall,WC85-269,31/10/2017,Economy & Environment,ALLSORTS OFFICE SUPPLIES LTD,27/10/2017,407,60006-NEW-FURNITURE & EQUIPMENT,REGISTRAR,Supplies & Services,Revenue
Walsall Council,http://opendatacommunities.org/id/metropolitan-district-council/walsall,WC85-270,31/10/2017,Change and Governance,ALLSORTS OFFICE SUPPLIES LTD,02/10/2017,"1,192.00",60006-NEW-FURNITURE & EQUIPMENT,APPLICATIONS,Supplies & Services,Revenue
Walsall Council,http://opendatacommunities.org/id/metropolitan-district-council/walsall,WC85-271,31/10/2017,Change and Governance,ALLSORTS OFFICE SUPPLIES LTD,18/10/2017,"1,560.00",63800-COMPUTER EQUIPMENT AND SUPPLIES,RECHARGEABLE EQUIPMENT,Supplies & Services,Revenue
Walsall Council,http://opendatacommunities.org/id/metropolitan-district-council/walsall,WC85-272,31/10/2017,Adult Social Care,ALMA COURT,03/10/2017,"2,700.00",73374-SUPPORTED & OTHER ACCOMMODATION,OP PACKAGE/PLACEMENT COSTS,Third Party Payments,Revenue
Walsall Council,http://opendatacommunities.org/id/metropolitan-district-council/walsall,WC85-273,31/10/2017,Adult Social Care,ALMA COURT,01/10/2017,"2,790.00",73374-SUPPORTED & OTHER ACCOMMODATION,OP PACKAGE/PLACEMENT COSTS,Third Party Payments,Revenue
Walsall Council,http://opendatacommunities.org/id/metropolitan-district-council/walsall,WC85-274,31/10/2017,Adult Social Care,ALMA COURT,01/10/2017,"2,790.00",73374-SUPPORTED & OTHER ACCOMMODATION,OP PACKAGE/PLACEMENT COSTS,Third Party Payments,Revenue
Walsall Council,http://opendatacommunities.org/id/metropolitan-district-council/walsall,WC85-275,31/10/2017,Adult Social Care,ALMA COURT,17/10/2017,"6,316.87",73373-RESIDENTIAL & NURSING CARE PLACEMENTS,MH COMMISSIONING,Third Party Payments,Revenue
Walsall Council,http://opendatacommunities.org/id/metropolitan-district-council/walsall,WC85-276,31/10/2017,Childrens,ALPHA HAIR DESIGN ACADEMY,01/10/2017,"4,412.00",66502-TOP UP FUNDING -GRANTS TO SCHOOLS,INDEPENDENT PROVIDERS - POST SCHOOL,Third Party Payments,Revenue
Walsall Council,http://opendatacommunities.org/id/metropolitan-district-council/walsall,WC85-277,31/10/2017,Adult Social Care,ALPHA HEALTH CARE LTD,24/10/2017,920,73373-RESIDENTIAL & NURSING CARE PLACEMENTS,OP PACKAGE/PLACEMENT COSTS,Third Party Payments,Revenue
Walsall Council,http://opendatacommunities.org/id/metropolitan-district-council/walsall,WC85-278,31/10/2017,Adult Social Care,ALPHA HEALTH CARE LTD,17/10/2017,"1,656.00",73373-RESIDENTIAL & NURSING CARE PLACEMENTS,OP PACKAGE/PLACEMENT COSTS,Third Party Payments,Revenue
Walsall Council,http://opendatacommunities.org/id/metropolitan-district-council/walsall,WC85-279,31/10/2017,Adult Social Care,ALPHA HEALTH CARE LTD,17/10/2017,"1,688.46",73373-RESIDENTIAL & NURSING CARE PLACEMENTS,OP PACKAGE/PLACEMENT COSTS,Third Party Payments,Revenue
Walsall Council,http://opendatacommunities.org/id/metropolitan-district-council/walsall,WC85-280,31/10/2017,Adult Social Care,ALPHA HEALTH CARE LTD,24/10/2017,"1,688.47",73373-RESIDENTIAL & NURSING CARE PLACEMENTS,OP PACKAGE/PLACEMENT COSTS,Third Party Payments,Revenue
Walsall Council,http://opendatacommunities.org/id/metropolitan-district-council/walsall,WC85-281,31/10/2017,Adult Social Care,ALPHA HEALTH CARE LTD,17/10/2017,"1,840.00",73373-RESIDENTIAL & NURSING CARE PLACEMENTS,OP PACKAGE/PLACEMENT COSTS,Third Party Payments,Revenue
Walsall Council,http://opendatacommunities.org/id/metropolitan-district-council/walsall,WC85-282,31/10/2017,Adult Social Care,ALPHA HEALTH CARE LTD,17/10/2017,"2,000.00",73373-RESIDENTIAL & NURSING CARE PLACEMENTS,OP PACKAGE/PLACEMENT COSTS,Third Party Payments,Revenue
Walsall Council,http://opendatacommunities.org/id/metropolitan-district-council/walsall,WC85-283,31/10/2017,Adult Social Care,ALPHA HEALTH CARE LTD,17/10/2017,"2,160.00",73373-RESIDENTIAL & NURSING CARE PLACEMENTS,OP PACKAGE/PLACEMENT COSTS,Third Party Payments,Revenue
Walsall Council,http://opendatacommunities.org/id/metropolitan-district-council/walsall,WC85-284,31/10/2017,Adult Social Care,ALPHA HEALTH CARE LTD,17/10/2017,"2,200.00",73373-RESIDENTIAL & NURSING CARE PLACEMENTS,OP PACKAGE/PLACEMENT COSTS,Third Party Payments,Revenue
Walsall Council,http://opendatacommunities.org/id/metropolitan-district-council/walsall,WC85-285,31/10/2017,Adult Social Care,ALPHA HEALTH CARE LTD,17/10/2017,"2,200.00",73373-RESIDENTIAL & NURSING CARE PLACEMENTS,OP PACKAGE/PLACEMENT COSTS,Third Party Payments,Revenue
Walsall Council,http://opendatacommunities.org/id/metropolitan-district-council/walsall,WC85-286,31/10/2017,Adult Social Care,ALPHA HEALTH CARE LTD,17/10/2017,"2,200.00",73373-RESIDENTIAL & NURSING CARE PLACEMENTS,MH COMMISSIONING,Third Party Payments,Revenue
Walsall Council,http://opendatacommunities.org/id/metropolitan-district-council/walsall,WC85-287,31/10/2017,Adult Social Care,ALPHA HEALTH CARE LTD,24/10/2017,"2,200.00",73373-RESIDENTIAL & NURSING CARE PLACEMENTS,OP PACKAGE/PLACEMENT COSTS,Third Party Payments,Revenue
Walsall Council,http://opendatacommunities.org/id/metropolitan-district-council/walsall,WC85-288,31/10/2017,Adult Social Care,ALPHA HEALTH CARE LTD,24/10/2017,"2,200.00",73373-RESIDENTIAL & NURSING CARE PLACEMENTS,OP PACKAGE/PLACEMENT COSTS,Third Party Payments,Revenue
Walsall Council,http://opendatacommunities.org/id/metropolitan-district-council/walsall,WC85-289,31/10/2017,Adult Social Care,ALPHA HEALTH CARE LTD,24/10/2017,"2,200.00",73373-RESIDENTIAL & NURSING CARE PLACEMENTS,OP PACKAGE/PLACEMENT COSTS,Third Party Payments,Revenue
Walsall Council,http://opendatacommunities.org/id/metropolitan-district-council/walsall,WC85-290,31/10/2017,Adult Social Care,ALPHA HEALTH CARE LTD,24/10/2017,"2,200.00",73373-RESIDENTIAL & NURSING CARE PLACEMENTS,OP PACKAGE/PLACEMENT COSTS,Third Party Payments,Revenue
Walsall Council,http://opendatacommunities.org/id/metropolitan-district-council/walsall,WC85-291,31/10/2017,Adult Social Care,ALPHA HEALTH CARE LTD,17/10/2017,"2,239.28",73373-RESIDENTIAL & NURSING CARE PLACEMENTS,MH COMMISSIONING,Third Party Payments,Revenue
Walsall Council,http://opendatacommunities.org/id/metropolitan-district-council/walsall,WC85-292,31/10/2017,Adult Social Care,ALPHA HEALTH CARE LTD,17/10/2017,"2,326.00",73373-RESIDENTIAL & NURSING CARE PLACEMENTS,MH COMMISSIONING,Third Party Payments,Revenue
Walsall Council,http://opendatacommunities.org/id/metropolitan-district-council/walsall,WC85-293,31/10/2017,Adult Social Care,ALPHA HEALTH CARE LTD,24/10/2017,"2,445.20",73373-RESIDENTIAL & NURSING CARE PLACEMENTS,OP PACKAGE/PLACEMENT COSTS,Third Party Payments,Revenue
Walsall Council,http://opendatacommunities.org/id/metropolitan-district-council/walsall,WC85-294,31/10/2017,Adult Social Care,ALPHA HEALTH CARE LTD,24/10/2017,"2,445.20",73373-RESIDENTIAL & NURSING CARE PLACEMENTS,OP PACKAGE/PLACEMENT COSTS,Third Party Payments,Revenue
Walsall Council,http://opendatacommunities.org/id/metropolitan-district-council/walsall,WC85-295,31/10/2017,Adult Social Care,ALPHA HEALTH CARE LTD,24/10/2017,"2,445.20",73373-RESIDENTIAL & NURSING CARE PLACEMENTS,OP PACKAGE/PLACEMENT COSTS,Third Party Payments,Revenue
Walsall Council,http://opendatacommunities.org/id/metropolitan-district-council/walsall,WC85-296,31/10/2017,Adult Social Care,ALPHA HEALTH CARE LTD,17/10/2017,"2,652.75",73373-RESIDENTIAL & NURSING CARE PLACEMENTS,OP PACKAGE/PLACEMENT COSTS,Third Party Payments,Revenue
Walsall Council,http://opendatacommunities.org/id/metropolitan-district-council/walsall,WC85-297,31/10/2017,Adult Social Care,ALPHA HEALTH CARE LTD,17/10/2017,"2,652.75",73373-RESIDENTIAL & NURSING CARE PLACEMENTS,MH COMMISSIONING,Third Party Payments,Revenue
Walsall Council,http://opendatacommunities.org/id/metropolitan-district-council/walsall,WC85-298,31/10/2017,Adult Social Care,ALPHA HEALTH CARE LTD,17/10/2017,"3,299.29",73373-RESIDENTIAL & NURSING CARE PLACEMENTS,MH COMMISSIONING,Third Party Payments,Revenue
Walsall Council,http://opendatacommunities.org/id/metropolitan-district-council/walsall,WC85-299,31/10/2017,Economy & Environment,ALPHA SAM PPE RECYCLING LTD,13/10/2017,588,60514-MATERIALS TO STORES,FLEET PARTS STOCK ACCOUNT,Supplies & Services,Revenue
Walsall Council,http://opendatacommunities.org/id/metropolitan-district-council/walsall,WC85-300,31/10/2017,Childrens,ALPHABIOLABS,27/10/2017,399,63000-PROFESSIONAL FEES AND SERVICES,SAFEGUARDING & FAMILY SUPPORT,Supplies & Services,Revenue
Walsall Council,http://opendatacommunities.org/id/metropolitan-district-council/walsall,WC85-301,31/10/2017,Childrens,ALPHABIOLABS,09/10/2017,412.5,73014-LEGAL FEES-PRIV CONTRACTOR FEES,GENERAL MANAGEMENT SUPPORT (INC LEGAL),Third Party Payments,Revenue
Walsall Council,http://opendatacommunities.org/id/metropolitan-district-council/walsall,WC85-302,31/10/2017,Childrens,ALPHABIOLABS,09/10/2017,495,73014-LEGAL FEES-PRIV CONTRACTOR FEES,GENERAL MANAGEMENT SUPPORT (INC LEGAL),Third Party Payments,Revenue
Walsall Council,http://opendatacommunities.org/id/metropolitan-district-council/walsall,WC85-303,31/10/2017,Childrens,ALPHABIOLABS,01/11/2017,851.5,63000-PROFESSIONAL FEES AND SERVICES,SAFEGUARDING & FAMILY SUPPORT,Supplies & Services,Revenue
Walsall Council,http://opendatacommunities.org/id/metropolitan-district-council/walsall,WC85-304,31/10/2017,Childrens,ALTEREGO CREATIVE SOLUTIONS LTD,23/10/2017,"1,055.00",63000-PROFESSIONAL FEES AND SERVICES,GENERAL MANAGEMENT SUPPORT (INC LEGAL),Supplies & Services,Revenue
Walsall Council,http://opendatacommunities.org/id/metropolitan-district-council/walsall,WC85-305,31/10/2017,Childrens,ALTODIGITAL NETWORKS LTD,01/10/2017,266.57,60009-LEASING/HIRE/RENTAL-EQUIPMENT,YOUTH JUSTICE SERVICE,Supplies & Services,Revenue
Walsall Council,http://opendatacommunities.org/id/metropolitan-district-council/walsall,WC85-306,31/10/2017,Economy & Environment,AMAH NURSERIES LIMITED T/A BANANA MOON WALSALL,01/10/2017,216.5,63000-PROFESSIONAL FEES AND SERVICES,YEI (IMPACT) PROGRAMME,Supplies & Services,Revenue
Walsall Council,http://opendatacommunities.org/id/metropolitan-district-council/walsall,WC85-307,31/10/2017,Economy & Environment,AMAH NURSERIES LIMITED T/A BANANA MOON WALSALL,01/10/2017,216.5,63000-PROFESSIONAL FEES AND SERVICES,YEI ESF FUNDING,Supplies & Services,Revenue
Walsall Council,http://opendatacommunities.org/id/metropolitan-district-council/walsall,WC85-308,31/10/2017,Childrens,REDACTED,24/10/2017,808.04,74009-ADOPTION ALLOWANCE,ADOPTION ALLOWANCES,Transfer Payments,Revenue
Walsall Council,http://opendatacommunities.org/id/metropolitan-district-council/walsall,WC85-309,31/10/2017,Childrens,REDACTED,09/10/2017,9.24,60006-NEW-FURNITURE & EQUIPMENT,INTERNAL FOSTER CARE PROVISION,Supplies & Services,Revenue
Walsall Council,http://opendatacommunities.org/id/metropolitan-district-council/walsall,WC85-310,31/10/2017,Childrens,REDACTED,09/10/2017,81.37,74503-BIRTHDAY ALLOWANCE-FOSTER CARERS,INTERNAL FOSTER CARE PROVISION,Transfer Payments,Revenue
Walsall Council,http://opendatacommunities.org/id/metropolitan-district-council/walsall,WC85-311,31/10/2017,Childrens,REDACTED,09/10/2017,650.92,74501-MAINTENANCE ALLOWANCE-FOSTER CARERS,INTERNAL FOSTER CARE PROVISION,Transfer Payments,Revenue
Walsall Council,http://opendatacommunities.org/id/metropolitan-district-council/walsall,WC85-312,31/10/2017,Childrens,REDACTED,09/10/2017,780.96,74508-INTERNAL FOSTER CARERS-CARER FEES,INTERNAL FOSTER CARE PROVISION,Transfer Payments,Revenue
Walsall Council,http://opendatacommunities.org/id/metropolitan-district-council/walsall,WC85-313,31/10/2017,Childrens,REDACTED,06/10/2017,336.92,76422-DIRECT PAYMENTS TO SOCIAL SERVICES CLIENTS,FAMILY SUPPORT - DIRECT PAYMENTS,Transfer Payments,Revenue
Walsall Council,http://opendatacommunities.org/id/metropolitan-district-council/walsall,WC85-314,31/10/2017,Economy & Environment,AMBUR RADIO,13/10/2017,"4,980.00",66500-GRANTS TO OTHER ORGS,ESF COMMUNITY GRANTS,Third Party Payments,Revenue
Walsall Council,http://opendatacommunities.org/id/metropolitan-district-council/walsall,WC85-315,31/10/2017,Economy & Environment,AMEC FOSTER WHEELER ENVIRONMENT & INFRASTRUTURE UK LIMITED,18/10/2017,"1,262.51",63000-PROFESSIONAL FEES AND SERVICES,NEW HOMES BONUS DEVELOPMENT COSTS,Supplies & Services,Revenue
Walsall Council,http://opendatacommunities.org/id/metropolitan-district-council/walsall,WC85-316,31/10/2017,Economy & Environment,AMEY LG LIMITED,06/10/2017,233.35,73025-PROFESSIONAL SERVICES-PRIV CONTRACTOR & OTHER AGENCIES,SECTION 38 OF HIGHWAYS ACT - SUPERVISION,Third Party Payments,Revenue
Walsall Council,http://opendatacommunities.org/id/metropolitan-district-council/walsall,WC85-317,31/10/2017,Economy & Environment,AMEY LG LIMITED,04/10/2017,568.25,01002-PROJECT FEES,CFR 1128 A461 NATIONAL PRODUCTIVITY INVESTMENT FUND (NPIF),Capital,Capital
Walsall Council,http://opendatacommunities.org/id/metropolitan-district-council/walsall,WC85-318,31/10/2017,Economy & Environment,AMEY LG LIMITED,16/10/2017,783.34,73002-SECURITY-PRIV CONTRACTOR FEES,TRAFFIC CONTROL,Third Party Payments,Revenue
Walsall Council,http://opendatacommunities.org/id/metropolitan-district-council/walsall,WC85-319,31/10/2017,Economy & Environment,AMEY LG LIMITED,19/10/2017,926.47,01002-PROJECT FEES,CFR 1128 A461 NATIONAL PRODUCTIVITY INVESTMENT FUND (NPIF),Capital,Capital
Walsall Council,http://opendatacommunities.org/id/metropolitan-district-council/walsall,WC85-320,31/10/2017,Economy & Environment,AMEY LG LIMITED,04/10/2017,"1,147.22",73025-PROFESSIONAL SERVICES-PRIV CONTRACTOR & OTHER AGENCIES,SECTION 38 OF HIGHWAYS ACT - SUPERVISION,Third Party Payments,Revenue
Walsall Council,http://opendatacommunities.org/id/metropolitan-district-council/walsall,WC85-321,31/10/2017,Economy & Environment,AMEY LG LIMITED,26/10/2017,"1,692.33",73025-PROFESSIONAL SERVICES-PRIV CONTRACTOR & OTHER AGENCIES,TRAFFIC MANAGEMENT,Third Party Payments,Revenue
Walsall Council,http://opendatacommunities.org/id/metropolitan-district-council/walsall,WC85-322,31/10/2017,Economy & Environment,AMEY LG LIMITED,04/10/2017,"2,687.25",01006-SITE WORKS MAIN CONTRACTORS,CFR 820 HIGHWAYS MAINTENANCE 2011/12,Capital,Capital
Walsall Council,http://opendatacommunities.org/id/metropolitan-district-council/walsall,WC85-323,31/10/2017,Economy & Environment,AMEY LG LIMITED,12/10/2017,"2,894.44",73025-PROFESSIONAL SERVICES-PRIV CONTRACTOR & OTHER AGENCIES,COMMUNITY PROTECTION,Third Party Payments,Revenue
Walsall Council,http://opendatacommunities.org/id/metropolitan-district-council/walsall,WC85-324,31/10/2017,Economy & Environment,AMEY LG LIMITED,16/10/2017,"2,917.82",01009-SITE WORKS - OTHER CONTRACTORS,CFR 876 DARLASTON HIGHWAYS CONSTRUCTION,Capital,Capital
Walsall Council,http://opendatacommunities.org/id/metropolitan-district-council/walsall,WC85-325,31/10/2017,Economy & Environment,AMEY LG LIMITED,04/10/2017,"7,964.41",73025-PROFESSIONAL SERVICES-PRIV CONTRACTOR & OTHER AGENCIES,TRAFFIC MANAGEMENT,Third Party Payments,Revenue
Walsall Council,http://opendatacommunities.org/id/metropolitan-district-council/walsall,WC85-326,31/10/2017,Economy & Environment,AMEY LG LIMITED,12/10/2017,"16,069.04",01006-SITE WORKS MAIN CONTRACTORS,CFR 1147 NETWORK RAIL SCHEME-LEVEL CROSSING,Capital,Capital
Walsall Council,http://opendatacommunities.org/id/metropolitan-district-council/walsall,WC85-327,31/10/2017,Childrens,AMG NURSING CARE SERVICES,06/10/2017,"1,110.72",63000-PROFESSIONAL FEES AND SERVICES,DIRECTLY COMMISSIONED NURSING SERVICES,Supplies & Services,Revenue
Walsall Council,http://opendatacommunities.org/id/metropolitan-district-council/walsall,WC85-328,31/10/2017,Childrens,AMG NURSING CARE SERVICES,06/10/2017,"2,246.00",63000-PROFESSIONAL FEES AND SERVICES,DIRECTLY COMMISSIONED NURSING SERVICES,Supplies & Services,Revenue
Walsall Council,http://opendatacommunities.org/id/metropolitan-district-council/walsall,WC85-329,31/10/2017,Childrens,AMG NURSING CARE SERVICES,12/10/2017,"2,274.48",63000-PROFESSIONAL FEES AND SERVICES,DIRECTLY COMMISSIONED NURSING SERVICES,Supplies & Services,Revenue
Walsall Council,http://opendatacommunities.org/id/metropolitan-district-council/walsall,WC85-330,31/10/2017,Childrens,AMG NURSING CARE SERVICES,19/10/2017,"2,274.48",63000-PROFESSIONAL FEES AND SERVICES,DIRECTLY COMMISSIONED NURSING SERVICES,Supplies & Services,Revenue
Walsall Council,http://opendatacommunities.org/id/metropolitan-district-council/walsall,WC85-331,31/10/2017,Adult Social Care,AMG NURSING CARE SERVICES,04/10/2017,"3,682.88",73374-SUPPORTED & OTHER ACCOMMODATION,PD PACKAGE/PLACEMENT COSTS,Third Party Payments,Revenue
Walsall Council,http://opendatacommunities.org/id/metropolitan-district-council/walsall,WC85-332,31/10/2017,Adult Social Care,AMG NURSING CARE SERVICES,18/10/2017,"10,589.47",73374-SUPPORTED & OTHER ACCOMMODATION,OP PACKAGE/PLACEMENT COSTS,Third Party Payments,Revenue
Walsall Council,http://opendatacommunities.org/id/metropolitan-district-council/walsall,WC85-333,31/10/2017,Childrens,REDACTED,24/10/2017,9.24,60006-NEW-FURNITURE & EQUIPMENT,FAMILY & FRIENDS FOSTER CARE PROVISION,Supplies & Services,Revenue
Walsall Council,http://opendatacommunities.org/id/metropolitan-district-council/walsall,WC85-334,31/10/2017,Childrens,REDACTED,24/10/2017,345.24,74508-INTERNAL FOSTER CARERS-CARER FEES,FAMILY & FRIENDS FOSTER CARE PROVISION,Transfer Payments,Revenue
Walsall Council,http://opendatacommunities.org/id/metropolitan-district-council/walsall,WC85-335,31/10/2017,Childrens,REDACTED,24/10/2017,571.44,74501-MAINTENANCE ALLOWANCE-FOSTER CARERS,FAMILY & FRIENDS FOSTER CARE PROVISION,Transfer Payments,Revenue
Walsall Council,http://opendatacommunities.org/id/metropolitan-district-council/walsall,WC85-336,31/10/2017,Childrens,REDACTED,24/10/2017,425.08,74510-RESIDENTS ORDERS,ADOPTION ALLOWANCES,Third Party Payments,Revenue
Walsall Council,http://opendatacommunities.org/id/metropolitan-district-council/walsall,WC85-337,31/10/2017,Adult Social Care,REDACTED,06/10/2017,270,76422-DIRECT PAYMENTS TO SOCIAL SERVICES CLIENTS,OP PACKAGE/PLACEMENT COSTS,Transfer Payments,Revenue
Walsall Council,http://opendatacommunities.org/id/metropolitan-district-council/walsall,WC85-338,31/10/2017,Adult Social Care,ANCHOR,10/10/2017,460,73373-RESIDENTIAL & NURSING CARE PLACEMENTS,OP PACKAGE/PLACEMENT COSTS,Third Party Payments,Revenue
Walsall Council,http://opendatacommunities.org/id/metropolitan-district-council/walsall,WC85-339,31/10/2017,Adult Social Care,ANCHOR,24/10/2017,657.14,73373-RESIDENTIAL & NURSING CARE PLACEMENTS,OP PACKAGE/PLACEMENT COSTS,Third Party Payments,Revenue
Walsall Council,http://opendatacommunities.org/id/metropolitan-district-council/walsall,WC85-340,31/10/2017,Adult Social Care,ANCHOR,04/10/2017,"1,157.14",73373-RESIDENTIAL & NURSING CARE PLACEMENTS,MH COMMISSIONING,Third Party Payments,Revenue
Walsall Council,http://opendatacommunities.org/id/metropolitan-district-council/walsall,WC85-341,31/10/2017,Adult Social Care,ANCHOR,04/10/2017,"1,800.00",73373-RESIDENTIAL & NURSING CARE PLACEMENTS,MH COMMISSIONING,Third Party Payments,Revenue
Walsall Council,http://opendatacommunities.org/id/metropolitan-district-council/walsall,WC85-342,31/10/2017,Adult Social Care,ANCHOR,04/10/2017,"1,800.00",73373-RESIDENTIAL & NURSING CARE PLACEMENTS,MH COMMISSIONING,Third Party Payments,Revenue
Walsall Council,http://opendatacommunities.org/id/metropolitan-district-council/walsall,WC85-343,31/10/2017,Adult Social Care,ANCHOR,04/10/2017,"1,800.00",73373-RESIDENTIAL & NURSING CARE PLACEMENTS,MH COMMISSIONING,Third Party Payments,Revenue
Walsall Council,http://opendatacommunities.org/id/metropolitan-district-council/walsall,WC85-344,31/10/2017,Adult Social Care,ANCHOR,10/10/2017,"1,800.00",73373-RESIDENTIAL & NURSING CARE PLACEMENTS,MH COMMISSIONING,Third Party Payments,Revenue
Walsall Council,http://opendatacommunities.org/id/metropolitan-district-council/walsall,WC85-345,31/10/2017,Adult Social Care,ANCHOR,24/10/2017,"1,800.00",73373-RESIDENTIAL & NURSING CARE PLACEMENTS,OP PACKAGE/PLACEMENT COSTS,Third Party Payments,Revenue
Walsall Council,http://opendatacommunities.org/id/metropolitan-district-council/walsall,WC85-346,31/10/2017,Adult Social Care,ANCHOR,10/10/2017,"1,816.00",73373-RESIDENTIAL & NURSING CARE PLACEMENTS,OP PACKAGE/PLACEMENT COSTS,Third Party Payments,Revenue
Walsall Council,http://opendatacommunities.org/id/metropolitan-district-council/walsall,WC85-347,31/10/2017,Adult Social Care,ANCHOR,10/10/2017,"1,840.00",73373-RESIDENTIAL & NURSING CARE PLACEMENTS,OP PACKAGE/PLACEMENT COSTS,Third Party Payments,Revenue
Walsall Council,http://opendatacommunities.org/id/metropolitan-district-council/walsall,WC85-348,31/10/2017,Adult Social Care,ANCHOR,10/10/2017,"1,840.00",73373-RESIDENTIAL & NURSING CARE PLACEMENTS,OP PACKAGE/PLACEMENT COSTS,Third Party Payments,Revenue
Walsall Council,http://opendatacommunities.org/id/metropolitan-district-council/walsall,WC85-349,31/10/2017,Adult Social Care,ANCHOR,10/10/2017,"1,840.00",73373-RESIDENTIAL & NURSING CARE PLACEMENTS,OP PACKAGE/PLACEMENT COSTS,Third Party Payments,Revenue
Walsall Council,http://opendatacommunities.org/id/metropolitan-district-council/walsall,WC85-350,31/10/2017,Adult Social Care,ANCHOR,24/10/2017,"1,840.00",73373-RESIDENTIAL & NURSING CARE PLACEMENTS,OP PACKAGE/PLACEMENT COSTS,Third Party Payments,Revenue
Walsall Council,http://opendatacommunities.org/id/metropolitan-district-council/walsall,WC85-351,31/10/2017,Adult Social Care,ANCHOR,24/10/2017,"1,840.00",73373-RESIDENTIAL & NURSING CARE PLACEMENTS,OP PACKAGE/PLACEMENT COSTS,Third Party Payments,Revenue
Walsall Council,http://opendatacommunities.org/id/metropolitan-district-council/walsall,WC85-352,31/10/2017,Childrens,REDACTED,24/10/2017,662.57,74509-SPECIAL GUARDIANSHIP ORDERS,ADOPTION ALLOWANCES,Transfer Payments,Revenue
Walsall Council,http://opendatacommunities.org/id/metropolitan-district-council/walsall,WC85-353,31/10/2017,Childrens,REDACTED,09/10/2017,9.24,60006-NEW-FURNITURE & EQUIPMENT,INTERNAL FOSTER CARE PROVISION,Supplies & Services,Revenue
Walsall Council,http://opendatacommunities.org/id/metropolitan-district-council/walsall,WC85-354,31/10/2017,Childrens,REDACTED,09/10/2017,810.32,74501-MAINTENANCE ALLOWANCE-FOSTER CARERS,INTERNAL FOSTER CARE PROVISION,Transfer Payments,Revenue
Walsall Council,http://opendatacommunities.org/id/metropolitan-district-council/walsall,WC85-355,31/10/2017,Childrens,REDACTED,09/10/2017,897.52,74508-INTERNAL FOSTER CARERS-CARER FEES,INTERNAL FOSTER CARE PROVISION,Transfer Payments,Revenue
Walsall Council,http://opendatacommunities.org/id/metropolitan-district-council/walsall,WC85-356,31/10/2017,Adult Social Care,ANDREW WALSH MEMORIALS,03/10/2017,500,73025-PROFESSIONAL SERVICES-PRIV CONTRACTOR & OTHER AGENCIES,SENIOR MANAGEMENT TEAM,Third Party Payments,Revenue
Walsall Council,http://opendatacommunities.org/id/metropolitan-district-council/walsall,WC85-357,31/10/2017,Adult Social Care,ANGEL COURT RESIDENTIAL CARE HOME,03/10/2017,"2,089.51",73373-RESIDENTIAL & NURSING CARE PLACEMENTS,OP PACKAGE/PLACEMENT COSTS,Third Party Payments,Revenue
Walsall Council,http://opendatacommunities.org/id/metropolitan-district-council/walsall,WC85-358,31/10/2017,Adult Social Care,ANGEL COURT RESIDENTIAL CARE HOME,03/10/2017,"2,614.02",73373-RESIDENTIAL & NURSING CARE PLACEMENTS,OP PACKAGE/PLACEMENT COSTS,Third Party Payments,Revenue
Walsall Council,http://opendatacommunities.org/id/metropolitan-district-council/walsall,WC85-359,31/10/2017,Adult Social Care,ANGEL COURT RESIDENTIAL CARE HOME,03/10/2017,"6,401.20",73373-RESIDENTIAL & NURSING CARE PLACEMENTS,OP PACKAGE/PLACEMENT COSTS,Third Party Payments,Revenue
Walsall Council,http://opendatacommunities.org/id/metropolitan-district-council/walsall,WC85-360,31/10/2017,Adult Social Care,ANGEL COURT RESIDENTIAL CARE HOME,03/10/2017,"11,059.71",73373-RESIDENTIAL & NURSING CARE PLACEMENTS,OP PACKAGE/PLACEMENT COSTS,Third Party Payments,Revenue
Walsall Council,http://opendatacommunities.org/id/metropolitan-district-council/walsall,WC85-361,31/10/2017,Childrens,REDACTED,24/10/2017,368.76,74509-SPECIAL GUARDIANSHIP ORDERS,ADOPTION ALLOWANCES,Transfer Payments,Revenue
Walsall Council,http://opendatacommunities.org/id/metropolitan-district-council/walsall,WC85-362,31/10/2017,Childrens,REDACTED,24/10/2017,368.76,74509-SPECIAL GUARDIANSHIP ORDERS,ADOPTION ALLOWANCES,Transfer Payments,Revenue
Walsall Council,http://opendatacommunities.org/id/metropolitan-district-council/walsall,WC85-363,31/10/2017,Childrens,REDACTED,24/10/2017,500.16,74509-SPECIAL GUARDIANSHIP ORDERS,ADOPTION ALLOWANCES,Transfer Payments,Revenue
Walsall Council,http://opendatacommunities.org/id/metropolitan-district-council/walsall,WC85-364,31/10/2017,Childrens,REDACTED,24/10/2017,312.04,74509-SPECIAL GUARDIANSHIP ORDERS,ADOPTION ALLOWANCES,Transfer Payments,Revenue
Walsall Council,http://opendatacommunities.org/id/metropolitan-district-council/walsall,WC85-365,31/10/2017,Adult Social Care,REDACTED,06/10/2017,327.36,76422-DIRECT PAYMENTS TO SOCIAL SERVICES CLIENTS,LD PACKAGE/PLACEMENT COSTS,Transfer Payments,Revenue
Walsall Council,http://opendatacommunities.org/id/metropolitan-district-council/walsall,WC85-366,31/10/2017,Adult Social Care,REDACTED,06/10/2017,"2,550.90",76422-DIRECT PAYMENTS TO SOCIAL SERVICES CLIENTS,OP PACKAGE/PLACEMENT COSTS,Transfer Payments,Revenue
Walsall Council,http://opendatacommunities.org/id/metropolitan-district-council/walsall,WC85-367,31/10/2017,Adult Social Care,ANSON COURT RESIDENTIAL HOME,24/10/2017,525.71,73373-RESIDENTIAL & NURSING CARE PLACEMENTS,OP PACKAGE/PLACEMENT COSTS,Third Party Payments,Revenue
Walsall Council,http://opendatacommunities.org/id/metropolitan-district-council/walsall,WC85-368,31/10/2017,Adult Social Care,ANSON COURT RESIDENTIAL HOME,04/10/2017,920,73373-RESIDENTIAL & NURSING CARE PLACEMENTS,OP PACKAGE/PLACEMENT COSTS,Third Party Payments,Revenue
Walsall Council,http://opendatacommunities.org/id/metropolitan-district-council/walsall,WC85-369,31/10/2017,Adult Social Care,ANSON COURT RESIDENTIAL HOME,24/10/2017,"1,840.00",73373-RESIDENTIAL & NURSING CARE PLACEMENTS,OP PACKAGE/PLACEMENT COSTS,Third Party Payments,Revenue
Walsall Council,http://opendatacommunities.org/id/metropolitan-district-council/walsall,WC85-370,31/10/2017,Adult Social Care,ANSON COURT RESIDENTIAL HOME,24/10/2017,"1,840.00",73373-RESIDENTIAL & NURSING CARE PLACEMENTS,OP PACKAGE/PLACEMENT COSTS,Third Party Payments,Revenue
Walsall Council,http://opendatacommunities.org/id/metropolitan-district-council/walsall,WC85-371,31/10/2017,Adult Social Care,ANSON COURT RESIDENTIAL HOME,24/10/2017,"1,840.00",73373-RESIDENTIAL & NURSING CARE PLACEMENTS,OP PACKAGE/PLACEMENT COSTS,Third Party Payments,Revenue
Walsall Council,http://opendatacommunities.org/id/metropolitan-district-council/walsall,WC85-372,31/10/2017,Adult Social Care,ANSON COURT RESIDENTIAL HOME,24/10/2017,"1,840.00",73373-RESIDENTIAL & NURSING CARE PLACEMENTS,OP PACKAGE/PLACEMENT COSTS,Third Party Payments,Revenue
Walsall Council,http://opendatacommunities.org/id/metropolitan-district-council/walsall,WC85-373,31/10/2017,Adult Social Care,ANSON COURT RESIDENTIAL HOME,24/10/2017,"1,840.00",73373-RESIDENTIAL & NURSING CARE PLACEMENTS,OP PACKAGE/PLACEMENT COSTS,Third Party Payments,Revenue
Walsall Council,http://opendatacommunities.org/id/metropolitan-district-council/walsall,WC85-374,31/10/2017,Adult Social Care,ANSON COURT RESIDENTIAL HOME,24/10/2017,"1,840.00",73373-RESIDENTIAL & NURSING CARE PLACEMENTS,MH COMMISSIONING,Third Party Payments,Revenue
Walsall Council,http://opendatacommunities.org/id/metropolitan-district-council/walsall,WC85-375,31/10/2017,Adult Social Care,ANSON COURT RESIDENTIAL HOME,24/10/2017,"1,840.00",73373-RESIDENTIAL & NURSING CARE PLACEMENTS,OP PACKAGE/PLACEMENT COSTS,Third Party Payments,Revenue
Walsall Council,http://opendatacommunities.org/id/metropolitan-district-council/walsall,WC85-376,31/10/2017,Adult Social Care,ANSON COURT RESIDENTIAL HOME,24/10/2017,"1,840.00",73373-RESIDENTIAL & NURSING CARE PLACEMENTS,OP PACKAGE/PLACEMENT COSTS,Third Party Payments,Revenue
Walsall Council,http://opendatacommunities.org/id/metropolitan-district-council/walsall,WC85-377,31/10/2017,Adult Social Care,ANSON COURT RESIDENTIAL HOME,24/10/2017,"1,840.00",73373-RESIDENTIAL & NURSING CARE PLACEMENTS,OP PACKAGE/PLACEMENT COSTS,Third Party Payments,Revenue
Walsall Council,http://opendatacommunities.org/id/metropolitan-district-council/walsall,WC85-378,31/10/2017,Adult Social Care,ANSON COURT RESIDENTIAL HOME,24/10/2017,"1,840.00",73373-RESIDENTIAL & NURSING CARE PLACEMENTS,OP PACKAGE/PLACEMENT COSTS,Third Party Payments,Revenue
Walsall Council,http://opendatacommunities.org/id/metropolitan-district-council/walsall,WC85-379,31/10/2017,Adult Social Care,ANSON COURT RESIDENTIAL HOME,24/10/2017,"1,840.00",73373-RESIDENTIAL & NURSING CARE PLACEMENTS,OP PACKAGE/PLACEMENT COSTS,Third Party Payments,Revenue
Walsall Council,http://opendatacommunities.org/id/metropolitan-district-council/walsall,WC85-380,31/10/2017,Adult Social Care,ANSON COURT RESIDENTIAL HOME,24/10/2017,"1,840.00",73373-RESIDENTIAL & NURSING CARE PLACEMENTS,OP PACKAGE/PLACEMENT COSTS,Third Party Payments,Revenue
Walsall Council,http://opendatacommunities.org/id/metropolitan-district-council/walsall,WC85-381,31/10/2017,Adult Social Care,ANSON COURT RESIDENTIAL HOME,24/10/2017,"1,840.00",73373-RESIDENTIAL & NURSING CARE PLACEMENTS,OP PACKAGE/PLACEMENT COSTS,Third Party Payments,Revenue
Walsall Council,http://opendatacommunities.org/id/metropolitan-district-council/walsall,WC85-382,31/10/2017,Adult Social Care,ANSON COURT RESIDENTIAL HOME,24/10/2017,"1,840.00",73373-RESIDENTIAL & NURSING CARE PLACEMENTS,OP PACKAGE/PLACEMENT COSTS,Third Party Payments,Revenue
Walsall Council,http://opendatacommunities.org/id/metropolitan-district-council/walsall,WC85-383,31/10/2017,Adult Social Care,ANSON COURT RESIDENTIAL HOME,24/10/2017,"1,840.00",73373-RESIDENTIAL & NURSING CARE PLACEMENTS,OP PACKAGE/PLACEMENT COSTS,Third Party Payments,Revenue
Walsall Council,http://opendatacommunities.org/id/metropolitan-district-council/walsall,WC85-384,31/10/2017,Adult Social Care,ANSON COURT RESIDENTIAL HOME,24/10/2017,"1,920.00",73373-RESIDENTIAL & NURSING CARE PLACEMENTS,OP PACKAGE/PLACEMENT COSTS,Third Party Payments,Revenue
Walsall Council,http://opendatacommunities.org/id/metropolitan-district-council/walsall,WC85-385,31/10/2017,Childrens,REDACTED,24/10/2017,604,74510-RESIDENTS ORDERS,ADOPTION ALLOWANCES,Third Party Payments,Revenue
Walsall Council,http://opendatacommunities.org/id/metropolitan-district-council/walsall,WC85-386,31/10/2017,Childrens,REDACTED,24/10/2017,333.12,74509-SPECIAL GUARDIANSHIP ORDERS,ADOPTION ALLOWANCES,Transfer Payments,Revenue
Walsall Council,http://opendatacommunities.org/id/metropolitan-district-council/walsall,WC85-387,31/10/2017,Economy & Environment,APCOA PARKING SERVICES (UK) LTD,16/10/2017,"44,375.24",73025-PROFESSIONAL SERVICES-PRIV CONTRACTOR & OTHER AGENCIES,PARKING SERVICES OFF-STREET,Third Party Payments,Revenue
Walsall Council,http://opendatacommunities.org/id/metropolitan-district-council/walsall,WC85-388,31/10/2017,Economy & Environment,AQUALYMPIC,01/10/2017,535,34305-AGENCY STAFF-EMPLOYEES,BLOXWICH LEISURE CENTRE,Employees,Revenue
Walsall Council,http://opendatacommunities.org/id/metropolitan-district-council/walsall,WC85-389,31/10/2017,Economy & Environment,AQUALYMPIC,01/10/2017,660,34305-AGENCY STAFF-EMPLOYEES,BLOXWICH LEISURE CENTRE,Employees,Revenue
Walsall Council,http://opendatacommunities.org/id/metropolitan-district-council/walsall,WC85-390,31/10/2017,Economy & Environment,AQUALYMPIC,24/10/2017,840,34305-AGENCY STAFF-EMPLOYEES,BLOXWICH LEISURE CENTRE,Employees,Revenue
Walsall Council,http://opendatacommunities.org/id/metropolitan-district-council/walsall,WC85-391,31/10/2017,Economy & Environment,AQUALYMPIC,04/10/2017,"1,902.50",34305-AGENCY STAFF-EMPLOYEES,OAK PARK,Employees,Revenue
Walsall Council,http://opendatacommunities.org/id/metropolitan-district-council/walsall,WC85-392,31/10/2017,Economy & Environment,AQUALYMPIC,02/10/2017,"2,000.00",34305-AGENCY STAFF-EMPLOYEES,OAK PARK,Employees,Revenue
Walsall Council,http://opendatacommunities.org/id/metropolitan-district-council/walsall,WC85-393,31/10/2017,Economy & Environment,AQUALYMPIC,04/10/2017,"2,397.50",34305-AGENCY STAFF-EMPLOYEES,OAK PARK,Employees,Revenue
Walsall Council,http://opendatacommunities.org/id/metropolitan-district-council/walsall,WC85-394,31/10/2017,Economy & Environment,AQUALYMPIC,23/10/2017,"2,545.00",34305-AGENCY STAFF-EMPLOYEES,OAK PARK,Employees,Revenue
Walsall Council,http://opendatacommunities.org/id/metropolitan-district-council/walsall,WC85-395,31/10/2017,Economy & Environment,AQUALYMPIC,12/10/2017,"2,930.00",34305-AGENCY STAFF-EMPLOYEES,OAK PARK,Employees,Revenue
Walsall Council,http://opendatacommunities.org/id/metropolitan-district-council/walsall,WC85-396,31/10/2017,Economy & Environment,AQUALYMPIC,06/10/2017,"3,027.50",34305-AGENCY STAFF-EMPLOYEES,OAK PARK,Employees,Revenue
Walsall Council,http://opendatacommunities.org/id/metropolitan-district-council/walsall,WC85-397,31/10/2017,Economy & Environment,AQUAMO LTD,02/10/2017,212.4,60008-MAINTENANCE-FURNITURE & EQUIPMENT,WALSALL GALA CENTRE,Supplies & Services,Revenue
Walsall Council,http://opendatacommunities.org/id/metropolitan-district-council/walsall,WC85-398,31/10/2017,Adult Social Care,ARBORETUM NURSING HOME.,24/10/2017,"-2,357.14",73373-RESIDENTIAL & NURSING CARE PLACEMENTS,OP PACKAGE/PLACEMENT COSTS,Third Party Payments,Revenue
Walsall Council,http://opendatacommunities.org/id/metropolitan-district-council/walsall,WC85-399,31/10/2017,Adult Social Care,ARBORETUM NURSING HOME.,10/10/2017,-928.57,73373-RESIDENTIAL & NURSING CARE PLACEMENTS,OP PACKAGE/PLACEMENT COSTS,Third Party Payments,Revenue
Walsall Council,http://opendatacommunities.org/id/metropolitan-district-council/walsall,WC85-400,31/10/2017,Adult Social Care,ARBORETUM NURSING HOME.,17/10/2017,-357.14,73373-RESIDENTIAL & NURSING CARE PLACEMENTS,OP PACKAGE/PLACEMENT COSTS,Third Party Payments,Revenue
Walsall Council,http://opendatacommunities.org/id/metropolitan-district-council/walsall,WC85-401,31/10/2017,Adult Social Care,ARBORETUM NURSING HOME.,10/10/2017,339.26,73373-RESIDENTIAL & NURSING CARE PLACEMENTS,OP PACKAGE/PLACEMENT COSTS,Third Party Payments,Revenue
Walsall Council,http://opendatacommunities.org/id/metropolitan-district-council/walsall,WC85-402,31/10/2017,Adult Social Care,ARBORETUM NURSING HOME.,10/10/2017,394.39,73373-RESIDENTIAL & NURSING CARE PLACEMENTS,OP PACKAGE/PLACEMENT COSTS,Third Party Payments,Revenue
Walsall Council,http://opendatacommunities.org/id/metropolitan-district-council/walsall,WC85-403,31/10/2017,Adult Social Care,ARBORETUM NURSING HOME.,10/10/2017,415.85,73373-RESIDENTIAL & NURSING CARE PLACEMENTS,OP PACKAGE/PLACEMENT COSTS,Third Party Payments,Revenue
Walsall Council,http://opendatacommunities.org/id/metropolitan-district-council/walsall,WC85-404,31/10/2017,Adult Social Care,ARBORETUM NURSING HOME.,10/10/2017,686.87,73373-RESIDENTIAL & NURSING CARE PLACEMENTS,OP PACKAGE/PLACEMENT COSTS,Third Party Payments,Revenue
Walsall Council,http://opendatacommunities.org/id/metropolitan-district-council/walsall,WC85-405,31/10/2017,Adult Social Care,ARBORETUM NURSING HOME.,10/10/2017,766.68,73373-RESIDENTIAL & NURSING CARE PLACEMENTS,OP PACKAGE/PLACEMENT COSTS,Third Party Payments,Revenue
Walsall Council,http://opendatacommunities.org/id/metropolitan-district-council/walsall,WC85-406,31/10/2017,Adult Social Care,ARBORETUM NURSING HOME.,10/10/2017,793.25,73373-RESIDENTIAL & NURSING CARE PLACEMENTS,OP PACKAGE/PLACEMENT COSTS,Third Party Payments,Revenue
Walsall Council,http://opendatacommunities.org/id/metropolitan-district-council/walsall,WC85-407,31/10/2017,Adult Social Care,ARBORETUM NURSING HOME.,10/10/2017,806.49,73373-RESIDENTIAL & NURSING CARE PLACEMENTS,OP PACKAGE/PLACEMENT COSTS,Third Party Payments,Revenue
Walsall Council,http://opendatacommunities.org/id/metropolitan-district-council/walsall,WC85-408,31/10/2017,Adult Social Care,ARBORETUM NURSING HOME.,10/10/2017,814.64,73373-RESIDENTIAL & NURSING CARE PLACEMENTS,OP PACKAGE/PLACEMENT COSTS,Third Party Payments,Revenue
Walsall Council,http://opendatacommunities.org/id/metropolitan-district-council/walsall,WC85-409,31/10/2017,Adult Social Care,ARBORETUM NURSING HOME.,10/10/2017,"1,000.00",73373-RESIDENTIAL & NURSING CARE PLACEMENTS,OP PACKAGE/PLACEMENT COSTS,Third Party Payments,Revenue
Walsall Council,http://opendatacommunities.org/id/metropolitan-district-council/walsall,WC85-410,31/10/2017,Adult Social Care,ARBORETUM NURSING HOME.,10/10/2017,"1,000.00",73373-RESIDENTIAL & NURSING CARE PLACEMENTS,OP PACKAGE/PLACEMENT COSTS,Third Party Payments,Revenue
Walsall Council,http://opendatacommunities.org/id/metropolitan-district-council/walsall,WC85-411,31/10/2017,Adult Social Care,ARBORETUM NURSING HOME.,10/10/2017,"1,000.01",73373-RESIDENTIAL & NURSING CARE PLACEMENTS,OP PACKAGE/PLACEMENT COSTS,Third Party Payments,Revenue
Walsall Council,http://opendatacommunities.org/id/metropolitan-district-council/walsall,WC85-412,31/10/2017,Adult Social Care,ARBORETUM NURSING HOME.,10/10/2017,"1,405.16",73373-RESIDENTIAL & NURSING CARE PLACEMENTS,OP PACKAGE/PLACEMENT COSTS,Third Party Payments,Revenue
Walsall Council,http://opendatacommunities.org/id/metropolitan-district-council/walsall,WC85-413,31/10/2017,Adult Social Care,ARBORETUM NURSING HOME.,10/10/2017,"1,500.86",73373-RESIDENTIAL & NURSING CARE PLACEMENTS,OP PACKAGE/PLACEMENT COSTS,Third Party Payments,Revenue
Walsall Council,http://opendatacommunities.org/id/metropolitan-district-council/walsall,WC85-414,31/10/2017,Adult Social Care,ARBORETUM NURSING HOME.,10/10/2017,"1,688.46",73373-RESIDENTIAL & NURSING CARE PLACEMENTS,OP PACKAGE/PLACEMENT COSTS,Third Party Payments,Revenue
Walsall Council,http://opendatacommunities.org/id/metropolitan-district-council/walsall,WC85-415,31/10/2017,Adult Social Care,ARBORETUM NURSING HOME.,10/10/2017,"1,688.46",73373-RESIDENTIAL & NURSING CARE PLACEMENTS,PD PACKAGE/PLACEMENT COSTS,Third Party Payments,Revenue
Walsall Council,http://opendatacommunities.org/id/metropolitan-district-council/walsall,WC85-416,31/10/2017,Adult Social Care,ARBORETUM NURSING HOME.,10/10/2017,"1,688.46",73373-RESIDENTIAL & NURSING CARE PLACEMENTS,OP PACKAGE/PLACEMENT COSTS,Third Party Payments,Revenue
Walsall Council,http://opendatacommunities.org/id/metropolitan-district-council/walsall,WC85-417,31/10/2017,Adult Social Care,ARBORETUM NURSING HOME.,10/10/2017,"2,000.00",73373-RESIDENTIAL & NURSING CARE PLACEMENTS,OP PACKAGE/PLACEMENT COSTS,Third Party Payments,Revenue
Walsall Council,http://opendatacommunities.org/id/metropolitan-district-council/walsall,WC85-418,31/10/2017,Adult Social Care,ARBORETUM NURSING HOME.,10/10/2017,"2,000.00",73373-RESIDENTIAL & NURSING CARE PLACEMENTS,PD PACKAGE/PLACEMENT COSTS,Third Party Payments,Revenue
Walsall Council,http://opendatacommunities.org/id/metropolitan-district-council/walsall,WC85-419,31/10/2017,Adult Social Care,ARBORETUM NURSING HOME.,10/10/2017,"2,000.00",73373-RESIDENTIAL & NURSING CARE PLACEMENTS,OP PACKAGE/PLACEMENT COSTS,Third Party Payments,Revenue
Walsall Council,http://opendatacommunities.org/id/metropolitan-district-council/walsall,WC85-420,31/10/2017,Adult Social Care,ARBORETUM NURSING HOME.,10/10/2017,"2,000.00",73373-RESIDENTIAL & NURSING CARE PLACEMENTS,OP PACKAGE/PLACEMENT COSTS,Third Party Payments,Revenue
Walsall Council,http://opendatacommunities.org/id/metropolitan-district-council/walsall,WC85-421,31/10/2017,Adult Social Care,ARBORETUM NURSING HOME.,10/10/2017,"2,000.00",73373-RESIDENTIAL & NURSING CARE PLACEMENTS,OP PACKAGE/PLACEMENT COSTS,Third Party Payments,Revenue
Walsall Council,http://opendatacommunities.org/id/metropolitan-district-council/walsall,WC85-422,31/10/2017,Adult Social Care,ARBORETUM NURSING HOME.,10/10/2017,"2,080.00",73373-RESIDENTIAL & NURSING CARE PLACEMENTS,OP PACKAGE/PLACEMENT COSTS,Third Party Payments,Revenue
Walsall Council,http://opendatacommunities.org/id/metropolitan-district-council/walsall,WC85-423,31/10/2017,Adult Social Care,ARBORETUM NURSING HOME.,04/10/2017,"2,100.00",73373-RESIDENTIAL & NURSING CARE PLACEMENTS,OP PACKAGE/PLACEMENT COSTS,Third Party Payments,Revenue
Walsall Council,http://opendatacommunities.org/id/metropolitan-district-council/walsall,WC85-424,31/10/2017,Adult Social Care,ARBORETUM NURSING HOME.,10/10/2017,"2,100.00",73373-RESIDENTIAL & NURSING CARE PLACEMENTS,OP PACKAGE/PLACEMENT COSTS,Third Party Payments,Revenue
Walsall Council,http://opendatacommunities.org/id/metropolitan-district-council/walsall,WC85-425,31/10/2017,Adult Social Care,ARBORETUM NURSING HOME.,20/10/2017,"14,900.00",73019-PSE'S-PRIV CONTRACTOR FEES,TRANSITIONAL CARE SUPPORT TEAM,Third Party Payments,Revenue
Walsall Council,http://opendatacommunities.org/id/metropolitan-district-council/walsall,WC85-426,31/10/2017,Economy & Environment,ARCANE DIRECT MARKETING,04/10/2017,274.16,62511-DISTRIBUTION,NAG - ART GALLERY MARKETING,Supplies & Services,Revenue
Walsall Council,http://opendatacommunities.org/id/metropolitan-district-council/walsall,WC85-427,31/10/2017,Economy & Environment,ARCANE DIRECT MARKETING,04/10/2017,"1,319.62",62511-DISTRIBUTION,NAG - ART GALLERY MARKETING,Supplies & Services,Revenue
Walsall Council,http://opendatacommunities.org/id/metropolitan-district-council/walsall,WC85-428,31/10/2017,Childrens,ARCHWAY ACADEMY,04/10/2017,"2,684.44",66502-TOP UP FUNDING -GRANTS TO SCHOOLS,INDEPENDENT PROVIDERS - SPECIAL & AP,Third Party Payments,Revenue
Walsall Council,http://opendatacommunities.org/id/metropolitan-district-council/walsall,WC85-429,31/10/2017,Change and Governance,ARCO GROUP,18/10/2017,248.21,61502-PROTECTIVE CLOTHING & UNIFORM,PRINTING SERVICES,Supplies & Services,Revenue
Walsall Council,http://opendatacommunities.org/id/metropolitan-district-council/walsall,WC85-430,31/10/2017,Economy & Environment,ARCO GROUP,27/10/2017,253.35,60006-NEW-FURNITURE & EQUIPMENT,ENGINEERING MANAGEMENT,Supplies & Services,Revenue
Walsall Council,http://opendatacommunities.org/id/metropolitan-district-council/walsall,WC85-431,31/10/2017,Adult Social Care,ARK HOME HEALTHCARE LIMITED,11/10/2017,"12,377.13",73372-DOMICILIARY CARE,OP PACKAGE/PLACEMENT COSTS,Third Party Payments,Revenue
Walsall Council,http://opendatacommunities.org/id/metropolitan-district-council/walsall,WC85-432,31/10/2017,Adult Social Care,ARK HOME HEALTHCARE LIMITED,11/10/2017,"35,402.81",73372-DOMICILIARY CARE,OP PACKAGE/PLACEMENT COSTS,Third Party Payments,Revenue
Walsall Council,http://opendatacommunities.org/id/metropolitan-district-council/walsall,WC85-433,31/10/2017,Childrens,ARNFIELD CARE LIMITED,09/10/2017,"15,616.00",74036-EXTERNAL RESIDENTIAL CARE-OTH AGENCY PROVISION,INDEPENDENT RESIDENTIAL HOMES,Third Party Payments,Revenue
Walsall Council,http://opendatacommunities.org/id/metropolitan-district-council/walsall,WC85-434,31/10/2017,Economy & Environment,ARTFUL LOGISTICS LTD,05/10/2017,660,73032-TRANSPORTATION-PRIV CONTRACTOR FEES,PHOTOGRAPHY EXHIBITION NO. 2 WSA,Third Party Payments,Revenue
Walsall Council,http://opendatacommunities.org/id/metropolitan-district-council/walsall,WC85-435,31/10/2017,Holding Accounts,ARTHUR J GALLAGHER T/A HEATH LAMBERT LIMITED,18/10/2017,"5,558.61",89012-TEACHERS SICKNESS SCHEME PREMIUM INSURANCE POLICY,PUBLIC LIABILITY,Supplies & Services,Revenue
Walsall Council,http://opendatacommunities.org/id/metropolitan-district-council/walsall,WC85-436,31/10/2017,Childrens,ARTHUR M GRIFFITHS & SON LTD,30/10/2017,"35,625.17",01006-SITE WORKS MAIN CONTRACTORS,CFR 929 KING CHARLES PRIMARY SIGNIFICANT ENLARGEMENT,Capital,Capital
Walsall Council,http://opendatacommunities.org/id/metropolitan-district-council/walsall,WC85-437,31/10/2017,Childrens,ARTHUR M GRIFFITHS & SON LTD,12/10/2017,"141,150.16",01006-SITE WORKS MAIN CONTRACTORS,CFR 929 FIBBERSLEY PRIMARY SIGNIFICANT ENLARGEMENT,Capital,Capital
Walsall Council,http://opendatacommunities.org/id/metropolitan-district-council/walsall,WC85-438,31/10/2017,Adult Social Care,ASH GRANGE CARE HOME,10/10/2017,"-2,691.38",73373-RESIDENTIAL & NURSING CARE PLACEMENTS,MH COMMISSIONING,Third Party Payments,Revenue
Walsall Council,http://opendatacommunities.org/id/metropolitan-district-council/walsall,WC85-439,31/10/2017,Adult Social Care,ASH GRANGE CARE HOME,24/10/2017,"-2,000.00",73373-RESIDENTIAL & NURSING CARE PLACEMENTS,OP PACKAGE/PLACEMENT COSTS,Third Party Payments,Revenue
Walsall Council,http://opendatacommunities.org/id/metropolitan-district-council/walsall,WC85-440,31/10/2017,Adult Social Care,ASH GRANGE CARE HOME,10/10/2017,414,73373-RESIDENTIAL & NURSING CARE PLACEMENTS,OP PACKAGE/PLACEMENT COSTS,Third Party Payments,Revenue
Walsall Council,http://opendatacommunities.org/id/metropolitan-district-council/walsall,WC85-441,31/10/2017,Adult Social Care,ASH GRANGE CARE HOME,10/10/2017,460.65,73373-RESIDENTIAL & NURSING CARE PLACEMENTS,OP PACKAGE/PLACEMENT COSTS,Third Party Payments,Revenue
Walsall Council,http://opendatacommunities.org/id/metropolitan-district-council/walsall,WC85-442,31/10/2017,Adult Social Care,ASH GRANGE CARE HOME,10/10/2017,559.93,73373-RESIDENTIAL & NURSING CARE PLACEMENTS,MH COMMISSIONING,Third Party Payments,Revenue
Walsall Council,http://opendatacommunities.org/id/metropolitan-district-council/walsall,WC85-443,31/10/2017,Adult Social Care,ASH GRANGE CARE HOME,24/10/2017,"1,174.46",73373-RESIDENTIAL & NURSING CARE PLACEMENTS,OP PACKAGE/PLACEMENT COSTS,Third Party Payments,Revenue
Walsall Council,http://opendatacommunities.org/id/metropolitan-district-council/walsall,WC85-444,31/10/2017,Adult Social Care,ASH GRANGE CARE HOME,10/10/2017,"1,242.00",73373-RESIDENTIAL & NURSING CARE PLACEMENTS,OP PACKAGE/PLACEMENT COSTS,Third Party Payments,Revenue
Walsall Council,http://opendatacommunities.org/id/metropolitan-district-council/walsall,WC85-445,31/10/2017,Adult Social Care,ASH GRANGE CARE HOME,10/10/2017,"1,288.24",73373-RESIDENTIAL & NURSING CARE PLACEMENTS,OP PACKAGE/PLACEMENT COSTS,Third Party Payments,Revenue
Walsall Council,http://opendatacommunities.org/id/metropolitan-district-council/walsall,WC85-446,31/10/2017,Adult Social Care,ASH GRANGE CARE HOME,10/10/2017,"1,562.78",73373-RESIDENTIAL & NURSING CARE PLACEMENTS,OP PACKAGE/PLACEMENT COSTS,Third Party Payments,Revenue
Walsall Council,http://opendatacommunities.org/id/metropolitan-district-council/walsall,WC85-447,31/10/2017,Adult Social Care,ASH GRANGE CARE HOME,10/10/2017,"1,562.78",73373-RESIDENTIAL & NURSING CARE PLACEMENTS,OP PACKAGE/PLACEMENT COSTS,Third Party Payments,Revenue
Walsall Council,http://opendatacommunities.org/id/metropolitan-district-council/walsall,WC85-448,31/10/2017,Adult Social Care,ASH GRANGE CARE HOME,10/10/2017,"1,562.78",73373-RESIDENTIAL & NURSING CARE PLACEMENTS,OP PACKAGE/PLACEMENT COSTS,Third Party Payments,Revenue
Walsall Council,http://opendatacommunities.org/id/metropolitan-district-council/walsall,WC85-449,31/10/2017,Adult Social Care,ASH GRANGE CARE HOME,10/10/2017,"1,562.78",73373-RESIDENTIAL & NURSING CARE PLACEMENTS,OP PACKAGE/PLACEMENT COSTS,Third Party Payments,Revenue
Walsall Council,http://opendatacommunities.org/id/metropolitan-district-council/walsall,WC85-450,31/10/2017,Adult Social Care,ASH GRANGE CARE HOME,10/10/2017,"1,562.78",73373-RESIDENTIAL & NURSING CARE PLACEMENTS,OP PACKAGE/PLACEMENT COSTS,Third Party Payments,Revenue
Walsall Council,http://opendatacommunities.org/id/metropolitan-district-council/walsall,WC85-451,31/10/2017,Adult Social Care,ASH GRANGE CARE HOME,10/10/2017,"1,562.78",73373-RESIDENTIAL & NURSING CARE PLACEMENTS,OP PACKAGE/PLACEMENT COSTS,Third Party Payments,Revenue
Walsall Council,http://opendatacommunities.org/id/metropolitan-district-council/walsall,WC85-452,31/10/2017,Adult Social Care,ASH GRANGE CARE HOME,24/10/2017,"1,562.78",73373-RESIDENTIAL & NURSING CARE PLACEMENTS,OP PACKAGE/PLACEMENT COSTS,Third Party Payments,Revenue
Walsall Council,http://opendatacommunities.org/id/metropolitan-district-council/walsall,WC85-453,31/10/2017,Adult Social Care,ASH GRANGE CARE HOME,10/10/2017,"1,620.00",73373-RESIDENTIAL & NURSING CARE PLACEMENTS,OP PACKAGE/PLACEMENT COSTS,Third Party Payments,Revenue
Walsall Council,http://opendatacommunities.org/id/metropolitan-district-council/walsall,WC85-454,31/10/2017,Adult Social Care,ASH GRANGE CARE HOME,10/10/2017,"1,620.00",73373-RESIDENTIAL & NURSING CARE PLACEMENTS,OP PACKAGE/PLACEMENT COSTS,Third Party Payments,Revenue
Walsall Council,http://opendatacommunities.org/id/metropolitan-district-council/walsall,WC85-455,31/10/2017,Adult Social Care,ASH GRANGE CARE HOME,10/10/2017,"1,625.93",73373-RESIDENTIAL & NURSING CARE PLACEMENTS,OP PACKAGE/PLACEMENT COSTS,Third Party Payments,Revenue
Walsall Council,http://opendatacommunities.org/id/metropolitan-district-council/walsall,WC85-456,31/10/2017,Adult Social Care,ASH GRANGE CARE HOME,10/10/2017,"1,656.00",73373-RESIDENTIAL & NURSING CARE PLACEMENTS,OP PACKAGE/PLACEMENT COSTS,Third Party Payments,Revenue
Walsall Council,http://opendatacommunities.org/id/metropolitan-district-council/walsall,WC85-457,31/10/2017,Adult Social Care,ASH GRANGE CARE HOME,17/10/2017,"1,656.00",73373-RESIDENTIAL & NURSING CARE PLACEMENTS,OP PACKAGE/PLACEMENT COSTS,Third Party Payments,Revenue
Walsall Council,http://opendatacommunities.org/id/metropolitan-district-council/walsall,WC85-458,31/10/2017,Adult Social Care,ASH GRANGE CARE HOME,10/10/2017,"2,000.00",73373-RESIDENTIAL & NURSING CARE PLACEMENTS,MH COMMISSIONING,Third Party Payments,Revenue
Walsall Council,http://opendatacommunities.org/id/metropolitan-district-council/walsall,WC85-459,31/10/2017,Adult Social Care,ASH GRANGE CARE HOME,10/10/2017,"2,000.00",73373-RESIDENTIAL & NURSING CARE PLACEMENTS,OP PACKAGE/PLACEMENT COSTS,Third Party Payments,Revenue
Walsall Council,http://opendatacommunities.org/id/metropolitan-district-council/walsall,WC85-460,31/10/2017,Adult Social Care,ASH GRANGE CARE HOME,10/10/2017,"2,000.00",73373-RESIDENTIAL & NURSING CARE PLACEMENTS,OP PACKAGE/PLACEMENT COSTS,Third Party Payments,Revenue
Walsall Council,http://opendatacommunities.org/id/metropolitan-district-council/walsall,WC85-461,31/10/2017,Adult Social Care,ASH GRANGE CARE HOME,10/10/2017,"2,000.00",73373-RESIDENTIAL & NURSING CARE PLACEMENTS,OP PACKAGE/PLACEMENT COSTS,Third Party Payments,Revenue
Walsall Council,http://opendatacommunities.org/id/metropolitan-district-council/walsall,WC85-462,31/10/2017,Adult Social Care,ASH GRANGE CARE HOME,10/10/2017,"2,000.00",73373-RESIDENTIAL & NURSING CARE PLACEMENTS,OP PACKAGE/PLACEMENT COSTS,Third Party Payments,Revenue
Walsall Council,http://opendatacommunities.org/id/metropolitan-district-council/walsall,WC85-463,31/10/2017,Adult Social Care,ASH GRANGE CARE HOME,10/10/2017,"2,000.00",73373-RESIDENTIAL & NURSING CARE PLACEMENTS,OP PACKAGE/PLACEMENT COSTS,Third Party Payments,Revenue
Walsall Council,http://opendatacommunities.org/id/metropolitan-district-council/walsall,WC85-464,31/10/2017,Adult Social Care,ASH GRANGE CARE HOME,10/10/2017,"2,000.00",73373-RESIDENTIAL & NURSING CARE PLACEMENTS,OP PACKAGE/PLACEMENT COSTS,Third Party Payments,Revenue
Walsall Council,http://opendatacommunities.org/id/metropolitan-district-council/walsall,WC85-465,31/10/2017,Adult Social Care,ASH GRANGE CARE HOME,17/10/2017,"2,000.00",73373-RESIDENTIAL & NURSING CARE PLACEMENTS,OP PACKAGE/PLACEMENT COSTS,Third Party Payments,Revenue
Walsall Council,http://opendatacommunities.org/id/metropolitan-district-council/walsall,WC85-466,31/10/2017,Adult Social Care,ASH GRANGE CARE HOME,17/10/2017,"2,000.00",73373-RESIDENTIAL & NURSING CARE PLACEMENTS,OP PACKAGE/PLACEMENT COSTS,Third Party Payments,Revenue
Walsall Council,http://opendatacommunities.org/id/metropolitan-district-council/walsall,WC85-467,31/10/2017,Adult Social Care,ASH GRANGE CARE HOME,24/10/2017,"2,000.00",73373-RESIDENTIAL & NURSING CARE PLACEMENTS,OP PACKAGE/PLACEMENT COSTS,Third Party Payments,Revenue
Walsall Council,http://opendatacommunities.org/id/metropolitan-district-council/walsall,WC85-468,31/10/2017,Adult Social Care,ASH GRANGE CARE HOME,24/10/2017,"2,000.00",73373-RESIDENTIAL & NURSING CARE PLACEMENTS,OP PACKAGE/PLACEMENT COSTS,Third Party Payments,Revenue
Walsall Council,http://opendatacommunities.org/id/metropolitan-district-council/walsall,WC85-469,31/10/2017,Adult Social Care,ASH GRANGE CARE HOME,24/10/2017,"2,000.00",73373-RESIDENTIAL & NURSING CARE PLACEMENTS,OP PACKAGE/PLACEMENT COSTS,Third Party Payments,Revenue
Walsall Council,http://opendatacommunities.org/id/metropolitan-district-council/walsall,WC85-470,31/10/2017,Adult Social Care,ASH GRANGE CARE HOME,24/10/2017,"2,000.00",73373-RESIDENTIAL & NURSING CARE PLACEMENTS,OP PACKAGE/PLACEMENT COSTS,Third Party Payments,Revenue
Walsall Council,http://opendatacommunities.org/id/metropolitan-district-council/walsall,WC85-471,31/10/2017,Adult Social Care,ASH GRANGE CARE HOME,10/10/2017,"2,000.08",73373-RESIDENTIAL & NURSING CARE PLACEMENTS,OP PACKAGE/PLACEMENT COSTS,Third Party Payments,Revenue
Walsall Council,http://opendatacommunities.org/id/metropolitan-district-council/walsall,WC85-472,31/10/2017,Adult Social Care,ASH GRANGE CARE HOME,10/10/2017,"2,200.00",73373-RESIDENTIAL & NURSING CARE PLACEMENTS,OP PACKAGE/PLACEMENT COSTS,Third Party Payments,Revenue
Walsall Council,http://opendatacommunities.org/id/metropolitan-district-council/walsall,WC85-473,31/10/2017,Adult Social Care,ASH GRANGE CARE HOME,10/10/2017,"2,200.00",73373-RESIDENTIAL & NURSING CARE PLACEMENTS,OP PACKAGE/PLACEMENT COSTS,Third Party Payments,Revenue
Walsall Council,http://opendatacommunities.org/id/metropolitan-district-council/walsall,WC85-474,31/10/2017,Adult Social Care,ASH GRANGE CARE HOME,17/10/2017,"2,200.00",73373-RESIDENTIAL & NURSING CARE PLACEMENTS,OP PACKAGE/PLACEMENT COSTS,Third Party Payments,Revenue
Walsall Council,http://opendatacommunities.org/id/metropolitan-district-council/walsall,WC85-475,31/10/2017,Adult Social Care,ASH GRANGE CARE HOME,10/10/2017,"2,280.00",73373-RESIDENTIAL & NURSING CARE PLACEMENTS,OP PACKAGE/PLACEMENT COSTS,Third Party Payments,Revenue
Walsall Council,http://opendatacommunities.org/id/metropolitan-district-council/walsall,WC85-476,31/10/2017,Adult Social Care,ASH GRANGE CARE HOME,17/10/2017,"2,495.72",73373-RESIDENTIAL & NURSING CARE PLACEMENTS,PD PACKAGE/PLACEMENT COSTS,Third Party Payments,Revenue
Walsall Council,http://opendatacommunities.org/id/metropolitan-district-council/walsall,WC85-477,31/10/2017,Adult Social Care,ASH GRANGE CARE HOME,10/10/2017,"2,657.14",73373-RESIDENTIAL & NURSING CARE PLACEMENTS,OP PACKAGE/PLACEMENT COSTS,Third Party Payments,Revenue
Walsall Council,http://opendatacommunities.org/id/metropolitan-district-council/walsall,WC85-478,31/10/2017,Adult Social Care,ASH GRANGE CARE HOME,10/10/2017,"8,422.07",73373-RESIDENTIAL & NURSING CARE PLACEMENTS,OP PACKAGE/PLACEMENT COSTS,Third Party Payments,Revenue
Walsall Council,http://opendatacommunities.org/id/metropolitan-district-council/walsall,WC85-479,31/10/2017,Adult Social Care,ASHBOURNE LODGE,10/10/2017,"2,173.99",73373-RESIDENTIAL & NURSING CARE PLACEMENTS,OP PACKAGE/PLACEMENT COSTS,Third Party Payments,Revenue
Walsall Council,http://opendatacommunities.org/id/metropolitan-district-council/walsall,WC85-480,31/10/2017,Adult Social Care,REDACTED,06/10/2017,422,76422-DIRECT PAYMENTS TO SOCIAL SERVICES CLIENTS,LD PACKAGE/PLACEMENT COSTS,Transfer Payments,Revenue
Walsall Council,http://opendatacommunities.org/id/metropolitan-district-council/walsall,WC85-481,31/10/2017,Childrens,ASKELITE LTD,11/10/2017,"28,705.00",01004-DEMOLITION,JANE LANE SCHOOL DEV FORMULA CAPITAL,Capital,Capital
Walsall Council,http://opendatacommunities.org/id/metropolitan-district-council/walsall,WC85-482,31/10/2017,Economy & Environment,ASKEWS AND HOLTS LIBRARY SERVICES LTD,25/10/2017,265.7,60501-LIBRARY BOOKS,LIBRARY STOCK AND PERFORMANCE,Supplies & Services,Revenue
Walsall Council,http://opendatacommunities.org/id/metropolitan-district-council/walsall,WC85-483,31/10/2017,Economy & Environment,ASKEWS AND HOLTS LIBRARY SERVICES LTD,06/10/2017,297.34,60501-LIBRARY BOOKS,LIBRARY STOCK AND PERFORMANCE,Supplies & Services,Revenue
Walsall Council,http://opendatacommunities.org/id/metropolitan-district-council/walsall,WC85-484,31/10/2017,Economy & Environment,ASKEWS AND HOLTS LIBRARY SERVICES LTD,24/10/2017,371.48,60501-LIBRARY BOOKS,LIBRARY STOCK AND PERFORMANCE,Supplies & Services,Revenue
Walsall Council,http://opendatacommunities.org/id/metropolitan-district-council/walsall,WC85-485,31/10/2017,Economy & Environment,ASKEWS AND HOLTS LIBRARY SERVICES LTD,24/10/2017,"1,237.50",60501-LIBRARY BOOKS,LIBRARY STOCK AND PERFORMANCE,Supplies & Services,Revenue
Walsall Council,http://opendatacommunities.org/id/metropolitan-district-council/walsall,WC85-486,31/10/2017,Adult Social Care,REDACTED,06/10/2017,756,76422-DIRECT PAYMENTS TO SOCIAL SERVICES CLIENTS,OP PACKAGE/PLACEMENT COSTS,Transfer Payments,Revenue
Walsall Council,http://opendatacommunities.org/id/metropolitan-district-council/walsall,WC85-487,31/10/2017,Change and Governance,ASTECH CONSULTANTS LTD,25/10/2017,300,64500-PUBLICATIONS/ORGANISATIONS-SUBSCRIPTIONS,COMMITTEE ADMINISTRATION,Supplies & Services,Revenue
Walsall Council,http://opendatacommunities.org/id/metropolitan-district-council/walsall,WC85-488,31/10/2017,Change and Governance,ASTECH CONSULTANTS LTD,25/10/2017,"6,705.62",64500-PUBLICATIONS/ORGANISATIONS-SUBSCRIPTIONS,COMMITTEE ADMINISTRATION,Supplies & Services,Revenue
Walsall Council,http://opendatacommunities.org/id/metropolitan-district-council/walsall,WC85-489,31/10/2017,Change and Governance,ASTUN TECHNOLOGY LIMITED,18/10/2017,"11,325.00",63820-RECHARGE FOR MAINTENANCE/APPLICATION COSTS-COMPUTER,APPLICATIONS,Supplies & Services,Revenue
Walsall Council,http://opendatacommunities.org/id/metropolitan-district-council/walsall,WC85-490,31/10/2017,Childrens,ATG CONTRACT SERVICES LIMITED,09/10/2017,"4,836.18",52000-WITH DRIVER-HIRE OF VEHICLES,SCHOOL TRANSPORT,Transport,Revenue
Walsall Council,http://opendatacommunities.org/id/metropolitan-district-council/walsall,WC85-491,31/10/2017,Childrens,ATG CONTRACT SERVICES LIMITED,09/10/2017,"11,497.23",52000-WITH DRIVER-HIRE OF VEHICLES,SCHOOL TRANSPORT,Transport,Revenue
Walsall Council,http://opendatacommunities.org/id/metropolitan-district-council/walsall,WC85-492,31/10/2017,Economy & Environment,ATHWAL NEWS LTD,02/10/2017,337.94,60501-LIBRARY BOOKS,LIBRARY STOCK AND PERFORMANCE,Supplies & Services,Revenue
Walsall Council,http://opendatacommunities.org/id/metropolitan-district-council/walsall,WC85-493,31/10/2017,Change and Governance,AURORA GRAPHICS & DISPLAYS LTD,05/10/2017,250,62008-OUTWORK-PRINT ROOM,PRINTING SERVICES,Supplies & Services,Revenue
Walsall Council,http://opendatacommunities.org/id/metropolitan-district-council/walsall,WC85-494,31/10/2017,Adult Social Care,AUTISM WEST MIDLANDS 001,17/10/2017,"4,838.06",73373-RESIDENTIAL & NURSING CARE PLACEMENTS,LD PACKAGE/PLACEMENT COSTS,Third Party Payments,Revenue
Walsall Council,http://opendatacommunities.org/id/metropolitan-district-council/walsall,WC85-495,31/10/2017,Economy & Environment,AVALON PROMOTIONS LTD,02/10/2017,428.33,63000-PROFESSIONAL FEES AND SERVICES,FOREST ARTS CENTRE,Supplies & Services,Revenue
Walsall Council,http://opendatacommunities.org/id/metropolitan-district-council/walsall,WC85-496,31/10/2017,Adult Social Care,AVE MARIA CARE SERVICES,20/10/2017,268.32,73372-DOMICILIARY CARE,OP PACKAGE/PLACEMENT COSTS,Third Party Payments,Revenue
Walsall Council,http://opendatacommunities.org/id/metropolitan-district-council/walsall,WC85-497,31/10/2017,Adult Social Care,AVE MARIA CARE SERVICES,01/10/2017,882,73372-DOMICILIARY CARE,OP PACKAGE/PLACEMENT COSTS,Third Party Payments,Revenue
Walsall Council,http://opendatacommunities.org/id/metropolitan-district-council/walsall,WC85-498,31/10/2017,Adult Social Care,REDACTED,06/10/2017,989.04,76422-DIRECT PAYMENTS TO SOCIAL SERVICES CLIENTS,OP PACKAGE/PLACEMENT COSTS,Transfer Payments,Revenue
Walsall Council,http://opendatacommunities.org/id/metropolitan-district-council/walsall,WC85-499,31/10/2017,Childrens,REDACTED,06/10/2017,"1,284.00",76422-DIRECT PAYMENTS TO SOCIAL SERVICES CLIENTS,FAMILY SUPPORT - DIRECT PAYMENTS,Transfer Payments,Revenue
Walsall Council,http://opendatacommunities.org/id/metropolitan-district-council/walsall,WC85-500,31/10/2017,Adult Social Care,REDACTED,06/10/2017,"2,808.00",76422-DIRECT PAYMENTS TO SOCIAL SERVICES CLIENTS,LD PACKAGE/PLACEMENT COSTS,Transfer Payments,Revenue
Walsall Council,http://opendatacommunities.org/id/metropolitan-district-council/walsall,WC85-501,31/10/2017,Childrens,REDACTED,24/10/2017,985.76,74501-MAINTENANCE ALLOWANCE-FOSTER CARERS,FAMILY & FRIENDS FOSTER CARE PROVISION,Transfer Payments,Revenue
Walsall Council,http://opendatacommunities.org/id/metropolitan-district-council/walsall,WC85-502,31/10/2017,Childrens,REDACTED,10/10/2017,464,76000-TRANSFER PAYMENTS - SOCIAL SERVICES CLIENTS,TRANSITION AND LEAVING CARE,Transfer Payments,Revenue
Walsall Council,http://opendatacommunities.org/id/metropolitan-district-council/walsall,WC85-503,31/10/2017,Childrens,REDACTED,10/10/2017,464,76000-TRANSFER PAYMENTS - SOCIAL SERVICES CLIENTS,TRANSITION AND LEAVING CARE,Transfer Payments,Revenue
Walsall Council,http://opendatacommunities.org/id/metropolitan-district-council/walsall,WC85-504,31/10/2017,Childrens,REDACTED,24/10/2017,464,76000-TRANSFER PAYMENTS - SOCIAL SERVICES CLIENTS,TRANSITION AND LEAVING CARE,Transfer Payments,Revenue
Walsall Council,http://opendatacommunities.org/id/metropolitan-district-council/walsall,WC85-505,31/10/2017,Childrens,REDACTED,24/10/2017,464,76000-TRANSFER PAYMENTS - SOCIAL SERVICES CLIENTS,TRANSITION AND LEAVING CARE,Transfer Payments,Revenue
Walsall Council,http://opendatacommunities.org/id/metropolitan-district-council/walsall,WC85-506,31/10/2017,Change and Governance,BADENOCH & CLARK 002,19/10/2017,"3,742.60",34305-AGENCY STAFF-EMPLOYEES,CORPORATE MANAGEMENT TEAM,Employees,Revenue
Walsall Council,http://opendatacommunities.org/id/metropolitan-district-council/walsall,WC85-507,31/10/2017,Change and Governance,BADENOCH & CLARK 002,23/10/2017,"3,742.60",34305-AGENCY STAFF-EMPLOYEES,CORPORATE MANAGEMENT TEAM,Employees,Revenue
Walsall Council,http://opendatacommunities.org/id/metropolitan-district-council/walsall,WC85-508,31/10/2017,Change and Governance,BADENOCH & CLARK 002,04/10/2017,"4,678.25",34305-AGENCY STAFF-EMPLOYEES,CORPORATE MANAGEMENT TEAM,Employees,Revenue
Walsall Council,http://opendatacommunities.org/id/metropolitan-district-council/walsall,WC85-509,31/10/2017,Change and Governance,BADENOCH & CLARK 002,04/10/2017,"4,678.25",34305-AGENCY STAFF-EMPLOYEES,CORPORATE MANAGEMENT TEAM,Employees,Revenue
Walsall Council,http://opendatacommunities.org/id/metropolitan-district-council/walsall,WC85-510,31/10/2017,Change and Governance,BADENOCH & CLARK 002,16/10/2017,"4,678.25",34305-AGENCY STAFF-EMPLOYEES,CORPORATE MANAGEMENT TEAM,Employees,Revenue
Walsall Council,http://opendatacommunities.org/id/metropolitan-district-council/walsall,WC85-511,31/10/2017,Change and Governance,BADENOCH & CLARK 002,30/10/2017,"4,678.25",34305-AGENCY STAFF-EMPLOYEES,CORPORATE MANAGEMENT TEAM,Employees,Revenue
Walsall Council,http://opendatacommunities.org/id/metropolitan-district-council/walsall,WC85-512,31/10/2017,Economy & Environment,BAKER HALL PARTNERSHIP,12/10/2017,410.75,63000-PROFESSIONAL FEES AND SERVICES,BUILDING CONTROL REVENUE FUNDED,Supplies & Services,Revenue
Walsall Council,http://opendatacommunities.org/id/metropolitan-district-council/walsall,WC85-513,31/10/2017,Economy & Environment,BAKER HALL PARTNERSHIP,13/10/2017,721.5,63000-PROFESSIONAL FEES AND SERVICES,BUILDING CONTROL REVENUE FUNDED,Supplies & Services,Revenue
Walsall Council,http://opendatacommunities.org/id/metropolitan-district-council/walsall,WC85-514,31/10/2017,Adult Social Care,REDACTED,06/10/2017,480,76422-DIRECT PAYMENTS TO SOCIAL SERVICES CLIENTS,MH COMMISSIONING,Transfer Payments,Revenue
Walsall Council,http://opendatacommunities.org/id/metropolitan-district-council/walsall,WC85-515,31/10/2017,Adult Social Care,REDACTED,06/10/2017,"3,258.96",76422-DIRECT PAYMENTS TO SOCIAL SERVICES CLIENTS,LD PACKAGE/PLACEMENT COSTS,Transfer Payments,Revenue
Walsall Council,http://opendatacommunities.org/id/metropolitan-district-council/walsall,WC85-516,31/10/2017,Adult Social Care,REDACTED,06/10/2017,800,76422-DIRECT PAYMENTS TO SOCIAL SERVICES CLIENTS,OP PACKAGE/PLACEMENT COSTS,Transfer Payments,Revenue
Walsall Council,http://opendatacommunities.org/id/metropolitan-district-council/walsall,WC85-517,31/10/2017,Economy & Environment,BANGLA KAGOJ LTD,13/10/2017,"5,000.00",63128-HIRE OF ROOM-SERVICES-FEES,ESF COMMUNITY GRANTS,Supplies & Services,Revenue
Walsall Council,http://opendatacommunities.org/id/metropolitan-district-council/walsall,WC85-518,31/10/2017,Adult Social Care,REDACTED,06/10/2017,"1,582.86",76422-DIRECT PAYMENTS TO SOCIAL SERVICES CLIENTS,OP PACKAGE/PLACEMENT COSTS,Transfer Payments,Revenue
Walsall Council,http://opendatacommunities.org/id/metropolitan-district-council/walsall,WC85-519,31/10/2017,Childrens,REDACTED,24/10/2017,9.24,60006-NEW-FURNITURE & EQUIPMENT,FAMILY & FRIENDS FOSTER CARE PROVISION,Supplies & Services,Revenue
Walsall Council,http://opendatacommunities.org/id/metropolitan-district-council/walsall,WC85-520,31/10/2017,Childrens,REDACTED,24/10/2017,345.24,74508-INTERNAL FOSTER CARERS-CARER FEES,FAMILY & FRIENDS FOSTER CARE PROVISION,Transfer Payments,Revenue
Walsall Council,http://opendatacommunities.org/id/metropolitan-district-council/walsall,WC85-521,31/10/2017,Childrens,REDACTED,24/10/2017,571.44,74501-MAINTENANCE ALLOWANCE-FOSTER CARERS,FAMILY & FRIENDS FOSTER CARE PROVISION,Transfer Payments,Revenue
Walsall Council,http://opendatacommunities.org/id/metropolitan-district-council/walsall,WC85-522,31/10/2017,Adult Social Care,REDACTED,06/10/2017,849.64,76422-DIRECT PAYMENTS TO SOCIAL SERVICES CLIENTS,OP PACKAGE/PLACEMENT COSTS,Transfer Payments,Revenue
Walsall Council,http://opendatacommunities.org/id/metropolitan-district-council/walsall,WC85-523,31/10/2017,Economy & Environment,BARCHAM TREES PLC,06/10/2017,950,60500-GENERAL MATERIALS,COUNTRYSIDE MANAGEMENT-OTHER,Supplies & Services,Revenue
Walsall Council,http://opendatacommunities.org/id/metropolitan-district-council/walsall,WC85-524,31/10/2017,Childrens,BARNARDOS SERVICES LTD,09/10/2017,"3,116.40",74037-INDEPENDENT FOSTER CARE-OTH AGENCY PROVISION,EXTERNAL FOSTER CARE PROVISION,Third Party Payments,Revenue
Walsall Council,http://opendatacommunities.org/id/metropolitan-district-council/walsall,WC85-525,31/10/2017,Childrens,BARNARDOS SERVICES LTD,30/10/2017,"5,701.66",63000-PROFESSIONAL FEES AND SERVICES,"43A HILTON ROAD, WILLENHALL",Supplies & Services,Revenue
Walsall Council,http://opendatacommunities.org/id/metropolitan-district-council/walsall,WC85-526,31/10/2017,Change and Governance,BARNBOROUGH LTD,03/10/2017,533.5,60007-REPAIR OF EQUIPMENT-EQUIPMENT,CL ADMIN,Supplies & Services,Revenue
Walsall Council,http://opendatacommunities.org/id/metropolitan-district-council/walsall,WC85-527,31/10/2017,Economy & Environment,BARONY CONSULTING GROUP LIMITED,06/10/2017,399,30030-EXTERNAL TRAINING,LEISURE - MANAGEMENT AND ADMIN,Employees,Revenue
Walsall Council,http://opendatacommunities.org/id/metropolitan-district-council/walsall,WC85-528,31/10/2017,Adult Social Care,REDACTED,06/10/2017,490.4,76422-DIRECT PAYMENTS TO SOCIAL SERVICES CLIENTS,OP PACKAGE/PLACEMENT COSTS,Transfer Payments,Revenue
Walsall Council,http://opendatacommunities.org/id/metropolitan-district-council/walsall,WC85-529,31/10/2017,Economy & Environment,BAT FABRICATIONS LTD,18/10/2017,285,40018-OTHER-OP MTCE,WALSALL MARKET,Premises,Revenue
Walsall Council,http://opendatacommunities.org/id/metropolitan-district-council/walsall,WC85-530,31/10/2017,Economy & Environment,BAT FABRICATIONS LTD,19/10/2017,415,60006-NEW-FURNITURE & EQUIPMENT,INFRASTRUCTURE MAINTENANCE,Supplies & Services,Revenue
Walsall Council,http://opendatacommunities.org/id/metropolitan-district-council/walsall,WC85-531,31/10/2017,Economy & Environment,BAT FABRICATIONS LTD,19/10/2017,820,73025-PROFESSIONAL SERVICES-PRIV CONTRACTOR & OTHER AGENCIES,DEPOT,Third Party Payments,Revenue
Walsall Council,http://opendatacommunities.org/id/metropolitan-district-council/walsall,WC85-532,31/10/2017,Economy & Environment,BAT FABRICATIONS LTD,11/10/2017,"4,935.00",01006-SITE WORKS MAIN CONTRACTORS,CFR 1077 LEAMORE PARK ADDITIONAL FENCING,Capital,Capital
Walsall Council,http://opendatacommunities.org/id/metropolitan-district-council/walsall,WC85-533,31/10/2017,Economy & Environment,BEADEN POWERLEC LIMITED,02/10/2017,"2,394.00",73025-PROFESSIONAL SERVICES-PRIV CONTRACTOR & OTHER AGENCIES,PARKING SERVICES OFF-STREET,Third Party Payments,Revenue
Walsall Council,http://opendatacommunities.org/id/metropolitan-district-council/walsall,WC85-534,31/10/2017,Childrens,REDACTED,09/10/2017,9.24,60006-NEW-FURNITURE & EQUIPMENT,INTERNAL FOSTER CARE PROVISION,Supplies & Services,Revenue
Walsall Council,http://opendatacommunities.org/id/metropolitan-district-council/walsall,WC85-535,31/10/2017,Childrens,REDACTED,09/10/2017,175,74505-SCHOOL UNIFORM/INITIAL TRAINING ALLOWANCE-FOSTER CARERS,INTERNAL FOSTER CARE PROVISION,Transfer Payments,Revenue
Walsall Council,http://opendatacommunities.org/id/metropolitan-district-council/walsall,WC85-536,31/10/2017,Childrens,REDACTED,09/10/2017,650.92,74501-MAINTENANCE ALLOWANCE-FOSTER CARERS,INTERNAL FOSTER CARE PROVISION,Transfer Payments,Revenue
Walsall Council,http://opendatacommunities.org/id/metropolitan-district-council/walsall,WC85-537,31/10/2017,Childrens,REDACTED,09/10/2017,780.96,74508-INTERNAL FOSTER CARERS-CARER FEES,INTERNAL FOSTER CARE PROVISION,Transfer Payments,Revenue
Walsall Council,http://opendatacommunities.org/id/metropolitan-district-council/walsall,WC85-538,31/10/2017,Childrens,REDACTED,09/10/2017,9.24,60006-NEW-FURNITURE & EQUIPMENT,INTERNAL FOSTER CARE PROVISION,Supplies & Services,Revenue
Walsall Council,http://opendatacommunities.org/id/metropolitan-district-council/walsall,WC85-539,31/10/2017,Childrens,REDACTED,09/10/2017,23.61,74506-TRAVEL-FOSTER CARERS,INTERNAL FOSTER CARE PROVISION,Transfer Payments,Revenue
Walsall Council,http://opendatacommunities.org/id/metropolitan-district-council/walsall,WC85-540,31/10/2017,Childrens,REDACTED,09/10/2017,780.96,74508-INTERNAL FOSTER CARERS-CARER FEES,INTERNAL FOSTER CARE PROVISION,Transfer Payments,Revenue
Walsall Council,http://opendatacommunities.org/id/metropolitan-district-council/walsall,WC85-541,31/10/2017,Adult Social Care,BELVIDERE COURT,24/10/2017,"1,936.40",73373-RESIDENTIAL & NURSING CARE PLACEMENTS,MH COMMISSIONING,Third Party Payments,Revenue
Walsall Council,http://opendatacommunities.org/id/metropolitan-district-council/walsall,WC85-542,31/10/2017,Adult Social Care,BELVIDERE COURT,24/10/2017,"2,214.29",73373-RESIDENTIAL & NURSING CARE PLACEMENTS,MH COMMISSIONING,Third Party Payments,Revenue
Walsall Council,http://opendatacommunities.org/id/metropolitan-district-council/walsall,WC85-543,31/10/2017,Adult Social Care,BELVIDERE COURT,10/10/2017,"2,357.14",73373-RESIDENTIAL & NURSING CARE PLACEMENTS,OP PACKAGE/PLACEMENT COSTS,Third Party Payments,Revenue
Walsall Council,http://opendatacommunities.org/id/metropolitan-district-council/walsall,WC85-544,31/10/2017,Adult Social Care,BELVIDERE COURT,10/10/2017,"2,435.71",73373-RESIDENTIAL & NURSING CARE PLACEMENTS,OP PACKAGE/PLACEMENT COSTS,Third Party Payments,Revenue
Walsall Council,http://opendatacommunities.org/id/metropolitan-district-council/walsall,WC85-545,31/10/2017,Adult Social Care,BELVIDERE COURT,10/10/2017,"3,006.45",73373-RESIDENTIAL & NURSING CARE PLACEMENTS,OP PACKAGE/PLACEMENT COSTS,Third Party Payments,Revenue
Walsall Council,http://opendatacommunities.org/id/metropolitan-district-council/walsall,WC85-546,31/10/2017,Adult Social Care,BELVIDERE COURT,10/10/2017,"3,764.29",73373-RESIDENTIAL & NURSING CARE PLACEMENTS,MH COMMISSIONING,Third Party Payments,Revenue
Walsall Council,http://opendatacommunities.org/id/metropolitan-district-council/walsall,WC85-547,31/10/2017,Adult Social Care,REDACTED,06/10/2017,"2,310.00",76422-DIRECT PAYMENTS TO SOCIAL SERVICES CLIENTS,LD PACKAGE/PLACEMENT COSTS,Transfer Payments,Revenue
Walsall Council,http://opendatacommunities.org/id/metropolitan-district-council/walsall,WC85-548,31/10/2017,Childrens,BENJAMIN UK LTD,09/10/2017,"17,520.00",74036-EXTERNAL RESIDENTIAL CARE-OTH AGENCY PROVISION,INDEPENDENT RESIDENTIAL HOMES,Third Party Payments,Revenue
Walsall Council,http://opendatacommunities.org/id/metropolitan-district-council/walsall,WC85-549,31/10/2017,Adult Social Care,BENTLEY COURT PRIORY,04/10/2017,"2,004.17",73373-RESIDENTIAL & NURSING CARE PLACEMENTS,OP PACKAGE/PLACEMENT COSTS,Third Party Payments,Revenue
Walsall Council,http://opendatacommunities.org/id/metropolitan-district-council/walsall,WC85-550,31/10/2017,Adult Social Care,BENTLEY COURT PRIORY,04/10/2017,"2,041.20",73373-RESIDENTIAL & NURSING CARE PLACEMENTS,OP PACKAGE/PLACEMENT COSTS,Third Party Payments,Revenue
Walsall Council,http://opendatacommunities.org/id/metropolitan-district-council/walsall,WC85-551,31/10/2017,Adult Social Care,BENTLEY COURT PRIORY,10/10/2017,"2,070.98",73373-RESIDENTIAL & NURSING CARE PLACEMENTS,OP PACKAGE/PLACEMENT COSTS,Third Party Payments,Revenue
Walsall Council,http://opendatacommunities.org/id/metropolitan-district-council/walsall,WC85-552,31/10/2017,Adult Social Care,BENTLEY COURT PRIORY,24/10/2017,"2,153.13",73373-RESIDENTIAL & NURSING CARE PLACEMENTS,OP PACKAGE/PLACEMENT COSTS,Third Party Payments,Revenue
Walsall Council,http://opendatacommunities.org/id/metropolitan-district-council/walsall,WC85-553,31/10/2017,Adult Social Care,BENTLEY COURT PRIORY,24/10/2017,"2,357.14",73373-RESIDENTIAL & NURSING CARE PLACEMENTS,OP PACKAGE/PLACEMENT COSTS,Third Party Payments,Revenue
Walsall Council,http://opendatacommunities.org/id/metropolitan-district-council/walsall,WC85-554,31/10/2017,Adult Social Care,BENTLEY COURT PRIORY,24/10/2017,"2,357.15",73373-RESIDENTIAL & NURSING CARE PLACEMENTS,OP PACKAGE/PLACEMENT COSTS,Third Party Payments,Revenue
Walsall Council,http://opendatacommunities.org/id/metropolitan-district-council/walsall,WC85-555,31/10/2017,Adult Social Care,BENTLEY COURT PRIORY,24/10/2017,"2,397.30",73373-RESIDENTIAL & NURSING CARE PLACEMENTS,OP PACKAGE/PLACEMENT COSTS,Third Party Payments,Revenue
Walsall Council,http://opendatacommunities.org/id/metropolitan-district-council/walsall,WC85-556,31/10/2017,Adult Social Care,BENTLEY COURT PRIORY,24/10/2017,"2,435.71",73373-RESIDENTIAL & NURSING CARE PLACEMENTS,OP PACKAGE/PLACEMENT COSTS,Third Party Payments,Revenue
Walsall Council,http://opendatacommunities.org/id/metropolitan-district-council/walsall,WC85-557,31/10/2017,Adult Social Care,BENTLEY COURT PRIORY,24/10/2017,"2,435.72",73373-RESIDENTIAL & NURSING CARE PLACEMENTS,OP PACKAGE/PLACEMENT COSTS,Third Party Payments,Revenue
Walsall Council,http://opendatacommunities.org/id/metropolitan-district-council/walsall,WC85-558,31/10/2017,Economy & Environment,BENTLEY TENANTS & RESIDENTS ASSOCIATION,13/10/2017,"5,123.50",66500-GRANTS TO OTHER ORGS,ESF COMMUNITY GRANTS,Third Party Payments,Revenue
Walsall Council,http://opendatacommunities.org/id/metropolitan-district-council/walsall,WC85-559,31/10/2017,Childrens,BERRY GIFFORD LTD,12/10/2017,"2,050.00",76010-ACCOMMODATION AND RELATED COSTS-ASSISTANCE TO S/S CLIENTS,TRANSITION AND LEAVING CARE,Transfer Payments,Revenue
Walsall Council,http://opendatacommunities.org/id/metropolitan-district-council/walsall,WC85-560,31/10/2017,Childrens,BERRY GIFFORD LTD,09/10/2017,"4,000.22",76010-ACCOMMODATION AND RELATED COSTS-ASSISTANCE TO S/S CLIENTS,TRANSITION AND LEAVING CARE,Transfer Payments,Revenue
Walsall Council,http://opendatacommunities.org/id/metropolitan-district-council/walsall,WC85-561,31/10/2017,Childrens,BERRY GIFFORD LTD,09/10/2017,"4,145.40",76010-ACCOMMODATION AND RELATED COSTS-ASSISTANCE TO S/S CLIENTS,TRANSITION AND LEAVING CARE,Transfer Payments,Revenue
Walsall Council,http://opendatacommunities.org/id/metropolitan-district-council/walsall,WC85-562,31/10/2017,Childrens,BERRY GIFFORD LTD,09/10/2017,"4,283.58",76010-ACCOMMODATION AND RELATED COSTS-ASSISTANCE TO S/S CLIENTS,TRANSITION AND LEAVING CARE,Transfer Payments,Revenue
Walsall Council,http://opendatacommunities.org/id/metropolitan-district-council/walsall,WC85-563,31/10/2017,Childrens,BERRY GIFFORD LTD,12/10/2017,"6,150.00",76010-ACCOMMODATION AND RELATED COSTS-ASSISTANCE TO S/S CLIENTS,TRANSITION AND LEAVING CARE,Transfer Payments,Revenue
Walsall Council,http://opendatacommunities.org/id/metropolitan-district-council/walsall,WC85-564,31/10/2017,Holding Accounts,BERRYMANS LACE MAWER LLP,12/10/2017,"2,369.00",67001-MISC INSURANCES - PAYMENT OF CLAIMS,PUBLIC LIABILITY,Supplies & Services,Revenue
Walsall Council,http://opendatacommunities.org/id/metropolitan-district-council/walsall,WC85-565,31/10/2017,Adult Social Care,REDACTED,06/10/2017,"1,007.84",76422-DIRECT PAYMENTS TO SOCIAL SERVICES CLIENTS,OP PACKAGE/PLACEMENT COSTS,Transfer Payments,Revenue
Walsall Council,http://opendatacommunities.org/id/metropolitan-district-council/walsall,WC85-566,31/10/2017,Adult Social Care,REDACTED,06/10/2017,"1,612.00",76422-DIRECT PAYMENTS TO SOCIAL SERVICES CLIENTS,OP PACKAGE/PLACEMENT COSTS,Transfer Payments,Revenue
Walsall Council,http://opendatacommunities.org/id/metropolitan-district-council/walsall,WC85-567,31/10/2017,Childrens,REDACTED,09/10/2017,9.24,60006-NEW-FURNITURE & EQUIPMENT,INTERNAL FOSTER CARE PROVISION,Supplies & Services,Revenue
Walsall Council,http://opendatacommunities.org/id/metropolitan-district-council/walsall,WC85-568,31/10/2017,Childrens,REDACTED,09/10/2017,71.43,74503-BIRTHDAY ALLOWANCE-FOSTER CARERS,INTERNAL FOSTER CARE PROVISION,Transfer Payments,Revenue
Walsall Council,http://opendatacommunities.org/id/metropolitan-district-council/walsall,WC85-569,31/10/2017,Childrens,REDACTED,09/10/2017,571.44,74501-MAINTENANCE ALLOWANCE-FOSTER CARERS,INTERNAL FOSTER CARE PROVISION,Transfer Payments,Revenue
Walsall Council,http://opendatacommunities.org/id/metropolitan-district-council/walsall,WC85-570,31/10/2017,Childrens,REDACTED,09/10/2017,"1,436.08",74508-INTERNAL FOSTER CARERS-CARER FEES,INTERNAL FOSTER CARE PROVISION,Transfer Payments,Revenue
Walsall Council,http://opendatacommunities.org/id/metropolitan-district-council/walsall,WC85-571,31/10/2017,Adult Social Care,REDACTED,06/10/2017,968,76422-DIRECT PAYMENTS TO SOCIAL SERVICES CLIENTS,OP PACKAGE/PLACEMENT COSTS,Transfer Payments,Revenue
Walsall Council,http://opendatacommunities.org/id/metropolitan-district-council/walsall,WC85-572,31/10/2017,Adult Social Care,BESCOT LODGE RESIDENTIAL CARE HOME,17/10/2017,"1,735.71",73373-RESIDENTIAL & NURSING CARE PLACEMENTS,OP PACKAGE/PLACEMENT COSTS,Third Party Payments,Revenue
Walsall Council,http://opendatacommunities.org/id/metropolitan-district-council/walsall,WC85-573,31/10/2017,Adult Social Care,BESCOT LODGE RESIDENTIAL CARE HOME,24/10/2017,"1,833.43",73373-RESIDENTIAL & NURSING CARE PLACEMENTS,OP PACKAGE/PLACEMENT COSTS,Third Party Payments,Revenue
Walsall Council,http://opendatacommunities.org/id/metropolitan-district-council/walsall,WC85-574,31/10/2017,Adult Social Care,BESCOT LODGE RESIDENTIAL CARE HOME,24/10/2017,"1,833.43",73373-RESIDENTIAL & NURSING CARE PLACEMENTS,LD PACKAGE/PLACEMENT COSTS,Third Party Payments,Revenue
Walsall Council,http://opendatacommunities.org/id/metropolitan-district-council/walsall,WC85-575,31/10/2017,Adult Social Care,BESCOT LODGE RESIDENTIAL CARE HOME,17/10/2017,"1,928.57",73373-RESIDENTIAL & NURSING CARE PLACEMENTS,OP PACKAGE/PLACEMENT COSTS,Third Party Payments,Revenue
Walsall Council,http://opendatacommunities.org/id/metropolitan-district-council/walsall,WC85-576,31/10/2017,Adult Social Care,BESCOT LODGE RESIDENTIAL CARE HOME,17/10/2017,"1,992.86",73373-RESIDENTIAL & NURSING CARE PLACEMENTS,OP PACKAGE/PLACEMENT COSTS,Third Party Payments,Revenue
Walsall Council,http://opendatacommunities.org/id/metropolitan-district-council/walsall,WC85-577,31/10/2017,Adult Social Care,BESCOT LODGE RESIDENTIAL CARE HOME,17/10/2017,"1,992.86",73373-RESIDENTIAL & NURSING CARE PLACEMENTS,OP PACKAGE/PLACEMENT COSTS,Third Party Payments,Revenue
Walsall Council,http://opendatacommunities.org/id/metropolitan-district-council/walsall,WC85-578,31/10/2017,Adult Social Care,BESCOT LODGE RESIDENTIAL CARE HOME,24/10/2017,"2,037.14",73373-RESIDENTIAL & NURSING CARE PLACEMENTS,OP PACKAGE/PLACEMENT COSTS,Third Party Payments,Revenue
Walsall Council,http://opendatacommunities.org/id/metropolitan-district-council/walsall,WC85-579,31/10/2017,Adult Social Care,BESCOT LODGE RESIDENTIAL CARE HOME,24/10/2017,"2,037.14",73373-RESIDENTIAL & NURSING CARE PLACEMENTS,OP PACKAGE/PLACEMENT COSTS,Third Party Payments,Revenue
Walsall Council,http://opendatacommunities.org/id/metropolitan-district-council/walsall,WC85-580,31/10/2017,Adult Social Care,BESCOT LODGE RESIDENTIAL CARE HOME,24/10/2017,"2,037.14",73373-RESIDENTIAL & NURSING CARE PLACEMENTS,OP PACKAGE/PLACEMENT COSTS,Third Party Payments,Revenue
Walsall Council,http://opendatacommunities.org/id/metropolitan-district-council/walsall,WC85-581,31/10/2017,Adult Social Care,BESCOT LODGE RESIDENTIAL CARE HOME,24/10/2017,"2,037.14",73373-RESIDENTIAL & NURSING CARE PLACEMENTS,OP PACKAGE/PLACEMENT COSTS,Third Party Payments,Revenue
Walsall Council,http://opendatacommunities.org/id/metropolitan-district-council/walsall,WC85-582,31/10/2017,Economy & Environment,BESCOT STADIUM SUNDAY MARKET LTD,11/10/2017,"2,800.00",73025-PROFESSIONAL SERVICES-PRIV CONTRACTOR & OTHER AGENCIES,WILLENHALL MARKET,Third Party Payments,Revenue
Walsall Council,http://opendatacommunities.org/id/metropolitan-district-council/walsall,WC85-583,31/10/2017,Adult Social Care,BESS CARE LIMITED,09/10/2017,374.5,73372-DOMICILIARY CARE,OP PACKAGE/PLACEMENT COSTS,Third Party Payments,Revenue
Walsall Council,http://opendatacommunities.org/id/metropolitan-district-council/walsall,WC85-584,31/10/2017,Adult Social Care,BESS CARE LIMITED,03/10/2017,390.5,73372-DOMICILIARY CARE,OP PACKAGE/PLACEMENT COSTS,Third Party Payments,Revenue
Walsall Council,http://opendatacommunities.org/id/metropolitan-district-council/walsall,WC85-585,31/10/2017,Adult Social Care,BETHPHAGE.,06/10/2017,650,73374-SUPPORTED & OTHER ACCOMMODATION,LD PACKAGE/PLACEMENT COSTS,Third Party Payments,Revenue
Walsall Council,http://opendatacommunities.org/id/metropolitan-district-council/walsall,WC85-586,31/10/2017,Adult Social Care,BETHPHAGE.,26/10/2017,650,73374-SUPPORTED & OTHER ACCOMMODATION,LD PACKAGE/PLACEMENT COSTS,Third Party Payments,Revenue
Walsall Council,http://opendatacommunities.org/id/metropolitan-district-council/walsall,WC85-587,31/10/2017,Adult Social Care,BETHPHAGE.,25/10/2017,812.5,73374-SUPPORTED & OTHER ACCOMMODATION,LD PACKAGE/PLACEMENT COSTS,Third Party Payments,Revenue
Walsall Council,http://opendatacommunities.org/id/metropolitan-district-council/walsall,WC85-588,31/10/2017,Adult Social Care,BETHPHAGE.,06/10/2017,"1,015.92",73374-SUPPORTED & OTHER ACCOMMODATION,LD PACKAGE/PLACEMENT COSTS,Third Party Payments,Revenue
Walsall Council,http://opendatacommunities.org/id/metropolitan-district-council/walsall,WC85-589,31/10/2017,Adult Social Care,BETHPHAGE.,06/10/2017,"1,326.36",73374-SUPPORTED & OTHER ACCOMMODATION,LD PACKAGE/PLACEMENT COSTS,Third Party Payments,Revenue
Walsall Council,http://opendatacommunities.org/id/metropolitan-district-council/walsall,WC85-590,31/10/2017,Adult Social Care,BETHPHAGE.,06/10/2017,"1,439.24",73374-SUPPORTED & OTHER ACCOMMODATION,LD PACKAGE/PLACEMENT COSTS,Third Party Payments,Revenue
Walsall Council,http://opendatacommunities.org/id/metropolitan-district-council/walsall,WC85-591,31/10/2017,Adult Social Care,REDACTED,06/10/2017,949.52,76422-DIRECT PAYMENTS TO SOCIAL SERVICES CLIENTS,MH COMMISSIONING,Transfer Payments,Revenue
Walsall Council,http://opendatacommunities.org/id/metropolitan-district-council/walsall,WC85-592,31/10/2017,Adult Social Care,REDACTED,06/10/2017,"2,767.84",76422-DIRECT PAYMENTS TO SOCIAL SERVICES CLIENTS,OP PACKAGE/PLACEMENT COSTS,Transfer Payments,Revenue
Walsall Council,http://opendatacommunities.org/id/metropolitan-district-council/walsall,WC85-593,31/10/2017,Change and Governance,BFA SAFETY TRAINING,30/10/2017,495,30030-EXTERNAL TRAINING,HEALTH & SAFETY,Employees,Revenue
Walsall Council,http://opendatacommunities.org/id/metropolitan-district-council/walsall,WC85-594,31/10/2017,Change and Governance,BFA SAFETY TRAINING,30/10/2017,595,30030-EXTERNAL TRAINING,HEALTH & SAFETY,Employees,Revenue
Walsall Council,http://opendatacommunities.org/id/metropolitan-district-council/walsall,WC85-595,31/10/2017,Change and Governance,BFA SAFETY TRAINING,30/10/2017,795,30030-EXTERNAL TRAINING,HEALTH & SAFETY,Employees,Revenue
Walsall Council,http://opendatacommunities.org/id/metropolitan-district-council/walsall,WC85-596,31/10/2017,Change and Governance,BGL RIEBER LTD,11/10/2017,"2,175.00",01006-SITE WORKS MAIN CONTRACTORS,CFR 1190 SCHOOLS PROJECT,Capital,Capital
Walsall Council,http://opendatacommunities.org/id/metropolitan-district-council/walsall,WC85-597,31/10/2017,Childrens,BID CENTRE FOR DEAF PEOPLE,18/10/2017,369,63000-PROFESSIONAL FEES AND SERVICES,LOOKED AFTER CHILDRENS SOCIAL WORK TEAM,Supplies & Services,Revenue
Walsall Council,http://opendatacommunities.org/id/metropolitan-district-council/walsall,WC85-598,31/10/2017,Childrens,REDACTED,06/10/2017,572,76422-DIRECT PAYMENTS TO SOCIAL SERVICES CLIENTS,FAMILY SUPPORT - DIRECT PAYMENTS,Transfer Payments,Revenue
Walsall Council,http://opendatacommunities.org/id/metropolitan-district-council/walsall,WC85-599,31/10/2017,Economy & Environment,BILSTON RESOURCE CENTRE,24/10/2017,568.25,63000-PROFESSIONAL FEES AND SERVICES,YEI (IMPACT) PROGRAMME,Supplies & Services,Revenue
Walsall Council,http://opendatacommunities.org/id/metropolitan-district-council/walsall,WC85-600,31/10/2017,Economy & Environment,BILSTON RESOURCE CENTRE,24/10/2017,568.25,63000-PROFESSIONAL FEES AND SERVICES,YEI ESF FUNDING,Supplies & Services,Revenue
Walsall Council,http://opendatacommunities.org/id/metropolitan-district-council/walsall,WC85-601,31/10/2017,Economy & Environment,BILSTON RESOURCE CENTRE,30/10/2017,568.25,63000-PROFESSIONAL FEES AND SERVICES,YEI (IMPACT) PROGRAMME,Supplies & Services,Revenue
Walsall Council,http://opendatacommunities.org/id/metropolitan-district-council/walsall,WC85-602,31/10/2017,Economy & Environment,BILSTON RESOURCE CENTRE,30/10/2017,568.25,63000-PROFESSIONAL FEES AND SERVICES,YEI ESF FUNDING,Supplies & Services,Revenue
Walsall Council,http://opendatacommunities.org/id/metropolitan-district-council/walsall,WC85-603,31/10/2017,Change and Governance,BIRCHFIELDS HEATING SERVICE LTD,18/10/2017,"3,226.00",01046-OTHER GRANTS,CFR 908 FUEL POVERTY FUND,Capital,Capital
Walsall Council,http://opendatacommunities.org/id/metropolitan-district-council/walsall,WC85-604,31/10/2017,Change and Governance,BIRMINGHAM CITY COUNCIL,16/10/2017,"1,145.70",60000-FURNITURE & EQUIPMENT,AREA PARTNERSHIPS,Supplies & Services,Revenue
Walsall Council,http://opendatacommunities.org/id/metropolitan-district-council/walsall,WC85-605,31/10/2017,Change and Governance,BIRMINGHAM CITY COUNCIL,16/10/2017,"1,687.05",60000-FURNITURE & EQUIPMENT,AREA PARTNERSHIPS,Supplies & Services,Revenue
Walsall Council,http://opendatacommunities.org/id/metropolitan-district-council/walsall,WC85-606,31/10/2017,Change and Governance,BIRMINGHAM CITY COUNCIL,16/10/2017,"1,747.80",60000-FURNITURE & EQUIPMENT,AREA PARTNERSHIPS,Supplies & Services,Revenue
Walsall Council,http://opendatacommunities.org/id/metropolitan-district-council/walsall,WC85-607,31/10/2017,Change and Governance,BIRMINGHAM CITY COUNCIL,16/10/2017,"1,822.75",60000-FURNITURE & EQUIPMENT,AREA PARTNERSHIPS,Supplies & Services,Revenue
Walsall Council,http://opendatacommunities.org/id/metropolitan-district-council/walsall,WC85-608,31/10/2017,Childrens,BIRMINGHAM CITY COUNCIL,09/10/2017,"1,956.16",74037-INDEPENDENT FOSTER CARE-OTH AGENCY PROVISION,EXTERNAL FOSTER CARE PROVISION,Third Party Payments,Revenue
Walsall Council,http://opendatacommunities.org/id/metropolitan-district-council/walsall,WC85-609,31/10/2017,Change and Governance,BIRMINGHAM CITY COUNCIL,06/10/2017,"2,580.00",60000-FURNITURE & EQUIPMENT,AREA PARTNERSHIPS,Supplies & Services,Revenue
Walsall Council,http://opendatacommunities.org/id/metropolitan-district-council/walsall,WC85-610,31/10/2017,Change and Governance,BIRMINGHAM CITY COUNCIL,16/10/2017,"16,608.00",64500-PUBLICATIONS/ORGANISATIONS-SUBSCRIPTIONS,CORPORATE EXPENSES,Supplies & Services,Revenue
Walsall Council,http://opendatacommunities.org/id/metropolitan-district-council/walsall,WC85-611,31/10/2017,Childrens,BIRMINGHAM CITY UNIVERSITY,24/10/2017,550,30030-EXTERNAL TRAINING,PRACTICE DEVELOPMENT,Employees,Revenue
Walsall Council,http://opendatacommunities.org/id/metropolitan-district-council/walsall,WC85-612,31/10/2017,Childrens,BIRMINGHAM CITY UNIVERSITY,25/10/2017,550,30030-EXTERNAL TRAINING,PRACTICE DEVELOPMENT,Employees,Revenue
Walsall Council,http://opendatacommunities.org/id/metropolitan-district-council/walsall,WC85-613,31/10/2017,Childrens,BIRMINGHAM CITY UNIVERSITY,25/10/2017,550,30030-EXTERNAL TRAINING,PRACTICE DEVELOPMENT,Employees,Revenue
Walsall Council,http://opendatacommunities.org/id/metropolitan-district-council/walsall,WC85-614,31/10/2017,Childrens,BIRMINGHAM CITY UNIVERSITY,25/10/2017,550,30030-EXTERNAL TRAINING,PRACTICE DEVELOPMENT,Employees,Revenue
Walsall Council,http://opendatacommunities.org/id/metropolitan-district-council/walsall,WC85-615,31/10/2017,Childrens,BIRMINGHAM CITY UNIVERSITY,25/10/2017,550,30030-EXTERNAL TRAINING,PRACTICE DEVELOPMENT,Employees,Revenue
Walsall Council,http://opendatacommunities.org/id/metropolitan-district-council/walsall,WC85-616,31/10/2017,Childrens,BIRMINGHAM CITY UNIVERSITY,25/10/2017,550,30030-EXTERNAL TRAINING,PRACTICE DEVELOPMENT,Employees,Revenue
Walsall Council,http://opendatacommunities.org/id/metropolitan-district-council/walsall,WC85-617,31/10/2017,Economy & Environment,BIRMINGHAM WOMENS AND CHILDRENS NHS FOUNDATION TRUST,02/10/2017,"1,302.00",74000-OTHER AGENCY FEES,CORONERS SERVICE,Third Party Payments,Revenue
Walsall Council,http://opendatacommunities.org/id/metropolitan-district-council/walsall,WC85-618,31/10/2017,Change and Governance,BJH CIVILS & GROUNDWORKS LTD,25/10/2017,"14,300.00",01045-PRIVATE GRANTS,CFR 826 DISABLED FACILITIES GRANTS (SOCIAL SERVICES),Capital,Capital
Walsall Council,http://opendatacommunities.org/id/metropolitan-district-council/walsall,WC85-619,31/10/2017,Economy & Environment,BLACK COUNTRY TRAINING LTD T/A BRITISH HGV TRAINING GROUP,02/10/2017,"1,376.00",30030-EXTERNAL TRAINING,WASTE COLLECTIONS,Employees,Revenue
Walsall Council,http://opendatacommunities.org/id/metropolitan-district-council/walsall,WC85-620,31/10/2017,Childrens,BLACK COUNTRY WOMENS AID,06/10/2017,"16,654.25",63000-PROFESSIONAL FEES AND SERVICES,TOXIC TRIO,Supplies & Services,Revenue
Walsall Council,http://opendatacommunities.org/id/metropolitan-district-council/walsall,WC85-621,31/10/2017,Childrens,BLAKENALL HEATH JMI SCHOOL,05/10/2017,"44,721.25",01006-SITE WORKS MAIN CONTRACTORS,CFR 1204 DEVOLVED FORMULA CAPITAL,Capital,Capital
Walsall Council,http://opendatacommunities.org/id/metropolitan-district-council/walsall,WC85-622,31/10/2017,Childrens,BLAKENALL HEATH JMI SCHOOL,02/10/2017,"97,351.61",77300-ISB-FORMULA ALLOCATION,BLAKENALL HEATH JUNIOR SCHOOL,Transfer Payments,Revenue
Walsall Council,http://opendatacommunities.org/id/metropolitan-district-council/walsall,WC85-623,31/10/2017,Change and Governance,BLOXWICH COMMUNITY PARTNERSHIP.,24/10/2017,"3,000.00",66500-GRANTS TO OTHER ORGS,BLOXWICH COMMUNITY PARTNERSHIP,Third Party Payments,Revenue
Walsall Council,http://opendatacommunities.org/id/metropolitan-district-council/walsall,WC85-624,31/10/2017,Childrens,BLOXWICH COMMUNITY PARTNERSHIP.,09/10/2017,"13,222.16",60500-GENERAL MATERIALS,PUPIL REFERAL UNIT EXCLUSIONS,Supplies & Services,Revenue
Walsall Council,http://opendatacommunities.org/id/metropolitan-district-council/walsall,WC85-625,31/10/2017,Childrens,BLOXWICH RADIO TAXIS,06/10/2017,"1,200.00",52000-WITH DRIVER-HIRE OF VEHICLES,SCHOOL TRANSPORT,Transport,Revenue
Walsall Council,http://opendatacommunities.org/id/metropolitan-district-council/walsall,WC85-626,31/10/2017,Childrens,BLUEBELLS #1,03/10/2017,9,61500-CLOTHING & LAUNDRY,BLUEBELLS,Supplies & Services,Revenue
Walsall Council,http://opendatacommunities.org/id/metropolitan-district-council/walsall,WC85-627,31/10/2017,Childrens,BLUEBELLS #1,03/10/2017,37.68,"40000-REPAIRS,ALTERATIONS & MAINTENANCE-PREM",BLUEBELLS,Premises,Revenue
Walsall Council,http://opendatacommunities.org/id/metropolitan-district-council/walsall,WC85-628,31/10/2017,Childrens,BLUEBELLS #1,03/10/2017,72.6,62001-STATIONERY & GENERAL SUPPLIES-OFFICE EXP,BLUEBELLS,Supplies & Services,Revenue
Walsall Council,http://opendatacommunities.org/id/metropolitan-district-council/walsall,WC85-629,31/10/2017,Childrens,BLUEBELLS #1,03/10/2017,100.96,76400-RESIDENTS PERSONAL EXPENSES-ALLOWANCES TO S/S CLIENTS,BLUEBELLS,Transfer Payments,Revenue
Walsall Council,http://opendatacommunities.org/id/metropolitan-district-council/walsall,WC85-630,31/10/2017,Childrens,BLUEBELLS #1,03/10/2017,125.55,60006-NEW-FURNITURE & EQUIPMENT,BLUEBELLS,Supplies & Services,Revenue
Walsall Council,http://opendatacommunities.org/id/metropolitan-district-council/walsall,WC85-631,31/10/2017,Childrens,BLUEBELLS #1,03/10/2017,207.04,61016-FOOD AND BEVERAGES-PROVISIONS,BLUEBELLS,Supplies & Services,Revenue
Walsall Council,http://opendatacommunities.org/id/metropolitan-district-council/walsall,WC85-632,31/10/2017,Economy & Environment,BME UNITED LTD,09/10/2017,"1,947.00",63253-PAYMENT TO CONTRACTOR,SMOKING CESSATION,Third Party Payments,Revenue
Walsall Council,http://opendatacommunities.org/id/metropolitan-district-council/walsall,WC85-633,31/10/2017,Economy & Environment,BME UNITED LTD,16/10/2017,"4,096.00",63253-PAYMENT TO CONTRACTOR,SMOKING CESSATION,Third Party Payments,Revenue
Walsall Council,http://opendatacommunities.org/id/metropolitan-district-council/walsall,WC85-634,31/10/2017,Economy & Environment,BMG RESEARCH,09/10/2017,"1,200.00",63000-PROFESSIONAL FEES AND SERVICES,PROJECTS,Supplies & Services,Revenue
Walsall Council,http://opendatacommunities.org/id/metropolitan-district-council/walsall,WC85-635,31/10/2017,Change and Governance,BMG RESEARCH,01/10/2017,"7,550.00",63248-SURVEYS & PROF SERVICES-PAYMENT TO CONTRACTOR,TRANSFORMATION,Supplies & Services,Revenue
Walsall Council,http://opendatacommunities.org/id/metropolitan-district-council/walsall,WC85-636,31/10/2017,Childrens,BODRIGGY ACADEMY,02/10/2017,300,77300-ISB-FORMULA ALLOCATION,OUT OF BOROUGH SCHOOLS,Transfer Payments,Revenue
Walsall Council,http://opendatacommunities.org/id/metropolitan-district-council/walsall,WC85-637,31/10/2017,Adult Social Care,BOLDMERE COURT CARE HOME,04/10/2017,"5,566.76",73373-RESIDENTIAL & NURSING CARE PLACEMENTS,OP PACKAGE/PLACEMENT COSTS,Third Party Payments,Revenue
Walsall Council,http://opendatacommunities.org/id/metropolitan-district-council/walsall,WC85-638,31/10/2017,Childrens,BOULTON TRAVEL LIMITED,05/10/2017,"1,957.00",52000-WITH DRIVER-HIRE OF VEHICLES,SCHOOL TRANSPORT,Transport,Revenue
Walsall Council,http://opendatacommunities.org/id/metropolitan-district-council/walsall,WC85-639,31/10/2017,Childrens,BOULTON TRAVEL LIMITED,05/10/2017,"2,052.00",52000-WITH DRIVER-HIRE OF VEHICLES,SCHOOL TRANSPORT,Transport,Revenue
Walsall Council,http://opendatacommunities.org/id/metropolitan-district-council/walsall,WC85-640,31/10/2017,Childrens,BOULTON TRAVEL LIMITED,06/10/2017,"2,318.00",52000-WITH DRIVER-HIRE OF VEHICLES,SCHOOL TRANSPORT,Transport,Revenue
Walsall Council,http://opendatacommunities.org/id/metropolitan-district-council/walsall,WC85-641,31/10/2017,Change and Governance,BPP PROFESSIONAL EDUCATION,23/10/2017,"1,056.06",30030-EXTERNAL TRAINING,FINANCE,Employees,Revenue
Walsall Council,http://opendatacommunities.org/id/metropolitan-district-council/walsall,WC85-642,31/10/2017,Childrens,BRADLEY ENVIRONMENTAL,17/10/2017,316,01006-SITE WORKS MAIN CONTRACTORS,BLACKWOOD PRIMARY DEV FORMULA CAPITAL,Capital,Capital
Walsall Council,http://opendatacommunities.org/id/metropolitan-district-council/walsall,WC85-643,31/10/2017,Economy & Environment,BRADVALE LTD T/A INSPIRE HEALTHCARE SERVICES,23/10/2017,600.23,60008-MAINTENANCE-FURNITURE & EQUIPMENT,OAK PARK,Supplies & Services,Revenue
Walsall Council,http://opendatacommunities.org/id/metropolitan-district-council/walsall,WC85-644,31/10/2017,Economy & Environment,BRAMBLE HUB LIMITED,13/10/2017,216.67,01044-PURCHASE OF FURNITURE & EQUIPMENT,CFR 1155 LEISURE MANAGEMENT SYSTEM,Capital,Capital
Walsall Council,http://opendatacommunities.org/id/metropolitan-district-council/walsall,WC85-645,31/10/2017,Adult Social Care,BRAMBLES RESIDENTIAL CARE HOME,17/10/2017,"2,065.72",73373-RESIDENTIAL & NURSING CARE PLACEMENTS,MH COMMISSIONING,Third Party Payments,Revenue
Walsall Council,http://opendatacommunities.org/id/metropolitan-district-council/walsall,WC85-646,31/10/2017,Adult Social Care,BRAMBLES RESIDENTIAL CARE HOME,17/10/2017,"2,134.58",73373-RESIDENTIAL & NURSING CARE PLACEMENTS,MH COMMISSIONING,Third Party Payments,Revenue
Walsall Council,http://opendatacommunities.org/id/metropolitan-district-council/walsall,WC85-647,31/10/2017,Childrens,BRANAS ISAF PERSONAL DEVELOPMENT CENTRE LTD,09/10/2017,"18,000.00",74036-EXTERNAL RESIDENTIAL CARE-OTH AGENCY PROVISION,INDEPENDENT RESIDENTIAL HOMES,Third Party Payments,Revenue
Walsall Council,http://opendatacommunities.org/id/metropolitan-district-council/walsall,WC85-648,31/10/2017,Economy & Environment,BRELMAYNE LTD,27/10/2017,789,63239-EXTERNAL WORKS-PAYMENT TO CONTRACTOR,FOREST ARTS CENTRE,Third Party Payments,Revenue
Walsall Council,http://opendatacommunities.org/id/metropolitan-district-council/walsall,WC85-649,31/10/2017,Economy & Environment,BRELMAYNE LTD,27/10/2017,"2,000.00",63233-ELECTRIC WORK GENERAL-PAYMENT TO CONTRACTOR,FOREST ARTS CENTRE,Premises,Revenue
Walsall Council,http://opendatacommunities.org/id/metropolitan-district-council/walsall,WC85-650,31/10/2017,Economy & Environment,BRELMAYNE LTD,27/10/2017,"4,100.00",63239-EXTERNAL WORKS-PAYMENT TO CONTRACTOR,FOREST ARTS CENTRE,Third Party Payments,Revenue
Walsall Council,http://opendatacommunities.org/id/metropolitan-district-council/walsall,WC85-651,31/10/2017,Adult Social Care,REDACTED,06/10/2017,440,76422-DIRECT PAYMENTS TO SOCIAL SERVICES CLIENTS,LD PACKAGE/PLACEMENT COSTS,Transfer Payments,Revenue
Walsall Council,http://opendatacommunities.org/id/metropolitan-district-council/walsall,WC85-652,31/10/2017,Adult Social Care,REDACTED,06/10/2017,353.52,76422-DIRECT PAYMENTS TO SOCIAL SERVICES CLIENTS,OP PACKAGE/PLACEMENT COSTS,Transfer Payments,Revenue
Walsall Council,http://opendatacommunities.org/id/metropolitan-district-council/walsall,WC85-653,31/10/2017,Childrens,REDACTED,09/10/2017,9.24,60006-NEW-FURNITURE & EQUIPMENT,INTERNAL FOSTER CARE PROVISION,Supplies & Services,Revenue
Walsall Council,http://opendatacommunities.org/id/metropolitan-district-council/walsall,WC85-654,31/10/2017,Childrens,REDACTED,09/10/2017,345.38,74506-TRAVEL-FOSTER CARERS,INTERNAL FOSTER CARE PROVISION,Transfer Payments,Revenue
Walsall Council,http://opendatacommunities.org/id/metropolitan-district-council/walsall,WC85-655,31/10/2017,Childrens,REDACTED,09/10/2017,810.32,74501-MAINTENANCE ALLOWANCE-FOSTER CARERS,INTERNAL FOSTER CARE PROVISION,Transfer Payments,Revenue
Walsall Council,http://opendatacommunities.org/id/metropolitan-district-council/walsall,WC85-656,31/10/2017,Childrens,REDACTED,09/10/2017,810.32,74501-MAINTENANCE ALLOWANCE-FOSTER CARERS,INTERNAL FOSTER CARE PROVISION,Transfer Payments,Revenue
Walsall Council,http://opendatacommunities.org/id/metropolitan-district-council/walsall,WC85-657,31/10/2017,Childrens,REDACTED,09/10/2017,"1,686.08",74508-INTERNAL FOSTER CARERS-CARER FEES,INTERNAL FOSTER CARE PROVISION,Transfer Payments,Revenue
Walsall Council,http://opendatacommunities.org/id/metropolitan-district-council/walsall,WC85-658,31/10/2017,Economy & Environment,BRENNTAG UK LIMITED,27/10/2017,332.5,60500-GENERAL MATERIALS,BLOXWICH LEISURE CENTRE,Supplies & Services,Revenue
Walsall Council,http://opendatacommunities.org/id/metropolitan-district-council/walsall,WC85-659,31/10/2017,Economy & Environment,BRENNTAG UK LIMITED,27/10/2017,367.5,60503-CHEMICALS & SCIENTIFIC MATS-MATERIALS,OAK PARK,Supplies & Services,Revenue
Walsall Council,http://opendatacommunities.org/id/metropolitan-district-council/walsall,WC85-660,31/10/2017,Economy & Environment,BRENNTAG UK LIMITED,27/10/2017,377.5,60500-GENERAL MATERIALS,BLOXWICH LEISURE CENTRE,Supplies & Services,Revenue
Walsall Council,http://opendatacommunities.org/id/metropolitan-district-council/walsall,WC85-661,31/10/2017,Economy & Environment,BRENNTAG UK LIMITED,27/10/2017,387.5,60503-CHEMICALS & SCIENTIFIC MATS-MATERIALS,OAK PARK,Supplies & Services,Revenue
Walsall Council,http://opendatacommunities.org/id/metropolitan-district-council/walsall,WC85-662,31/10/2017,Economy & Environment,BRENNTAG UK LIMITED,27/10/2017,387.5,60503-CHEMICALS & SCIENTIFIC MATS-MATERIALS,OAK PARK,Supplies & Services,Revenue
Walsall Council,http://opendatacommunities.org/id/metropolitan-district-council/walsall,WC85-663,31/10/2017,Economy & Environment,BRENNTAG UK LIMITED,27/10/2017,535.6,60500-GENERAL MATERIALS,BLOXWICH LEISURE CENTRE,Supplies & Services,Revenue
Walsall Council,http://opendatacommunities.org/id/metropolitan-district-council/walsall,WC85-664,31/10/2017,Economy & Environment,BRENNTAG UK LIMITED,01/10/2017,710.56,50301-FUEL-TRANSPORT RUN COSTS,FUEL STOCK ACCOUNT,Transport,Revenue
Walsall Council,http://opendatacommunities.org/id/metropolitan-district-council/walsall,WC85-665,31/10/2017,Adult Social Care,REDACTED,17/10/2017,"1,337.64",73374-SUPPORTED & OTHER ACCOMMODATION,LD PACKAGE/PLACEMENT COSTS,Third Party Payments,Revenue
Walsall Council,http://opendatacommunities.org/id/metropolitan-district-council/walsall,WC85-666,31/10/2017,Adult Social Care,REDACTED,17/10/2017,"1,597.60",73374-SUPPORTED & OTHER ACCOMMODATION,LD PACKAGE/PLACEMENT COSTS,Third Party Payments,Revenue
Walsall Council,http://opendatacommunities.org/id/metropolitan-district-council/walsall,WC85-667,31/10/2017,Adult Social Care,REDACTED,06/10/2017,"1,726.40",76422-DIRECT PAYMENTS TO SOCIAL SERVICES CLIENTS,OP PACKAGE/PLACEMENT COSTS,Transfer Payments,Revenue
Walsall Council,http://opendatacommunities.org/id/metropolitan-district-council/walsall,WC85-668,31/10/2017,Adult Social Care,REDACTED,06/10/2017,738,76422-DIRECT PAYMENTS TO SOCIAL SERVICES CLIENTS,OP PACKAGE/PLACEMENT COSTS,Transfer Payments,Revenue
Walsall Council,http://opendatacommunities.org/id/metropolitan-district-council/walsall,WC85-669,31/10/2017,Adult Social Care,BRIDGEWOOD HEALTH CARE LTD,24/10/2017,664.82,73373-RESIDENTIAL & NURSING CARE PLACEMENTS,PD PACKAGE/PLACEMENT COSTS,Third Party Payments,Revenue
Walsall Council,http://opendatacommunities.org/id/metropolitan-district-council/walsall,WC85-670,31/10/2017,Adult Social Care,BRIDGEWOOD HEALTH CARE LTD,24/10/2017,841.43,73373-RESIDENTIAL & NURSING CARE PLACEMENTS,PD PACKAGE/PLACEMENT COSTS,Third Party Payments,Revenue
Walsall Council,http://opendatacommunities.org/id/metropolitan-district-council/walsall,WC85-671,31/10/2017,Adult Social Care,BRIDGEWOOD HEALTH CARE LTD,24/10/2017,"4,266.18",73373-RESIDENTIAL & NURSING CARE PLACEMENTS,PD PACKAGE/PLACEMENT COSTS,Third Party Payments,Revenue
Walsall Council,http://opendatacommunities.org/id/metropolitan-district-council/walsall,WC85-672,31/10/2017,Adult Social Care,BRIDGEWOOD HEALTH CARE LTD,24/10/2017,"5,688.24",73373-RESIDENTIAL & NURSING CARE PLACEMENTS,PD PACKAGE/PLACEMENT COSTS,Third Party Payments,Revenue
Walsall Council,http://opendatacommunities.org/id/metropolitan-district-council/walsall,WC85-673,31/10/2017,Adult Social Care,BRIDGEWOOD HEALTH CARE LTD,24/10/2017,"5,688.24",73373-RESIDENTIAL & NURSING CARE PLACEMENTS,PD PACKAGE/PLACEMENT COSTS,Third Party Payments,Revenue
Walsall Council,http://opendatacommunities.org/id/metropolitan-district-council/walsall,WC85-674,31/10/2017,Childrens,BRIGHT HORIZONS (WISHING WILLOW),03/10/2017,675.97,63120-CRECHE FACILITIES-SERVICES-FEES,FAMILY PLACEMENTS,Supplies & Services,Revenue
Walsall Council,http://opendatacommunities.org/id/metropolitan-district-council/walsall,WC85-675,31/10/2017,Childrens,BRIGHT HORIZONS (WISHING WILLOW),18/10/2017,957.62,63120-CRECHE FACILITIES-SERVICES-FEES,FAMILY PLACEMENTS,Supplies & Services,Revenue
Walsall Council,http://opendatacommunities.org/id/metropolitan-district-council/walsall,WC85-676,31/10/2017,Change and Governance,BRISTOL OILSKIN & OVERALL CO,03/10/2017,10.8,55000-CARRIAGE-IN,SCHOOL CROSSING PATROL ADMIN,Transport,Revenue
Walsall Council,http://opendatacommunities.org/id/metropolitan-district-council/walsall,WC85-677,31/10/2017,Change and Governance,BRISTOL OILSKIN & OVERALL CO,03/10/2017,509.64,61502-PROTECTIVE CLOTHING & UNIFORM,SCHOOL CROSSING PATROL ADMIN,Supplies & Services,Revenue
Walsall Council,http://opendatacommunities.org/id/metropolitan-district-council/walsall,WC85-678,31/10/2017,Change and Governance,BRISTOW & SUTOR,11/10/2017,222.3,73014-LEGAL FEES-PRIV CONTRACTOR FEES,REVENUES,Third Party Payments,Revenue
Walsall Council,http://opendatacommunities.org/id/metropolitan-district-council/walsall,WC85-679,31/10/2017,Change and Governance,BRISTOW & SUTOR,11/10/2017,325.99,73014-LEGAL FEES-PRIV CONTRACTOR FEES,REVENUES,Third Party Payments,Revenue
Walsall Council,http://opendatacommunities.org/id/metropolitan-district-council/walsall,WC85-680,31/10/2017,Change and Governance,BRISTOW & SUTOR,11/10/2017,328.85,73014-LEGAL FEES-PRIV CONTRACTOR FEES,REVENUES,Third Party Payments,Revenue
Walsall Council,http://opendatacommunities.org/id/metropolitan-district-council/walsall,WC85-681,31/10/2017,Change and Governance,BRISTOW & SUTOR,01/10/2017,427.33,73014-LEGAL FEES-PRIV CONTRACTOR FEES,REVENUES,Third Party Payments,Revenue
Walsall Council,http://opendatacommunities.org/id/metropolitan-district-council/walsall,WC85-682,31/10/2017,Economy & Environment,BRITANNIA APPRENTICESHIPS LTD,11/10/2017,612.3,63000-PROFESSIONAL FEES AND SERVICES,YEI (IMPACT) PROGRAMME,Supplies & Services,Revenue
Walsall Council,http://opendatacommunities.org/id/metropolitan-district-council/walsall,WC85-683,31/10/2017,Economy & Environment,BRITANNIA APPRENTICESHIPS LTD,11/10/2017,612.31,63000-PROFESSIONAL FEES AND SERVICES,YEI ESF FUNDING,Supplies & Services,Revenue
Walsall Council,http://opendatacommunities.org/id/metropolitan-district-council/walsall,WC85-684,31/10/2017,Economy & Environment,BRITANNIA APPRENTICESHIPS LTD,18/10/2017,750,66500-GRANTS TO OTHER ORGS,RES-WALSALL WORKS,Third Party Payments,Revenue
Walsall Council,http://opendatacommunities.org/id/metropolitan-district-council/walsall,WC85-685,31/10/2017,Economy & Environment,BRITANNIA APPRENTICESHIPS LTD,17/10/2017,"3,000.00",66500-GRANTS TO OTHER ORGS,RES-WALSALL WORKS,Third Party Payments,Revenue
Walsall Council,http://opendatacommunities.org/id/metropolitan-district-council/walsall,WC85-686,31/10/2017,Economy & Environment,BRITANNIA APPRENTICESHIPS LTD,04/10/2017,"4,286.11",63000-PROFESSIONAL FEES AND SERVICES,YEI (IMPACT) PROGRAMME,Supplies & Services,Revenue
Walsall Council,http://opendatacommunities.org/id/metropolitan-district-council/walsall,WC85-687,31/10/2017,Economy & Environment,BRITANNIA APPRENTICESHIPS LTD,04/10/2017,"4,286.16",63000-PROFESSIONAL FEES AND SERVICES,YEI ESF FUNDING,Supplies & Services,Revenue
Walsall Council,http://opendatacommunities.org/id/metropolitan-district-council/walsall,WC85-688,31/10/2017,Economy & Environment,BRITANNIA APPRENTICESHIPS LTD,11/10/2017,"7,347.66",30030-EXTERNAL TRAINING,YEI ESF FUNDING,Employees,Revenue
Walsall Council,http://opendatacommunities.org/id/metropolitan-district-council/walsall,WC85-689,31/10/2017,Change and Governance,BRITISH GAS BUSINESS,19/10/2017,"-1,025.97",42000-GAS-ENERGY COSTS,CENTRALISED ENERGY,Premises,Revenue
Walsall Council,http://opendatacommunities.org/id/metropolitan-district-council/walsall,WC85-690,31/10/2017,Change and Governance,BRITISH GAS BUSINESS,19/10/2017,-665.09,42000-GAS-ENERGY COSTS,CENTRALISED ENERGY,Premises,Revenue
Walsall Council,http://opendatacommunities.org/id/metropolitan-district-council/walsall,WC85-691,31/10/2017,Change and Governance,BRITISH GAS BUSINESS,19/10/2017,-518.32,42000-GAS-ENERGY COSTS,CENTRALISED ENERGY,Premises,Revenue
Walsall Council,http://opendatacommunities.org/id/metropolitan-district-council/walsall,WC85-692,31/10/2017,Change and Governance,BRITISH GAS BUSINESS,19/10/2017,247.18,42000-GAS-ENERGY COSTS,CENTRALISED ENERGY,Premises,Revenue
Walsall Council,http://opendatacommunities.org/id/metropolitan-district-council/walsall,WC85-693,31/10/2017,Change and Governance,BRITISH GAS BUSINESS,19/10/2017,"8,319.81",42000-GAS-ENERGY COSTS,CENTRALISED ENERGY,Premises,Revenue
Walsall Council,http://opendatacommunities.org/id/metropolitan-district-council/walsall,WC85-694,31/10/2017,Childrens,BRITISH MUSLIM YOUTH GROUP,06/10/2017,820,77000-TRANSFER PAYMENTS-MANDATORY AWARDS,SOUTH LOCALITY - SCHOOL READY,Transfer Payments,Revenue
Walsall Council,http://opendatacommunities.org/id/metropolitan-district-council/walsall,WC85-695,31/10/2017,Change and Governance,BRITISH MUSLIM YOUTH GROUP,03/10/2017,"1,000.00",66500-GRANTS TO OTHER ORGS,COHESION,Third Party Payments,Revenue
Walsall Council,http://opendatacommunities.org/id/metropolitan-district-council/walsall,WC85-696,31/10/2017,Change and Governance,BRITISH MUSLIM YOUTH GROUP,02/10/2017,"5,370.00",30030-EXTERNAL TRAINING,PREVENT GRANT,Employees,Revenue
Walsall Council,http://opendatacommunities.org/id/metropolitan-district-council/walsall,WC85-697,31/10/2017,Change and Governance,BRITISH TELECOMMUNICATIONS LTD,20/10/2017,712,63603-COST OF CALLS-TELEPHONES,PROCESSING,Supplies & Services,Revenue
Walsall Council,http://opendatacommunities.org/id/metropolitan-district-council/walsall,WC85-698,31/10/2017,Economy & Environment,BROADREACH HOUSE,13/10/2017,"2,780.00",63253-PAYMENT TO CONTRACTOR,ALCOHOL RESIDENTIAL DETOX,Third Party Payments,Revenue
Walsall Council,http://opendatacommunities.org/id/metropolitan-district-council/walsall,WC85-699,31/10/2017,Holding Accounts,BROWNE JACOBSON SOLICITORS,19/10/2017,"1,347.00",67001-MISC INSURANCES - PAYMENT OF CLAIMS,PUBLIC LIABILITY,Supplies & Services,Revenue
Walsall Council,http://opendatacommunities.org/id/metropolitan-district-council/walsall,WC85-700,31/10/2017,Holding Accounts,BROWNE JACOBSON SOLICITORS,11/10/2017,"2,063.10",67001-MISC INSURANCES - PAYMENT OF CLAIMS,PUBLIC LIABILITY,Supplies & Services,Revenue
Walsall Council,http://opendatacommunities.org/id/metropolitan-district-council/walsall,WC85-701,31/10/2017,Economy & Environment,BROWNHILLS ASPHALT & TARMAC LIMITED,11/10/2017,300,60500-GENERAL MATERIALS,INFRASTRUCTURE MAINTENANCE,Supplies & Services,Revenue
Walsall Council,http://opendatacommunities.org/id/metropolitan-district-council/walsall,WC85-702,31/10/2017,Economy & Environment,BROWNHILLS ASPHALT & TARMAC LIMITED,11/10/2017,300,60500-GENERAL MATERIALS,INFRASTRUCTURE MAINTENANCE,Supplies & Services,Revenue
Walsall Council,http://opendatacommunities.org/id/metropolitan-district-council/walsall,WC85-703,31/10/2017,Change and Governance,BROWNHILLS ASPHALT & TARMAC LIMITED,30/10/2017,680,01006-SITE WORKS MAIN CONTRACTORS,CON 59 DARLASTON RECREATION GROUND,Capital,Capital
Walsall Council,http://opendatacommunities.org/id/metropolitan-district-council/walsall,WC85-704,31/10/2017,Childrens,BROWNHILLS ASPHALT & TARMAC LIMITED,06/10/2017,979,01006-SITE WORKS MAIN CONTRACTORS,NEW INVENTION JNR DEV FORMULA CAPITAL,Capital,Capital
Walsall Council,http://opendatacommunities.org/id/metropolitan-district-council/walsall,WC85-705,31/10/2017,Childrens,BROWNHILLS ASPHALT & TARMAC LIMITED,16/10/2017,"1,000.00",01006-SITE WORKS MAIN CONTRACTORS,CFR 1193 SALISBURY PRIMARY - CORRIDOR FLOOR REPLACEMENT,Capital,Capital
Walsall Council,http://opendatacommunities.org/id/metropolitan-district-council/walsall,WC85-706,31/10/2017,Economy & Environment,BROWNHILLS ASPHALT & TARMAC LIMITED,06/10/2017,"1,450.00",73025-PROFESSIONAL SERVICES-PRIV CONTRACTOR & OTHER AGENCIES,DEPOT,Third Party Payments,Revenue
Walsall Council,http://opendatacommunities.org/id/metropolitan-district-council/walsall,WC85-707,31/10/2017,Childrens,BROWNHILLS ASPHALT & TARMAC LIMITED,16/10/2017,"2,250.00",01006-SITE WORKS MAIN CONTRACTORS,CFR 1193 SALISBURY PRIMARY - CORRIDOR FLOOR REPLACEMENT,Capital,Capital
Walsall Council,http://opendatacommunities.org/id/metropolitan-district-council/walsall,WC85-708,31/10/2017,Economy & Environment,BROWNHILLS ASPHALT & TARMAC LIMITED,05/10/2017,"4,896.00",60008-MAINTENANCE-FURNITURE & EQUIPMENT,SECTION 106,Supplies & Services,Revenue
Walsall Council,http://opendatacommunities.org/id/metropolitan-district-council/walsall,WC85-709,31/10/2017,Childrens,BROWNHILLS ASPHALT & TARMAC LIMITED,09/10/2017,"25,190.00",01006-SITE WORKS MAIN CONTRACTORS,ROSEDALE CE INF DEV FORMULA CAPITAL,Capital,Capital
Walsall Council,http://opendatacommunities.org/id/metropolitan-district-council/walsall,WC85-710,31/10/2017,Change and Governance,BROWNHILLS COMMUNITY ASSOCIATION,19/10/2017,"3,000.00",66500-GRANTS TO OTHER ORGS,BROWNHILLS COMMUNITY ASSOCIATION,Third Party Payments,Revenue
Walsall Council,http://opendatacommunities.org/id/metropolitan-district-council/walsall,WC85-711,31/10/2017,Childrens,BROWNHILLS COMMUNITY TECHNICAL COLLEGE,04/10/2017,"1,814.50",52000-WITH DRIVER-HIRE OF VEHICLES,SCHOOL TRANSPORT,Transport,Revenue
Walsall Council,http://opendatacommunities.org/id/metropolitan-district-council/walsall,WC85-712,31/10/2017,Adult Social Care,REDACTED,06/10/2017,"1,530.00",76422-DIRECT PAYMENTS TO SOCIAL SERVICES CLIENTS,LD PACKAGE/PLACEMENT COSTS,Transfer Payments,Revenue
Walsall Council,http://opendatacommunities.org/id/metropolitan-district-council/walsall,WC85-713,31/10/2017,Economy & Environment,BRUEL & KJAER,04/10/2017,"1,026.20",60008-MAINTENANCE-FURNITURE & EQUIPMENT,POLLUTION LABORATORY,Supplies & Services,Revenue
Walsall Council,http://opendatacommunities.org/id/metropolitan-district-council/walsall,WC85-714,31/10/2017,Economy & Environment,BRUEL & KJAER,04/10/2017,"1,585.20",73025-PROFESSIONAL SERVICES-PRIV CONTRACTOR & OTHER AGENCIES,POLLUTION DIVISION,Third Party Payments,Revenue
Walsall Council,http://opendatacommunities.org/id/metropolitan-district-council/walsall,WC85-715,31/10/2017,Economy & Environment,REDACTED,13/10/2017,"2,081.25",73025-PROFESSIONAL SERVICES-PRIV CONTRACTOR & OTHER AGENCIES,BLOXWICH LIBRARY,Third Party Payments,Revenue
Walsall Council,http://opendatacommunities.org/id/metropolitan-district-council/walsall,WC85-716,31/10/2017,Childrens,REDACTED,09/10/2017,"-14,746.29",74036-EXTERNAL RESIDENTIAL CARE-OTH AGENCY PROVISION,INDEPENDENT RESIDENTIAL HOMES,Third Party Payments,Revenue
Walsall Council,http://opendatacommunities.org/id/metropolitan-district-council/walsall,WC85-717,31/10/2017,Childrens,REDACTED,09/10/2017,"40,700.00",74036-EXTERNAL RESIDENTIAL CARE-OTH AGENCY PROVISION,INDEPENDENT RESIDENTIAL HOMES,Third Party Payments,Revenue
Walsall Council,http://opendatacommunities.org/id/metropolitan-district-council/walsall,WC85-718,31/10/2017,Economy & Environment,B-SURE SECURITY SERVICES LTD,02/10/2017,446,60001-REPAIRS/CLEANING-EQUIPMENT,CENTRALISED STATIONERY,Supplies & Services,Revenue
Walsall Council,http://opendatacommunities.org/id/metropolitan-district-council/walsall,WC85-719,31/10/2017,Change and Governance,BT PLC,12/10/2017,400.02,63601-COSTS (NOT INTERNAL RECHARGES)-TELEPHONES,CENTRAL COMMUNICATIONS RECHARGES,Supplies & Services,Revenue
Walsall Council,http://opendatacommunities.org/id/metropolitan-district-council/walsall,WC85-720,31/10/2017,Change and Governance,BT PLC,30/10/2017,"1,829.79",63601-COSTS (NOT INTERNAL RECHARGES)-TELEPHONES,RECHARGEABLE EQUIPMENT,Supplies & Services,Revenue
Walsall Council,http://opendatacommunities.org/id/metropolitan-district-council/walsall,WC85-721,31/10/2017,Economy & Environment,BT PLC,17/10/2017,"9,962.50",63601-COSTS (NOT INTERNAL RECHARGES)-TELEPHONES,TRAFFIC CONTROL,Supplies & Services,Revenue
Walsall Council,http://opendatacommunities.org/id/metropolitan-district-council/walsall,WC85-722,31/10/2017,Change and Governance,BT PLC,12/10/2017,"14,671.21",63601-COSTS (NOT INTERNAL RECHARGES)-TELEPHONES,CENTRAL COMMUNICATIONS RECHARGES,Supplies & Services,Revenue
Walsall Council,http://opendatacommunities.org/id/metropolitan-district-council/walsall,WC85-723,31/10/2017,Change and Governance,BT REDCARE,01/10/2017,250,60008-MAINTENANCE-FURNITURE & EQUIPMENT,CCTV,Supplies & Services,Revenue
Walsall Council,http://opendatacommunities.org/id/metropolitan-district-council/walsall,WC85-724,31/10/2017,Economy & Environment,BUCHANAN COMPUTING,25/10/2017,"2,002.00",73025-PROFESSIONAL SERVICES-PRIV CONTRACTOR & OTHER AGENCIES,PARKING SERVICES OFF-STREET,Third Party Payments,Revenue
Walsall Council,http://opendatacommunities.org/id/metropolitan-district-council/walsall,WC85-725,31/10/2017,Economy & Environment,BUFFET EXPRESS LTD,02/10/2017,745.1,61305-CATERING,MUSIC HUB FOREST ARTS,Supplies & Services,Revenue
Walsall Council,http://opendatacommunities.org/id/metropolitan-district-council/walsall,WC85-726,31/10/2017,Adult Social Care,BUNZIL HEALTHCARE T/A CARESHOP,23/10/2017,9.45,60539-CLEANING MATERIALS,COMMUNITY INTERMEDIATE CARE,Supplies & Services,Revenue
Walsall Council,http://opendatacommunities.org/id/metropolitan-district-council/walsall,WC85-727,31/10/2017,Adult Social Care,BUNZIL HEALTHCARE T/A CARESHOP,01/10/2017,270.16,60539-CLEANING MATERIALS,REABLEMENT TEAM - HOLLY BANK,Supplies & Services,Revenue
Walsall Council,http://opendatacommunities.org/id/metropolitan-district-council/walsall,WC85-728,31/10/2017,Adult Social Care,BUNZIL HEALTHCARE T/A CARESHOP,23/10/2017,275.2,60539-CLEANING MATERIALS,REABLEMENT TEAM - HOLLY BANK,Supplies & Services,Revenue
Walsall Council,http://opendatacommunities.org/id/metropolitan-district-council/walsall,WC85-729,31/10/2017,Adult Social Care,BUNZIL HEALTHCARE T/A CARESHOP,09/10/2017,532.19,60008-MAINTENANCE-FURNITURE & EQUIPMENT,REABLEMENT TEAM - HOLLY BANK,Supplies & Services,Revenue
Walsall Council,http://opendatacommunities.org/id/metropolitan-district-council/walsall,WC85-730,31/10/2017,Adult Social Care,BUNZIL HEALTHCARE T/A CARESHOP,24/10/2017,716.66,60539-CLEANING MATERIALS,REABLEMENT TEAM - HOLLY BANK,Supplies & Services,Revenue
Walsall Council,http://opendatacommunities.org/id/metropolitan-district-council/walsall,WC85-731,31/10/2017,Adult Social Care,BUSH HOME LTD,10/10/2017,"1,504.29",73373-RESIDENTIAL & NURSING CARE PLACEMENTS,OP PACKAGE/PLACEMENT COSTS,Third Party Payments,Revenue
Walsall Council,http://opendatacommunities.org/id/metropolitan-district-council/walsall,WC85-732,31/10/2017,Adult Social Care,BUSH HOME LTD,04/10/2017,"1,656.00",73373-RESIDENTIAL & NURSING CARE PLACEMENTS,OP PACKAGE/PLACEMENT COSTS,Third Party Payments,Revenue
Walsall Council,http://opendatacommunities.org/id/metropolitan-district-council/walsall,WC85-733,31/10/2017,Adult Social Care,BUSH HOME LTD,04/10/2017,"1,656.00",73373-RESIDENTIAL & NURSING CARE PLACEMENTS,PD PACKAGE/PLACEMENT COSTS,Third Party Payments,Revenue
Walsall Council,http://opendatacommunities.org/id/metropolitan-district-council/walsall,WC85-734,31/10/2017,Adult Social Care,BUSH HOME LTD,04/10/2017,"1,656.00",73373-RESIDENTIAL & NURSING CARE PLACEMENTS,OP PACKAGE/PLACEMENT COSTS,Third Party Payments,Revenue
Walsall Council,http://opendatacommunities.org/id/metropolitan-district-council/walsall,WC85-735,31/10/2017,Adult Social Care,BUSH HOME LTD,04/10/2017,"1,656.00",73373-RESIDENTIAL & NURSING CARE PLACEMENTS,OP PACKAGE/PLACEMENT COSTS,Third Party Payments,Revenue
Walsall Council,http://opendatacommunities.org/id/metropolitan-district-council/walsall,WC85-736,31/10/2017,Adult Social Care,BUSH HOME LTD,24/10/2017,"1,656.00",73373-RESIDENTIAL & NURSING CARE PLACEMENTS,OP PACKAGE/PLACEMENT COSTS,Third Party Payments,Revenue
Walsall Council,http://opendatacommunities.org/id/metropolitan-district-council/walsall,WC85-737,31/10/2017,Adult Social Care,BUSH HOME LTD,24/10/2017,"1,656.00",73373-RESIDENTIAL & NURSING CARE PLACEMENTS,OP PACKAGE/PLACEMENT COSTS,Third Party Payments,Revenue
Walsall Council,http://opendatacommunities.org/id/metropolitan-district-council/walsall,WC85-738,31/10/2017,Adult Social Care,BUSH HOME LTD,24/10/2017,"1,656.00",73373-RESIDENTIAL & NURSING CARE PLACEMENTS,OP PACKAGE/PLACEMENT COSTS,Third Party Payments,Revenue
Walsall Council,http://opendatacommunities.org/id/metropolitan-district-council/walsall,WC85-739,31/10/2017,Adult Social Care,BUSH HOME LTD,24/10/2017,"1,656.00",73373-RESIDENTIAL & NURSING CARE PLACEMENTS,OP PACKAGE/PLACEMENT COSTS,Third Party Payments,Revenue
Walsall Council,http://opendatacommunities.org/id/metropolitan-district-council/walsall,WC85-740,31/10/2017,Adult Social Care,BUSH HOME LTD,24/10/2017,"1,656.00",73373-RESIDENTIAL & NURSING CARE PLACEMENTS,MH COMMISSIONING,Third Party Payments,Revenue
Walsall Council,http://opendatacommunities.org/id/metropolitan-district-council/walsall,WC85-741,31/10/2017,Adult Social Care,BUSH HOME LTD,10/10/2017,"1,793.57",73373-RESIDENTIAL & NURSING CARE PLACEMENTS,OP PACKAGE/PLACEMENT COSTS,Third Party Payments,Revenue
Walsall Council,http://opendatacommunities.org/id/metropolitan-district-council/walsall,WC85-742,31/10/2017,Adult Social Care,BUSH HOME LTD,04/10/2017,"1,839.94",73373-RESIDENTIAL & NURSING CARE PLACEMENTS,OP PACKAGE/PLACEMENT COSTS,Third Party Payments,Revenue
Walsall Council,http://opendatacommunities.org/id/metropolitan-district-council/walsall,WC85-743,31/10/2017,Adult Social Care,BUSH HOME LTD,24/10/2017,"1,839.94",73373-RESIDENTIAL & NURSING CARE PLACEMENTS,OP PACKAGE/PLACEMENT COSTS,Third Party Payments,Revenue
Walsall Council,http://opendatacommunities.org/id/metropolitan-district-council/walsall,WC85-744,31/10/2017,Adult Social Care,BUSH HOME LTD,04/10/2017,"1,840.00",73373-RESIDENTIAL & NURSING CARE PLACEMENTS,OP PACKAGE/PLACEMENT COSTS,Third Party Payments,Revenue
Walsall Council,http://opendatacommunities.org/id/metropolitan-district-council/walsall,WC85-745,31/10/2017,Adult Social Care,BUSH HOME LTD,04/10/2017,"1,840.00",73373-RESIDENTIAL & NURSING CARE PLACEMENTS,OP PACKAGE/PLACEMENT COSTS,Third Party Payments,Revenue
Walsall Council,http://opendatacommunities.org/id/metropolitan-district-council/walsall,WC85-746,31/10/2017,Adult Social Care,BUSH HOME LTD,04/10/2017,"1,840.00",73373-RESIDENTIAL & NURSING CARE PLACEMENTS,OP PACKAGE/PLACEMENT COSTS,Third Party Payments,Revenue
Walsall Council,http://opendatacommunities.org/id/metropolitan-district-council/walsall,WC85-747,31/10/2017,Adult Social Care,BUSH HOME LTD,04/10/2017,"1,840.00",73373-RESIDENTIAL & NURSING CARE PLACEMENTS,OP PACKAGE/PLACEMENT COSTS,Third Party Payments,Revenue
Walsall Council,http://opendatacommunities.org/id/metropolitan-district-council/walsall,WC85-748,31/10/2017,Adult Social Care,BUSH HOME LTD,04/10/2017,"1,840.00",73373-RESIDENTIAL & NURSING CARE PLACEMENTS,OP PACKAGE/PLACEMENT COSTS,Third Party Payments,Revenue
Walsall Council,http://opendatacommunities.org/id/metropolitan-district-council/walsall,WC85-749,31/10/2017,Adult Social Care,BUSH HOME LTD,04/10/2017,"1,840.00",73373-RESIDENTIAL & NURSING CARE PLACEMENTS,OP PACKAGE/PLACEMENT COSTS,Third Party Payments,Revenue
Walsall Council,http://opendatacommunities.org/id/metropolitan-district-council/walsall,WC85-750,31/10/2017,Adult Social Care,BUSH HOME LTD,24/10/2017,"1,840.00",73373-RESIDENTIAL & NURSING CARE PLACEMENTS,OP PACKAGE/PLACEMENT COSTS,Third Party Payments,Revenue
Walsall Council,http://opendatacommunities.org/id/metropolitan-district-council/walsall,WC85-751,31/10/2017,Adult Social Care,BUSH HOME LTD,24/10/2017,"1,840.00",73373-RESIDENTIAL & NURSING CARE PLACEMENTS,OP PACKAGE/PLACEMENT COSTS,Third Party Payments,Revenue
Walsall Council,http://opendatacommunities.org/id/metropolitan-district-council/walsall,WC85-752,31/10/2017,Adult Social Care,BUSH HOME LTD,24/10/2017,"1,840.00",73373-RESIDENTIAL & NURSING CARE PLACEMENTS,OP PACKAGE/PLACEMENT COSTS,Third Party Payments,Revenue
Walsall Council,http://opendatacommunities.org/id/metropolitan-district-council/walsall,WC85-753,31/10/2017,Adult Social Care,BUSH HOME LTD,24/10/2017,"1,840.00",73373-RESIDENTIAL & NURSING CARE PLACEMENTS,OP PACKAGE/PLACEMENT COSTS,Third Party Payments,Revenue
Walsall Council,http://opendatacommunities.org/id/metropolitan-district-council/walsall,WC85-754,31/10/2017,Adult Social Care,BUSH HOME LTD,24/10/2017,"1,840.00",73373-RESIDENTIAL & NURSING CARE PLACEMENTS,OP PACKAGE/PLACEMENT COSTS,Third Party Payments,Revenue
Walsall Council,http://opendatacommunities.org/id/metropolitan-district-council/walsall,WC85-755,31/10/2017,Adult Social Care,BUSH HOME LTD,24/10/2017,"1,840.00",73373-RESIDENTIAL & NURSING CARE PLACEMENTS,OP PACKAGE/PLACEMENT COSTS,Third Party Payments,Revenue
Walsall Council,http://opendatacommunities.org/id/metropolitan-district-council/walsall,WC85-756,31/10/2017,Adult Social Care,BUSH HOME LTD,04/10/2017,"1,840.28",73373-RESIDENTIAL & NURSING CARE PLACEMENTS,OP PACKAGE/PLACEMENT COSTS,Third Party Payments,Revenue
Walsall Council,http://opendatacommunities.org/id/metropolitan-district-council/walsall,WC85-757,31/10/2017,Adult Social Care,BUSH HOME LTD,24/10/2017,"1,840.28",73373-RESIDENTIAL & NURSING CARE PLACEMENTS,OP PACKAGE/PLACEMENT COSTS,Third Party Payments,Revenue
Walsall Council,http://opendatacommunities.org/id/metropolitan-district-council/walsall,WC85-758,31/10/2017,Adult Social Care,BUSH HOME LTD,10/10/2017,"5,037.43",73373-RESIDENTIAL & NURSING CARE PLACEMENTS,OP PACKAGE/PLACEMENT COSTS,Third Party Payments,Revenue
Walsall Council,http://opendatacommunities.org/id/metropolitan-district-council/walsall,WC85-759,31/10/2017,Adult Social Care,BUSH HOME LTD,10/10/2017,"7,984.29",73373-RESIDENTIAL & NURSING CARE PLACEMENTS,OP PACKAGE/PLACEMENT COSTS,Third Party Payments,Revenue
Walsall Council,http://opendatacommunities.org/id/metropolitan-district-council/walsall,WC85-760,31/10/2017,Childrens,BY THE BRIDGE,09/10/2017,"2,846.20",74037-INDEPENDENT FOSTER CARE-OTH AGENCY PROVISION,EXTERNAL FOSTER CARE PROVISION,Third Party Payments,Revenue
Walsall Council,http://opendatacommunities.org/id/metropolitan-district-council/walsall,WC85-761,31/10/2017,Childrens,BY THE BRIDGE,09/10/2017,"2,976.00",74037-INDEPENDENT FOSTER CARE-OTH AGENCY PROVISION,EXTERNAL FOSTER CARE PROVISION,Third Party Payments,Revenue
Walsall Council,http://opendatacommunities.org/id/metropolitan-district-council/walsall,WC85-762,31/10/2017,Adult Social Care,C & V ORCHARD MANOR LTD,17/10/2017,578.56,73373-RESIDENTIAL & NURSING CARE PLACEMENTS,OP PACKAGE/PLACEMENT COSTS,Third Party Payments,Revenue
Walsall Council,http://opendatacommunities.org/id/metropolitan-district-council/walsall,WC85-763,31/10/2017,Adult Social Care,C & V ORCHARD MANOR LTD,10/10/2017,"1,656.00",73373-RESIDENTIAL & NURSING CARE PLACEMENTS,MH COMMISSIONING,Third Party Payments,Revenue
Walsall Council,http://opendatacommunities.org/id/metropolitan-district-council/walsall,WC85-764,31/10/2017,Adult Social Care,C & V ORCHARD MANOR LTD,10/10/2017,"1,656.00",73373-RESIDENTIAL & NURSING CARE PLACEMENTS,MH COMMISSIONING,Third Party Payments,Revenue
Walsall Council,http://opendatacommunities.org/id/metropolitan-district-council/walsall,WC85-765,31/10/2017,Adult Social Care,C & V ORCHARD MANOR LTD,17/10/2017,"1,800.00",73373-RESIDENTIAL & NURSING CARE PLACEMENTS,OP PACKAGE/PLACEMENT COSTS,Third Party Payments,Revenue
Walsall Council,http://opendatacommunities.org/id/metropolitan-district-council/walsall,WC85-766,31/10/2017,Adult Social Care,C & V ORCHARD MANOR LTD,10/10/2017,"1,840.00",73373-RESIDENTIAL & NURSING CARE PLACEMENTS,MH COMMISSIONING,Third Party Payments,Revenue
Walsall Council,http://opendatacommunities.org/id/metropolitan-district-council/walsall,WC85-767,31/10/2017,Adult Social Care,C & V ORCHARD MANOR LTD,10/10/2017,"1,840.00",73373-RESIDENTIAL & NURSING CARE PLACEMENTS,MH COMMISSIONING,Third Party Payments,Revenue
Walsall Council,http://opendatacommunities.org/id/metropolitan-district-council/walsall,WC85-768,31/10/2017,Adult Social Care,C & V ORCHARD MANOR LTD,10/10/2017,"1,840.00",73373-RESIDENTIAL & NURSING CARE PLACEMENTS,OP PACKAGE/PLACEMENT COSTS,Third Party Payments,Revenue
Walsall Council,http://opendatacommunities.org/id/metropolitan-district-council/walsall,WC85-769,31/10/2017,Adult Social Care,C & V ORCHARD MANOR LTD,10/10/2017,"1,840.00",73373-RESIDENTIAL & NURSING CARE PLACEMENTS,OP PACKAGE/PLACEMENT COSTS,Third Party Payments,Revenue
Walsall Council,http://opendatacommunities.org/id/metropolitan-district-council/walsall,WC85-770,31/10/2017,Adult Social Care,C & V ORCHARD RESIDENTIAL LTD,10/10/2017,"1,620.24",73373-RESIDENTIAL & NURSING CARE PLACEMENTS,OP PACKAGE/PLACEMENT COSTS,Third Party Payments,Revenue
